Workbook

Sheet Dane wyjściowe (hidden)
A1: SEZON | B1: ILOŚĆ PRACUJĄCYCH MIESIĘCY | D1: RODZAJ UMOWY | E1: WSKAŹNIK UBRUTTOWIENIA | F1: WSKAŹNIK OPERACYJNY | I1: DOJAZD | K1: NARODOWOŚĆ | M1: KSIĘGOWOŚĆ | O1: Rezerwy (liczone od podst. wynagrodzenia mies. brutto) - tylko do UOP | R1: MASZYNY | U1: SPÓŁKI | W1: RODZAJ CZYNNOŚCI | Y1: Odzież | AA1: Zima
A2: Cały rok | B2: 12 | D2: O pracę | E2: 1.65 | F2: 1.684035208 | I2: 2.39 | K2: Polak | M2: 30 | O2: Chorobowe | P2: 0.05 | R2: Postojowe | U2: DL2 SP. Z O.O. | W2: Doczyszczanie koszy na śmieci – mycie pojemników wewnątrz, klap od śmietników | AA2: 11 | AC2: data teraz | AD2: =TODAY() -> 2026-06-11
A3: Lato | B3: 7 | D3: Zlecenie | E3: 1.65 | F3: 1.609583333 | K3: Obcokrajowiec | M3: 15 | O3: Urlopowe | P3: 0.1 | R3: Dojazd | U3: DL2 SP. Z O.O. SP.K. | W3: Dystrybutor na wodę – kratka ociekająca na wodę | Y3: X | AA3: 12 | AC3: miesiąc teraz | AD3: =MONTH(AD2) -> 6
A4: Zima | B4: 5 | D4: Agencja | E4: 1.771666667 | F4: 1.771666667 | O4: Administracja | U4: GLOBAL DL SP. Z O.O. | W4: Mycie drzwi od zmywarki od wewnątrz – doczyszczenie boków | AA4: 1 | AC4: czy zima | AD4: =IF(IFERROR(VLOOKUP(AD3,AA:AA,1,0),"nie")="nie","nie","tak") -> nie
D5: O pracę z dojazdem | E5: 2.131666715 | F5: 1.844027321 | U5: GLOBAL DL SP. Z O.O. SP.K. | W5: Mycie lodówek od wewnątrz – przy przekładaniu produktów – bieżące zabrudzenia | AA5: 2
D6: O pracę z mieszkaniem | E6: 2.190617621 | F6: 1.902978226 | U6: HORIZONT SP. Z O.O. SP.K. | W6: Mycie lodówek z zewnątrz | AA6: 3
D7: O pracę z dojazdem i mieszkaniem | E7: 2.350609734 | F7: 2.06297034 | W7: Mycie lodówki
D8: Agencja z dojazdem | E8: 1.89 | F8: 1.89 | W8: Mycie mikrofali
D9: Agencja z mieszkaniem | E9: 1.81 | F9: 1.81 | W9: Mycie mikrofalówek od wewnątrz
D10: Agencja z dojazdem i mieszkaniem | E10: 2.05 | F10: 2.05 | W10: Mycie mikrofalówek z zewnątrz
W11: Mycie naczyń
A12: HIGIENA - REFAKTURA | W12: Mycie ociekacza na sztućce i gąbki
A13: TAK | W13: Mycie pionowych powierzchni mebli biurowych
A14: NIE | W14: Mycie przeszkleń w drzwiach – na bieżąco miejsca zabrudzone
W15: Mycie zlewozmywaka wraz z ociekaczem i kranem
W16: Mycie zmywarki – specjalny program czyszczenia ze środkiem czyszczącym
D17: Aktualny cennik | W17: Odkurzanie lamp wiszących
W18: Odkurzanie powierzchni mebli tapicerowanych
E19: [1] | F19: [2] = [1] + ZUS + PIT | G19: [3] = [2] x 20,5% | H19: [4] = [2] + [3] | I19: [5] | J19: [6] = [4] + [5] | W19: Odkurzanie powierzchni wykładzinowej
D20: stanowisko | E20: Netto | F20: Brutto pracownika | G20: ZUS pracodawcy zł. 20,5% | H20: Koszt pracodawcy (Brutto pracodawcy) | I20: Marża oraz koszty dodatkowe | J20: T&M | K20: Mercury | L20: FindWork | M20: Logis | N20: ArtVending | O20: 3D | P20: Perfecta | Q20: AB OVO | W20: Opróżnianie koszy i wymiana wkładów foliowych
D21: Pracownik porządkowy | E21: 13 | F21: 17.37 | G21: =F21*20.5% -> 3.56085 | H21: =F21+G21 -> 20.93085 | I21: marża + koszt transportu + koszt mieszkania + koszt badań itd.. | J21: 24.1 | K21: 24.64 | L21: 24.13 | M21: 23.78 | N21: 22.43 | O21: 23.28 | P21: 21.78 | Q21: 24.66 | W21: Opróżnianie koszy i wymiana wkładów foliowych (wraz z pojemnikami niszczarek)
D22: Jum Buster | E22: 13.5 | F22: 18.05 | G22: =F22*20.5% -> 3.70025 | H22: =F22+G22 -> 21.75025 | J22: 25 | K22: 26.19 | L22: 25.01 | M22: 24.32 | N22: 23.32 | O22: 23.82 | P22: 22.82 | Q22: 25.96 | W22: Opróżnianie koszy i wymiana worków
D23: Jum Buster pow. 3m | E23: 13.5 | F23: 18.05 | G23: =F23*20.5% -> 3.70025 | H23: =F23+G23 -> 21.75025 | J23: 26 | K23: - | L23: - | M23: - | N23: - | O23: - | P23: - | Q23: - | W23: Opróżnianie nieterminowych produktów z lodówki
D24: Operator wózka widłowego | E24: 14.5 | F24: 19.44 | G24: =F24*20.5% -> 3.9852 | H24: =F24+G24 -> 23.4252 | J24: 27 | K24: 27.7 | L24: 26.78 | M24: 25.38 | N24: 25.24 | O24: 25.38 | P24: 23.88 | Q24: 27.81 | W24: Podlewanie kwiatów
D25: Operator wózka widłowego wysoki skład | E25: 15.5 | F25: 20.72 | G25: =F25*20.5% -> 4.2476 | H25: =F25+G25 -> 24.9676 | J25: 28.5 | K25: - | L25: 26.78 | M25: 26.3 | N25: 26.9 | O25: 26.8 | P25: 24.8 | Q25: 28.91 | W25: Przecieranie drzwi do pomieszczenia z zewnątrz – łącznie z szybką w drzwiach
W26: Przecieranie drzwi szafy przesuwnej oraz listwy przypodłogowej
W27: Przecieranie gaśnic, kontaktów, przycisków ewakuacyjnych zamieszczonych na ścianach
W28: Przecieranie koszy na śmieci
W29: Przecieranie koszy na śmieci wilgotna szmatka
W30: Przecieranie kurzy z zewnętrznych poziomych powierzchni mebli - meble wysokie ( regały)
W31: Przecieranie kurzy z zewnętrznych poziomych powierzchni mebli ( stoły, regały, lada recepcyjna)
W32: Przecieranie lamp wiszących / odkurzanie
W33: Przecieranie lamp zawieszonych nad ladą recepcyjną i usuwanie z nich pajęczyn
W34: Przecieranie na wilgotno koszy na śmieci
W35: Przecieranie na wilgotno nóg krzeseł i stołów oraz samych siedzisk krzeseł
W36: Przecieranie na wilgotno poziomych powierzchni mebli – regałów, szafek, stołów
W37: Przecieranie na wilgotno twardych powierzchni podłóg
W38: Przecieranie na wilgotno zewnętrznych poziomych powierzchni mebli – stoły, blaty
W39: Przecieranie na wilgotno zewnętrznych poziomych powierzchni mebli (biurka, kontenerki, regały, szafki)
W40: Przecieranie na wilgotno zewnętrznych poziomych powierzchni mebli (półki, stoliki, regały)
W41: Przecieranie nóg krzeseł i stołów oraz obudów komputerów i monitorów, drukarek i niszczarek
W42: Przecieranie paneli sterowania klimatyzacji
W43: Przecieranie paneli sterowania klimatyzacji oraz czytników kart dostępu
W44: Przecieranie paneli ściennych na placu głównym
W45: Przecieranie pojemników do zbierania dokumentów
W46: Przecieranie powierzchni pionowych szafek
W47: Przecieranie powierzchni szafek pionowych – drzwi szafek z zewnątrz
W48: Przecieranie powierzchni szafek wewnątrz
W49: Przecieranie powierzchni szafek wewnątrz – półki wewnątrz szafek
W50: Przecieranie powierzchni wysokich mebli
W51: Przecieranie ramek zawieszonych w recepcji
W52: Przecieranie sprzętu RTV (telewizory, niszczarki, kserokopiarki)
W53: Przecieranie sprzętu RTV w pomieszczeniach z kurzu
W54: Przecieranie stołu do piłkarzyków
W55: Przecieranie sufitowych wlotów wentylacyjnych
W56: Przecieranie sufitowych wlotów wentylacyjnych
W57: Przecieranie sufitowych wylotów wentylacyjnych
W58: Przecieranie tabliczek przy drzwiowych
W59: Przecieranie zewnętrznych powierzchni poziomych mebli - meble wysokie
W60: Regał z książkami - przetarcie całości półek
W61: Ścieranie pasów farby tablicowej suchościeralnej
W62: Usuwanie miejscowych plam z wykładzin i dywanów
W63: Usuwanie pajęczyn
W64: Usuwanie pajęczyn, kurzu
W65: Usuwanie plam z wykładzin i dywanów
W66: Utrzymanie czystości ekspresu - cykl mycia oraz mycie zewnętrznych elementów ruchomych
W67: Utrzymanie czystości lodówki do ekspresu - mycie lodówki do ekspresu z zewnątrz
W68: Utrzymanie czystości pojemnika na mleko w lodówce do ekspresu – mycie ręczne pojemnika
W69: Uzupełnianie mydła do podajnika
W70: Uzupełnianie papierów toaletowych do podajnika
W71: Uzupełnianie ręczników papierowych do podajnika
W72: Wycieranie drzwi wraz z ościeżnicą, parapetów i kontaktów
W73: Wycieranie klamek drzwi i drzwi
W74: Wycieranie klamek drzwi i drzwi od wewnątrz
W75: Wycieranie klamek drzwi i drzwi w całości
W76: Wycieranie na wilgotno drzwi i parapetów
W77: Wycieranie na wilgotno drzwi wejściowych przeszklonych (miejsca zabrudzeń)
W78: Wycieranie przeszkleń – bieżące zabrudzenia
W79: Wynoszenie śmieci do kontenerów zbiorczych znajdujących się na terenie biurowca, łącznie ze śmieciami wielkogabarytowymi (np. palety, duże kartony)
W80: Zbieranie kubków i składanie do zmywarek, rozładowywanie zmywarki, domywanie brudnych naczyń ręcznie
W81: Zmywanie tablic suchościeralnych
W82: Przecieranie na wilgotno luster
W83: Mycie kabin prysznicowych
W84: Mycie i dezynfekca toalet
W85: Mycie i dezynfekcja pisuarów

Sheet Dane kadrowe (hidden)
A1: Umowa o pracę
A3: Wskaźniki dla UoP liczone na podstawie stawki netto/rbh [zł]
A5: stawka netto/rbh [zł] | B5: wskaźnik ubruttowienia
A6: 13 | B6: 1.3615
A7: 13.5 | B7: 1.363902116
A8: 14 | B8: 1.3655
A9: 14.5 | B9: 1.3676
A10: 15 | B10: 1.369
A11: 15.5 | B11: 1.3708
A12: 16 | B12: 1.372
A13: 17 | B13: 1.3747
A14: 18 | B14: 1.3771
A15: 19 | B15: 1.3792
A16: 20 | B16: 1.3811
A17: 21 | B17: 1.3884
A18: 22 | B18: 1.3884
A19: 23 | B19: 1.3884
A20: 24 | B20: 1.3884
A21: 25 | B21: 1.3884
A22: 26 | B22: 1.3933
A23: 27 | B23: 1.3933
A24: 28 | B24: 1.3933
A25: 29 | B25: 1.3933
A26: 30 | B26: 1.3933
A30: Umowa zlecenie
A31: Stawka netto za 1h | B31: wskaźnik ubruttowienia
A32: 13 | B32: 1.3233 | D32: Dla umowy zlecenie przyjmujemy stały wskaźnik:
A33: 13.5 | B33: 1.3235
A34: 14 | B34: 1.3233 | D34: 1.3235
A35: 14.5 | B35: 1.3234
A36: 15 | B36: 1.3235
A37: 15.5 | B37: 1.3233
A41: Koszty ZUS pracodawcy (dotyczą UoP i Umowy zlecenie)
A43: HORIZONT | E43: CEJS
A44: Rodzaj ubezpieczenia | B44: Sposób finansowania i stopa % składki | E44: Rodzaj ubezpieczenia | F44: Sposób finansowania i stopa % składki
B45: pracodawca | C45: pracownik | F45: pracodawca | G45: pracownik
A46: Emerytalne | B46: 0.0976 | C46: 0.0976 | E46: Emerytalne | F46: 0.0976 | G46: 0.0976
A47: Rentowe | B47: 0.065 | C47: 0.015 | E47: Rentowe | F47: 0.065 | G47: 0.015
A48: Chorobowe | B48: - | C48: 0.0245 | E48: Chorobowe | F48: - | G48: 0.0245
A49: Wypadkowe | B49: 0.0167 | C49: - | E49: Wypadkowe | F49: 0.0096 | G49: -
A50: Zdrowotne | B50: - | C50: 0.09 | E50: Zdrowotne | F50: - | G50: 0.09
A51: FP | B51: 0.0245 | C51: - | E51: FP | F51: 0.0245 | G51: -
A52: FGŚP | B52: 0.001 | C52: - | E52: FGŚP | F52: 0.001 | G52: -
B53: =SUM(B46:B52) -> 0.2048 | C53: =SUM(C46:C52) -> 0.2271 | F53: =SUM(F46:F52) -> 0.1977 | G53: =SUM(G46:G52) -> 0.2271

Sheet PRACOWNICY
C2: PRACOWNICY
C4: WYKAZ PRACOWNIKÓW
A5: Podsumowanie | C5: Lp | D5: Typ pracownika | E5: Opis stanowiska | F5: Sezon | G5: Rodzaj umowy | H5: Od godziny | I5: Do godziny | J5: rbh/dzień | K5: Ilość osób | L5: Ilość dni pracujących w tygodniu | M5: Ilość dni w tygodniu | N5: Średnio dni w miesiącu | O5: Ilośc miesięcy w roku | P5: Ilość pracujących miesięcy | Q5: rbh/m-c | R5: zł netto/rbh stawka minimum | S5: nowa stawka zł netto/rbh | T5: zł netto/rbh | U5: Netto pracownika | V5: Brutto pracownika | W5: Wskaźnik pracodawcy ZUS | X5: Brutto pracodawcy | Y5: Chorobowe | Z5: Urlopowe | AA5: Zakwaterowanie | AB5: Dojazd | AC5: Koszt pracodawcy
A6: =IF(G6="","",G6&" - stawka "&TEXT(R6,"# ##0,00 zł")) -> zlecenie - stawka 24,50 zł | C6: 1 | D6: Pracownik porządkowy - umowa zlecenie | F6: Cały rok | G6: =IF(D6="","",MID(D6,FIND("umowa",D6)+6,100)) -> zlecenie | J6: =I6-H6+IF(I6<H6,1,0) -> 0 | M6: 7 | N6: 29.4 | O6: 12 | P6: =IFERROR(VLOOKUP(F6,'Dane wyjściowe'!$A$1:$B$4,2,0),"") -> 12 | Q6: =IFERROR(CEILING(K6*J6*N6/M6*L6*P6/O6,TIME(1,0,0))*24,"") -> 0 | R6: =IF(D6="","",VLOOKUP(D6,$D$36:$E$46,2,0)) -> 24.5 | T6: =IF(R6="","",MAX(R6:S6)) -> 24.5 | U6: =IF(Q6="","",Q6*T6) -> 0 | V6: =IFERROR(IF(LEFT(G6,7)="O pracę",U6*VLOOKUP(PRACOWNICY!T6,'Dane kadrowe'!$A$5:$B$26,2,1),U6*'Dane kadrowe'!$D$34),"") -> 0 | W6: =IF(Q6="","",'Dane kadrowe'!$B$53) -> 0.2048 | X6: =IF(V6="","",V6*(1+W6)) -> 0 | Y6: =IF(LEFT(G6,7)='Dane wyjściowe'!$D$2,5%*X6,"") ->  | Z6: =IF(LEFT(G6,7)='Dane wyjściowe'!$D$2,10%*X6,"") ->  | AC6: =IF(X6="","",SUM(X6:AB6)) -> 0
A7: =IF(G7="","",G7&" - stawka "&TEXT(R7,"# ##0,00 zł")) -> zlecenie - stawka 24,50 zł | C7: 2 | D7: Pracownik porządkowy - umowa zlecenie | F7: Cały rok | G7: =IF(D7="","",MID(D7,FIND("umowa",D7)+6,100)) -> zlecenie | J7: =I7-H7+IF(I7<H7,1,0) -> 0 | M7: 7 | N7: 29.4 | O7: 12 | P7: =IFERROR(VLOOKUP(F7,'Dane wyjściowe'!$A$1:$B$4,2,0),"") -> 12 | Q7: =IFERROR(CEILING(K7*J7*N7/M7*L7*P7/O7,TIME(1,0,0))*24,"") -> 0 | R7: 24.5 | T7: =IF(R7="","",MAX(R7:S7)) -> 24.5 | U7: =IF(Q7="","",Q7*T7) -> 0 | V7: =IFERROR(IF(LEFT(G7,7)="O pracę",U7*VLOOKUP(PRACOWNICY!T7,'Dane kadrowe'!$A$5:$B$26,2,1),U7*'Dane kadrowe'!$D$34),"") -> 0 | W7: =IF(Q7="","",'Dane kadrowe'!$B$53) -> 0.2048 | X7: =IF(V7="","",V7*(1+W7)) -> 0 | Y7: =IF(LEFT(G7,7)='Dane wyjściowe'!$D$2,5%*X7,"") ->  | Z7: =IF(LEFT(G7,7)='Dane wyjściowe'!$D$2,10%*X7,"") ->  | AC7: =IF(X7="","",SUM(X7:AB7)) -> 0
C8: 3 | J8: 0 | M8: 7 | N8: 29.4 | O8: 12 | P8: =IFERROR(VLOOKUP(F8,'Dane wyjściowe'!$A$1:$B$4,2,0),"") ->  | V8: =IFERROR(IF(LEFT(G8,7)="O pracę",U8*VLOOKUP(PRACOWNICY!T8,'Dane kadrowe'!$A$5:$B$26,2,1),U8*'Dane kadrowe'!$D$34),"") ->  | W8: =IF(Q8="","",'Dane kadrowe'!$B$53) ->  | X8: =IF(V8="","",V8*(1+W8)) ->  | Y8: =IF(LEFT(G8,7)='Dane wyjściowe'!$D$2,5%*X8,"") ->  | Z8: =IF(LEFT(G8,7)='Dane wyjściowe'!$D$2,10%*X8,"") ->  | AC8: =IF(X8="","",SUM(X8:AB8)) -> 
C9: 4 | J9: 0 | M9: 7 | N9: 29.4 | O9: 12 | P9: =IFERROR(VLOOKUP(F9,'Dane wyjściowe'!$A$1:$B$4,2,0),"") ->  | V9: =IFERROR(IF(LEFT(G9,7)="O pracę",U9*VLOOKUP(PRACOWNICY!T9,'Dane kadrowe'!$A$5:$B$26,2,1),U9*'Dane kadrowe'!$D$34),"") ->  | W9: =IF(Q9="","",'Dane kadrowe'!$B$53) ->  | Y9: =IF(LEFT(G9,7)='Dane wyjściowe'!$D$2,5%*X9,"") ->  | Z9: =IF(LEFT(G9,7)='Dane wyjściowe'!$D$2,10%*X9,"") -> 
C10: 5 | J10: 0 | M10: 7 | N10: 29.4 | O10: 12 | P10: =IFERROR(VLOOKUP(F10,'Dane wyjściowe'!$A$1:$B$4,2,0),"") ->  | V10: =IFERROR(IF(LEFT(G10,7)="O pracę",U10*VLOOKUP(PRACOWNICY!T10,'Dane kadrowe'!$A$5:$B$26,2,1),U10*'Dane kadrowe'!$D$34),"") ->  | W10: =IF(Q10="","",'Dane kadrowe'!$B$53) ->  | Y10: =IF(LEFT(G10,7)='Dane wyjściowe'!$D$2,5%*X10,"") ->  | Z10: =IF(LEFT(G10,7)='Dane wyjściowe'!$D$2,10%*X10,"") -> 
C11: 6 | J11: 0 | M11: 7 | N11: 29.4 | O11: 12 | P11: =IFERROR(VLOOKUP(F11,'Dane wyjściowe'!$A$1:$B$4,2,0),"") ->  | V11: =IFERROR(IF(LEFT(G11,7)="O pracę",U11*VLOOKUP(PRACOWNICY!T11,'Dane kadrowe'!$A$5:$B$26,2,1),U11*'Dane kadrowe'!$D$34),"") ->  | W11: =IF(Q11="","",'Dane kadrowe'!$B$53) ->  | Y11: =IF(LEFT(G11,7)='Dane wyjściowe'!$D$2,5%*X11,"") ->  | Z11: =IF(LEFT(G11,7)='Dane wyjściowe'!$D$2,10%*X11,"") -> 
C12: 7 | J12: 0 | M12: 7 | N12: 29.4 | O12: 12 | P12: =IFERROR(VLOOKUP(F12,'Dane wyjściowe'!$A$1:$B$4,2,0),"") ->  | V12: =IFERROR(IF(LEFT(G12,7)="O pracę",U12*VLOOKUP(PRACOWNICY!T12,'Dane kadrowe'!$A$5:$B$26,2,1),U12*'Dane kadrowe'!$D$34),"") ->  | W12: =IF(Q12="","",'Dane kadrowe'!$B$53) ->  | Y12: =IF(LEFT(G12,7)='Dane wyjściowe'!$D$2,5%*X12,"") ->  | Z12: =IF(LEFT(G12,7)='Dane wyjściowe'!$D$2,10%*X12,"") -> 
C13: 8 | J13: 0 | M13: 7 | N13: 29.4 | O13: 12 | P13: =IFERROR(VLOOKUP(F13,'Dane wyjściowe'!$A$1:$B$4,2,0),"") ->  | V13: =IFERROR(IF(LEFT(G13,7)="O pracę",U13*VLOOKUP(PRACOWNICY!T13,'Dane kadrowe'!$A$5:$B$26,2,1),U13*'Dane kadrowe'!$D$34),"") ->  | W13: =IF(Q13="","",'Dane kadrowe'!$B$53) ->  | Y13: =IF(LEFT(G13,7)='Dane wyjściowe'!$D$2,5%*X13,"") ->  | Z13: =IF(LEFT(G13,7)='Dane wyjściowe'!$D$2,10%*X13,"") -> 
C14: 9 | J14: 0 | M14: 7 | N14: 29.4 | O14: 12 | P14: =IFERROR(VLOOKUP(F14,'Dane wyjściowe'!$A$1:$B$4,2,0),"") ->  | V14: =IFERROR(IF(LEFT(G14,7)="O pracę",U14*VLOOKUP(PRACOWNICY!T14,'Dane kadrowe'!$A$5:$B$26,2,1),U14*'Dane kadrowe'!$D$34),"") ->  | W14: =IF(Q14="","",'Dane kadrowe'!$B$53) ->  | Y14: =IF(LEFT(G14,7)='Dane wyjściowe'!$D$2,5%*X14,"") ->  | Z14: =IF(LEFT(G14,7)='Dane wyjściowe'!$D$2,10%*X14,"") -> 
C15: 10 | J15: 0 | M15: 7 | N15: 29.4 | O15: 12 | P15: =IFERROR(VLOOKUP(F15,'Dane wyjściowe'!$A$1:$B$4,2,0),"") ->  | V15: =IFERROR(IF(LEFT(G15,7)="O pracę",U15*VLOOKUP(PRACOWNICY!T15,'Dane kadrowe'!$A$5:$B$26,2,1),U15*'Dane kadrowe'!$D$34),"") ->  | W15: =IF(Q15="","",'Dane kadrowe'!$B$53) ->  | Y15: =IF(LEFT(G15,7)='Dane wyjściowe'!$D$2,5%*X15,"") ->  | Z15: =IF(LEFT(G15,7)='Dane wyjściowe'!$D$2,10%*X15,"") -> 
C16: 11 | J16: 0 | M16: 7 | N16: 29.4 | O16: 12 | P16: =IFERROR(VLOOKUP(F16,'Dane wyjściowe'!$A$1:$B$4,2,0),"") ->  | U16: =IF(Q16="","",Q16*T16) ->  | V16: =IFERROR(IF(LEFT(G16,7)="O pracę",U16*VLOOKUP(PRACOWNICY!T16,'Dane kadrowe'!$A$5:$B$26,2,1),U16*'Dane kadrowe'!$D$34),"") ->  | W16: =IF(Q16="","",'Dane kadrowe'!$B$53) ->  | X16: =IF(V16="","",V16*(1+W16)) ->  | Y16: =IF(LEFT(G16,7)='Dane wyjściowe'!$D$2,5%*X16,"") ->  | Z16: =IF(LEFT(G16,7)='Dane wyjściowe'!$D$2,10%*X16,"") ->  | AC16: =IF(X16="","",SUM(X16:AB16)) -> 
C17: 12 | J17: 0 | M17: 7 | N17: 29.4 | O17: 12 | P17: =IFERROR(VLOOKUP(F17,'Dane wyjściowe'!$A$1:$B$4,2,0),"") ->  | U17: =IF(Q17="","",Q17*T17) ->  | V17: =IFERROR(IF(LEFT(G17,7)="O pracę",U17*VLOOKUP(PRACOWNICY!T17,'Dane kadrowe'!$A$5:$B$26,2,1),U17*'Dane kadrowe'!$D$34),"") ->  | W17: =IF(Q17="","",'Dane kadrowe'!$B$53) ->  | X17: =IF(V17="","",V17*(1+W17)) ->  | Y17: =IF(LEFT(G17,7)='Dane wyjściowe'!$D$2,5%*X17,"") ->  | Z17: =IF(LEFT(G17,7)='Dane wyjściowe'!$D$2,10%*X17,"") ->  | AC17: =IF(X17="","",SUM(X17:AB17)) -> 
C18: 13 | J18: 0 | M18: 7 | N18: 29.4 | O18: 12 | P18: =IFERROR(VLOOKUP(F18,'Dane wyjściowe'!$A$1:$B$4,2,0),"") ->  | V18: =IFERROR(IF(LEFT(G18,7)="O pracę",U18*VLOOKUP(PRACOWNICY!T18,'Dane kadrowe'!$A$5:$B$26,2,1),U18*'Dane kadrowe'!$D$34),"") ->  | W18: =IF(Q18="","",'Dane kadrowe'!$B$53) ->  | Y18: =IF(LEFT(G18,7)='Dane wyjściowe'!$D$2,5%*X18,"") ->  | Z18: =IF(LEFT(G18,7)='Dane wyjściowe'!$D$2,10%*X18,"") -> 
C19: 14 | J19: 0 | M19: 7 | N19: 29.4 | O19: 12 | P19: =IFERROR(VLOOKUP(F19,'Dane wyjściowe'!$A$1:$B$4,2,0),"") ->  | V19: =IFERROR(IF(LEFT(G19,7)="O pracę",U19*VLOOKUP(PRACOWNICY!T19,'Dane kadrowe'!$A$5:$B$26,2,1),U19*'Dane kadrowe'!$D$34),"") ->  | W19: =IF(Q19="","",'Dane kadrowe'!$B$53) ->  | Y19: =IF(LEFT(G19,7)='Dane wyjściowe'!$D$2,5%*X19,"") ->  | Z19: =IF(LEFT(G19,7)='Dane wyjściowe'!$D$2,10%*X19,"") -> 
C20: 15 | J20: 0 | M20: 7 | N20: 29.4 | O20: 12 | P20: =IFERROR(VLOOKUP(F20,'Dane wyjściowe'!$A$1:$B$4,2,0),"") ->  | V20: =IFERROR(IF(LEFT(G20,7)="O pracę",U20*VLOOKUP(PRACOWNICY!T20,'Dane kadrowe'!$A$5:$B$26,2,1),U20*'Dane kadrowe'!$D$34),"") ->  | W20: =IF(Q20="","",'Dane kadrowe'!$B$53) ->  | Y20: =IF(LEFT(G20,7)='Dane wyjściowe'!$D$2,5%*X20,"") ->  | Z20: =IF(LEFT(G20,7)='Dane wyjściowe'!$D$2,10%*X20,"") -> 
C21: 16 | J21: 0 | M21: 7 | N21: 29.4 | O21: 12 | P21: =IFERROR(VLOOKUP(F21,'Dane wyjściowe'!$A$1:$B$4,2,0),"") ->  | V21: =IFERROR(IF(LEFT(G21,7)="O pracę",U21*VLOOKUP(PRACOWNICY!T21,'Dane kadrowe'!$A$5:$B$26,2,1),U21*'Dane kadrowe'!$D$34),"") ->  | W21: =IF(Q21="","",'Dane kadrowe'!$B$53) ->  | Y21: =IF(LEFT(G21,7)='Dane wyjściowe'!$D$2,5%*X21,"") ->  | Z21: =IF(LEFT(G21,7)='Dane wyjściowe'!$D$2,10%*X21,"") -> 
C22: 17 | J22: 0 | M22: 7 | N22: 29.4 | O22: 12 | P22: =IFERROR(VLOOKUP(F22,'Dane wyjściowe'!$A$1:$B$4,2,0),"") ->  | V22: =IFERROR(IF(LEFT(G22,7)="O pracę",U22*VLOOKUP(PRACOWNICY!T22,'Dane kadrowe'!$A$5:$B$26,2,1),U22*'Dane kadrowe'!$D$34),"") ->  | W22: =IF(Q22="","",'Dane kadrowe'!$B$53) ->  | Y22: =IF(LEFT(G22,7)='Dane wyjściowe'!$D$2,5%*X22,"") ->  | Z22: =IF(LEFT(G22,7)='Dane wyjściowe'!$D$2,10%*X22,"") -> 
C23: 18 | J23: 0 | M23: 7 | N23: 29.4 | O23: 12 | P23: =IFERROR(VLOOKUP(F23,'Dane wyjściowe'!$A$1:$B$4,2,0),"") ->  | V23: =IFERROR(IF(LEFT(G23,7)="O pracę",U23*VLOOKUP(PRACOWNICY!T23,'Dane kadrowe'!$A$5:$B$26,2,1),U23*'Dane kadrowe'!$D$34),"") ->  | W23: =IF(Q23="","",'Dane kadrowe'!$B$53) ->  | Y23: =IF(LEFT(G23,7)='Dane wyjściowe'!$D$2,5%*X23,"") ->  | Z23: =IF(LEFT(G23,7)='Dane wyjściowe'!$D$2,10%*X23,"") -> 
C24: SUMA | J24: =SUMPRODUCT(J6:J23,K6:K23) -> 0 | K24: =SUM(K6:K23) -> 0 | Q24: =SUM(Q6:Q23) -> 0 | U24: =SUM(U6:U23) -> 0 | V24: =SUM(V6:V23) -> 0 | X24: =SUM(X6:X23) -> 0 | Y24: 0 | Z24: 0 | AA24: 0 | AB24: 0 | AC24: 0
C26: Koordynacja - nadzór / Koordynator mobliny
C27: Lp | D27: Typ pracownika | E27: Opis stanowiska | F27: Sezon | G27: Rodzaj umowy | H27: rbh/dzień | I27: Ilość osób | J27: Ilość dni pracujących w tygodniu | K27: Ilość dni w tygodniu | L27: Średnio dni w miesiącu | M27: Ilośc miesięcy w roku | N27: Ilość pracujących miesięcy | O27: rbh/m-c | P27: zł netto/rbh stawka minimum | Q27: nowa stawka zł netto/rbh | R27: zł netto/rbh | S27: Netto pracownika | T27: Brutto pracownika | U27: Wskaźnik pracodawcy ZUS | V27: Brutto pracodawcy | W27: Zakwaterowanie | X27: Dojazd | Y27: Koszt pracodawcy
C28: 1 | D28: Główny kierownik obiektu (przyjezdny) - umowa o pracę | E28: Nadzór | F28: Cały rok | G28: =IF(D28="","",MID(D28,FIND("umowa",D28)+6,100)) -> o pracę | H28: 1 | I28: 1 | J28: 1 | K28: 7 | L28: 29.4 | M28: 12 | N28: =IFERROR(VLOOKUP(F28,'Dane wyjściowe'!$A$1:$B$4,2,0),"") -> 12 | O28: =IFERROR(CEILING(I28*H28*L28/K28*J28*N28/M28,TIME(1,0,0)),"") -> 4.208333333 | P28: =IF(D28="","",VLOOKUP(D28,$D$36:$E$46,2,0)) -> 33 | R28: =IF(P28="","",MAX(P28:Q28)) -> 33 | S28: =IFERROR(R28*O28,"") -> 138.875 | T28: =IFERROR(IF(LEFT(G28,7)="O pracę",S28*VLOOKUP(PRACOWNICY!R28,'Dane kadrowe'!$A$5:$B$26,2,1),S28*'Dane kadrowe'!$D$34),"") -> 193.4945375 | U28: =IF(O28="","",'Dane kadrowe'!$B$53) -> 0.2048 | V28: =IF(T28="","",T28*(1+U28)) -> 233.1222188 | Y28: =IF(V28="","",V28+W28+X28) -> 233.1222188
C30: Dodatki funcyjne / dojazdy / inne
C31: Lp | D31: Rodzaj dodatku | E31: Opis dodatku | F31: Rodzaj umowy | G31: Kwota całkowita netto | H31: Brutto pracownika | I31: Wskaźnik pracodawcy ZUS | J31: Koszt pracodawcy
C32: 1 | D32: Inne dodatki dla pracowników / dojazdy | H32: =IF(F32="","",IFERROR(IF(LEFT(F32,7)="O pracę",G32*VLOOKUP(G32,'Dane kadrowe'!$A$5:$B$26,2,1),G32*'Dane kadrowe'!$D$34),"")) ->  | I32: =IF(F32="","",'Dane kadrowe'!$B$53) ->  | J32: =IF(H32="","",H32*(1+I32)) -> 
C33: 2 | D33: Inne dodatki dla pracowników | H33: =IF(F33="","",IFERROR(IF(LEFT(F33,7)="O pracę",G33*VLOOKUP(G33,'Dane kadrowe'!$A$5:$B$26,2,1),G33*'Dane kadrowe'!$D$34),"")) ->  | I33: =IF(F33="","",'Dane kadrowe'!$B$53) ->  | J33: =IF(H33="","",H33*(1+I33)) -> 
D36: TYP PRACOWNIKA | E36: Minimalne stawki netto dla pracowników
D37: Pracownik porządkowy - umowa o pracę | E37: 21.5
D38: Pracownik porządkowy - umowa zlecenie | E38: 24.5
D39: Pracownik porządkowy (teren zewnętrzny) - umowa o pracę | E39: 21.5
D40: Pracownik porządkowy (teren zewnętrzny) - umowa zlecenie | E40: 24.5
D41: Operator maszyny czyszczącej - umowa o pracę | E41: 21.5
D42: Operator maszyny czyszczącej - umowa zlecenie | E42: 24.5
D43: Koordynator - umowa zlecenie | E43: 27
D44: Koordynator - umowa o pracę | E44: 27
D45: Główny kierownik obiektu (przyjezdny) - umowa o pracę | E45: 33

Sheet Pracownicy podsuma (hidden)
B2: Etykiety wierszy | C2: Suma z rbh/m-c | D2: Suma z Brutto pracodawcy z rezerwami
C3: 0 | D3: 0 | G3: tabela potrzebna wyłącznie do Wykorzystania budżetu
B4: Umowa o pracę - stawka 15,00 zł | C4: 168 | D4: 4018.273056
B5: Umowa zlecenie - stawka 13,50 zł | C5: 252 | D5: 5424.668626
B6: Suma końcowa | C6: 420 | D6: 9442.941682

Sheet MASZYNY SPRZĘT
D2: MASZYNY / SPRZĘT
D4: Maszyny sprzątające
C5: =COUNTIF(C7:C29,2) -> 0 | D5: Lp | E5: Nazwa maszyny | F5: Wydajność maszyny mkw/h | G5: Szerokość czyszczenia mm | H5: Czas pracy maszyny | I5: Cena | J5: Cena z wynajmem | K5: Okres spłaty [msc] | L5: Miesięczny koszt | M5: Eksploatacja [msc] | N5: Cena 1 szt. do oferty [msc] | O5: Ilość maszyn | P5: Kwota do oferty | Q5: Eksploatacja kwotowo (1 szt.) | R5: Czy uwzględniać | S5: Wskaźnik eksploatacji
A6: =COUNTIF($R$6:R6,"tak") -> 0 | B6: =IF(A6>=MAX($A6:A$6),"TAK","NIE") -> TAK | C6: =IF(B6="TAK",A6,"") -> 0 | D6: 1 | E6: Tennant T16 lit-jon + H2O + ES | F6: 8200/7000 | G6: 910 | H6: ok. 4h | I6: 103500 | J6: =I6*1.2 -> 124200 | K6: 36 | L6: =IFERROR((J6/K6)*O6,0) -> 0 | M6: =L6*0.2 -> 0 | N6: =IFERROR((J6/K6)*S6,0) -> 4140 | O6: 0 | P6: =L6*S6 -> 0 | Q6: =J6*S6-J6 -> 24840 | R6: =IF(O6>0,"tak","nie") -> nie | S6: 1.2
A7: =COUNTIF($R$6:R7,"tak") -> 0 | B7: =IF(A7>MAX($A$6:A6),"TAK","NIE") -> NIE | C7: =IF(B7="TAK",A7,"") ->  | D7: =D6+1 -> 2 | E7: Tennant T16 lit-jon + H2O | F7: 8200/7000 | G7: 910 | H7: ok. 4h | I7: 96000 | J7: =I7*1.2 -> 115200 | K7: 36 | L7: =IFERROR((J7/K7)*O7,0) -> 0 | M7: 0 | N7: =IFERROR((J7/K7)*S7,0) -> 3840 | O7: 0 | P7: =L7*S7 -> 0 | Q7: =J7*S7-J7 -> 23040 | R7: =IF(O7>0,"tak","nie") -> nie | S7: 1.2
A8: =COUNTIF($R$6:R8,"tak") -> 0 | B8: =IF(A8>MAX($A$6:A7),"TAK","NIE") -> NIE | D8: =D7+1 -> 3 | E8: Tennant T16 lit-jon | F8: 8200/7000 | G8: 910 | H8: ok. 4h | I8: 90000 | J8: =I8*1.2 -> 108000 | K8: 36 | L8: =IFERROR((J8/K8)*O8,0) -> 0 | M8: =L8*0.2 -> 0 | N8: =IFERROR((J8/K8)*S8,0) -> 3600 | O8: 0 | P8: =L8*S8 -> 0 | Q8: =J8*S8-J8 -> 21600 | R8: nie | S8: 1.2
A9: =COUNTIF($R$6:R9,"tak") -> 0 | B9: =IF(A9>MAX($A$6:A8),"TAK","NIE") -> NIE | D9: 4 | E9: Taski Swingo 5000 200 lit-jon | F9: 5000 | G9: 1005 | H9: ok. 6,5h | I9: 74500 | J9: 89400 | K9: 36 | L9: 0 | M9: 0 | N9: 2980 | O9: 0 | P9: 0 | Q9: 17880 | R9: nie | S9: 1.2
A10: =COUNTIF($R$6:R10,"tak") -> 0 | B10: =IF(A10>MAX($A$6:A9),"TAK","NIE") -> NIE | D10: 5 | E10: Tennant T12 lit-jon + H2O | F10: 6700 / 4500 | G10: 800 | H10: ok. 3,5h | I10: 78000 | J10: 93600 | K10: 36 | L10: 0 | M10: 0 | N10: 3120 | O10: 0 | P10: 0 | Q10: 18720 | R10: nie | S10: 1.2
A11: =COUNTIF($R$6:R11,"tak") -> 0 | B11: =IF(A11>MAX($A$6:A10),"TAK","NIE") -> NIE | D11: 6 | E11: Tennant T12 lit-jon | F11: 6700 / 4500 | G11: 800 | H11: ok. 3,5h | I11: 73500 | J11: 88200 | K11: 36 | L11: 0 | M11: 0 | N11: 2940 | O11: 0 | P11: 0 | Q11: 17640 | R11: nie | S11: 1.2
A12: =COUNTIF($R$6:R12,"tak") -> 0 | B12: =IF(A12>MAX($A$6:A11),"TAK","NIE") -> NIE | D12: 7 | E12: Taski Swingo 4000 200 lit-jon | F12: 4000 | G12: 850 | H12: ok. 4,5 h | I12: 64750 | J12: 77700 | K12: 36 | L12: 0 | M12: 0 | N12: 2590 | O12: 0 | P12: 0 | Q12: 15540 | R12: nie | S12: 1.2
A13: =COUNTIF($R$6:R13,"tak") -> 0 | B13: =IF(A13>MAX($A$6:A12),"TAK","NIE") -> NIE | D13: 8 | E13: Tennant T7 lit-jon + H2O | F13: 5000/3000 | G13: 810 | H13: ok. 3,5h | I13: 58500 | J13: 70200 | K13: 36 | L13: 0 | M13: 0 | N13: 2340 | O13: 0 | P13: 0 | Q13: 14040 | R13: nie | S13: 1.2
A14: =COUNTIF($R$6:R14,"tak") -> 0 | B14: =IF(A14>MAX($A$6:A13),"TAK","NIE") -> NIE | D14: 9 | E14: Tennant T7 lit-jon | F14: 5000/3000 | G14: 810 | H14: ok. 3,5h | I14: 54000 | J14: 64800 | K14: 36 | L14: 0 | M14: 0 | N14: 2160 | O14: 0 | P14: 0 | Q14: 12960 | R14: =IF(O14>0,"tak","nie") -> nie | S14: 1.2
A15: =COUNTIF($R$6:R15,"tak") -> 0 | B15: =IF(A15>MAX($A$6:A14),"TAK","NIE") -> NIE | D15: 10 | E15: Numatic TVL850 (150T - 3 akumulatory) | F15: 4250 | G15: 650 / 750 / 850 | H15: ok. 3,5h | I15: 52500 | J15: 63000 | K15: 36 | L15: 0 | M15: 0 | N15: 2100 | O15: 0 | P15: 0 | Q15: 12600 | R15: nie | S15: 1.2
A16: =COUNTIF($R$6:R16,"tak") -> 0 | B16: =IF(A16>MAX($A$6:A15),"TAK","NIE") -> NIE | D16: 11 | E16: Numatic TVL850 (200T - 4 akumulatory) | F16: 4250 | G16: 650 / 750 / 850 | H16: ok. 4,5h | I16: 55500 | J16: 66600 | K16: 36 | L16: 0 | M16: 0 | N16: 2220 | O16: 0 | P16: 0 | Q16: 13320 | R16: nie | S16: 1.2
A17: =COUNTIF($R$6:R17,"tak") -> 0 | B17: =IF(A17>MAX($A$6:A16),"TAK","NIE") -> NIE | D17: 12 | E17: Numatic TVL850 (300T - 6 akumulatorów) | F17: 4250 | G17: 650 / 750 / 850 | H17: ok. 6,5h | I17: 61500 | J17: 73800 | K17: 36 | L17: 0 | M17: 0 | N17: 2460 | O17: 0 | P17: 0 | Q17: 14760 | R17: nie | S17: 1.2
A18: =COUNTIF($R$6:R18,"tak") -> 0 | B18: =IF(A18>MAX($A$6:A17),"TAK","NIE") -> NIE | D18: 13 | E18: Maszyna samojezdna Tennant T581 | F18: 3290 / 2040 | G18: 510 | H18: ok. 2,5h | I18: 37500 | J18: 45000 | K18: 36 | L18: 0 | M18: 0 | N18: 1500 | O18: 0 | P18: 0 | Q18: 9000 | R18: nie | S18: 1.2
A19: =COUNTIF($R$6:R19,"tak") -> 0 | B19: =IF(A19>MAX($A$6:A18),"TAK","NIE") -> NIE | D19: 14 | E19: Maszyna samojezdna Nilfisk SC 3500 | F19: 4260/2980 | G19: 710 | H19: ok. 4h | I19: 35300 | J19: 42360 | K19: 36 | L19: 0 | M19: 0 | N19: 1412 | O19: 0 | P19: 0 | Q19: 8472 | R19: nie | S19: 1.2
A20: =COUNTIF($R$6:R20,"tak") -> 0 | B20: =IF(A20>MAX($A$6:A19),"TAK","NIE") -> NIE | D20: 15 | E20: Maszyna Samojezdna Numatic CRL 8072/100T | F20: 3000 | G20: 720 | H20: ok. 3 h | I20: 43500 | J20: 52200 | K20: 36 | L20: 0 | M20: 0 | N20: 1740 | O20: 0 | P20: 0 | Q20: 10440 | R20: nie | S20: 1.2
A21: =COUNTIF($R$6:R21,"tak") -> 0 | B21: =IF(A21>MAX($A$6:A20),"TAK","NIE") -> NIE | D21: 16 | E21: Maszyna samojezdna Taski Swingo 2500 lit-jon | F21: 2500 | G21: 700 | H21: ok. 6 h | I21: 56600 | J21: 67920 | K21: 36 | L21: 0 | M21: 0 | N21: 2264 | O21: 0 | P21: 0 | Q21: 13584 | R21: nie | S21: 1.2
A22: =COUNTIF($R$6:R22,"tak") -> 0 | B22: =IF(A22>MAX($A$6:A21),"TAK","NIE") -> NIE | D22: 17 | E22: Maszyna samojezdna Taski Swingo 2100 lit-jon | F22: 2100 | G22: 550 | H22: ok. 4 h | I22: 42800 | J22: 51360 | K22: 36 | L22: 0 | M22: 0 | N22: 1712 | O22: 0 | P22: 0 | Q22: =J22*S22-J22 -> 10272 | R22: nie | S22: 1.2
A23: =COUNTIF($R$6:R23,"tak") -> 0 | B23: =IF(A23>MAX($A$6:A22),"TAK","NIE") -> NIE | D23: 18 | E23: Maszyna samojezdna Nilfisk SC2000 Full | F23: 2230 | G23: 520 | H23: ok. 4 h | I23: 26150 | J23: 31380 | K23: 36 | L23: 0 | M23: 0 | N23: 1046 | O23: 0 | P23: 0 | Q23: =J23*S23-J23 -> 6276 | R23: nie | S23: 1.2
A24: =COUNTIF($R$6:R24,"tak") -> 0 | B24: =IF(A24>MAX($A$6:A23),"TAK","NIE") -> NIE | D24: 19 | E24: Cleanfix RA565 IBC mały automat samojezdny | F24: 3000 | G24: 1260/500/1050 | H24: ok. 4 h | I24: 30000 | J24: 36000 | K24: 36 | L24: 0 | M24: 0 | N24: 1200 | O24: 0 | P24: 0 | Q24: 7200 | R24: nie | S24: 1.2
A25: =COUNTIF($R$6:R25,"tak") -> 0 | B25: =IF(A25>MAX($A$6:A24),"TAK","NIE") -> NIE | D25: 20 | E25: Maszyna pchana - Numatic TBL4045 lit-fosfor | F25: 1600 | G25: 450 | H25: ok 100 min. | I25: 21800 | J25: 26160 | K25: 36 | L25: 0 | M25: 0 | N25: 872 | O25: 0 | P25: 0 | Q25: 5232 | R25: nie | S25: 1.2
A26: =COUNTIF($R$6:R26,"tak") -> 0 | B26: =IF(A26>MAX($A$6:A25),"TAK","NIE") -> NIE | D26: 21 | E26: Maszyna pchana - Tennant T300 e Li-ion + H2O | F26: 2500 / 1600 | G26: 600 | H26: ok. 3h | I26: 25500 | J26: 30600 | K26: 36 | L26: 0 | M26: 0 | N26: 1020 | O26: 0 | P26: 0 | Q26: 6120 | R26: nie | S26: 1.2
A27: =COUNTIF($R$6:R27,"tak") -> 0 | B27: =IF(A27>MAX($A$6:A26),"TAK","NIE") -> NIE | D27: 22 | E27: Maszyna pchana - Tennant T300 e Li-ion | F27: 2500 / 1600 | G27: 600 | H27: ok. 3h | I27: 22500 | J27: =I27*1.2 -> 27000 | K27: 36 | L27: =IFERROR((J27/K27)*O27,0) -> 0 | M27: 0 | N27: =IFERROR((J27/K27)*S27,0) -> 900 | O27: 0 | P27: 0 | Q27: =J27*S27-J27 -> 5400 | R27: nie | S27: 1.2
A28: =COUNTIF($R$6:R28,"tak") -> 0 | B28: =IF(A28>MAX($A$6:A27),"TAK","NIE") -> NIE | D28: 23 | E28: Maszyna pchana - Taski Swingo 455 lit-jon | F28: 1290 | G28: 455 | H28: ok. 1,5-2h | I28: 18600 | J28: 22320 | K28: 36 | L28: 0 | M28: 0 | N28: 744 | O28: 0 | P28: 0 | Q28: 4464 | R28: nie | S28: 1.2
A29: =COUNTIF($R$6:R29,"tak") -> 0 | B29: =IF(A29>MAX($A$6:A28),"TAK","NIE") -> NIE | D29: 24 | E29: Maszyna pchana - Taski ULTIMAXX 1900 SD43 lit-jon | F29: 968 | G29: 430 | H29: ok. 2 h | I29: 26200 | J29: 31440 | K29: 36 | L29: 0 | M29: 0 | N29: 1048 | O29: 0 | P29: 0 | Q29: 6288 | R29: nie | S29: 1.2
A30: =COUNTIF($R$6:R30,"tak") -> 0 | B30: =IF(A30>MAX($A$6:A29),"TAK","NIE") -> NIE | D30: 25 | E30: Maszyna pchana - Taski ULTIMAXX 1900 DD55 lit-jon | G30: 550 | H30: ok. 2 h | I30: 32700 | J30: 39240 | K30: 36 | L30: 0 | M30: 0 | N30: 1308 | O30: 0 | P30: 0 | Q30: 7848 | R30: nie | S30: 1.2
A31: =COUNTIF($R$6:R31,"tak") -> 0 | B31: =IF(A31>MAX($A$6:A30),"TAK","NIE") -> NIE | D31: 26 | E31: Maszyna pchana Nilfisk SC500 Full (z trakcją) | F31: 2650/1590 | G31: 530 | H31: ok. 5h | I31: 20850 | J31: 25020 | K31: 36 | L31: 0 | M31: 0 | N31: 834 | O31: 0 | P31: 0 | Q31: 5004 | R31: nie | S31: 1.2
A32: =COUNTIF($R$6:R32,"tak") -> 0 | B32: =IF(A32>MAX($A$6:A31),"TAK","NIE") -> NIE | D32: 27 | E32: Maszyna pchana Nilfisk SC430 B Full Go Line (bez trakcji) | F32: 2120/1272 | G32: 530 | H32: ok. 2-3h | I32: 11400 | J32: 13680 | K32: 36 | L32: 0 | M32: 0 | N32: 456 | O32: 0 | P32: 0 | Q32: 2736 | R32: nie | S32: 1.2
A33: =COUNTIF($R$6:R33,"tak") -> 0 | B33: =IF(A33>MAX($A$6:A32),"TAK","NIE") -> NIE | D33: 28 | E33: Maszyna pchana Nilfisk SC401BD (z trakcją) | F33: 1720/1032 | G33: 430 | H33: ok. 2,5 h | I33: 16300 | J33: 19560 | K33: 36 | L33: 0 | M33: 0 | N33: 652 | O33: 0 | P33: 0 | Q33: 3912 | R33: nie | S33: 1.2
A34: =COUNTIF($R$6:R34,"tak") -> 0 | B34: =IF(A34>MAX($A$6:A33),"TAK","NIE") -> NIE | D34: 29 | E34: Maszyna pchana Nilfisk SC401 B (bez trakcji) | F34: 1720/860 | G34: 430 | H34: ok. 2,5 h | I34: 14100 | J34: 16920 | K34: 36 | L34: 0 | M34: 0 | N34: 564 | O34: 0 | P34: 0 | Q34: 3384 | R34: nie | S34: 1.2
A35: =COUNTIF($R$6:R35,"tak") -> 0 | B35: =IF(A35>MAX($A$6:A34),"TAK","NIE") -> NIE | D35: 30 | E35: Tennant T2 lit-jon | F35: 1720 / 950 | G35: 430 | H35: ok. 3h | I35: 18000 | J35: 21600 | K35: 36 | L35: 0 | M35: 0 | N35: 720 | O35: 0 | P35: 0 | Q35: 4320 | R35: nie | S35: 1.2
A36: =COUNTIF($R$6:R36,"tak") -> 0 | B36: =IF(A36>MAX($A$6:A35),"TAK","NIE") -> NIE | D36: 31 | E36: Maszyna pchana Numatic TTB 3045NX-R | F36: 1200 | G36: 450 | H36: ok. 70 min. | I36: 18000 | J36: 21600 | K36: 36 | L36: 0 | M36: 0 | N36: 720 | O36: 0 | P36: 0 | Q36: 4320 | R36: nie | S36: 1.2
A37: =COUNTIF($R$6:R37,"tak") -> 0 | B37: =IF(A37>MAX($A$6:A36),"TAK","NIE") -> NIE | D37: 32 | E37: Taski Ultimax 360 (2 baterie) | F37: 250 | G37: 440 | H37: ok. 1 h | I37: 16500 | J37: 19800 | K37: 36 | L37: 0 | M37: 0 | N37: 660 | O37: 0 | P37: 0 | Q37: =J37*S37-J37 -> 3960 | R37: nie | S37: 1.2
A38: =COUNTIF($R$6:R38,"tak") -> 0 | B38: =IF(A38>MAX($A$6:A37),"TAK","NIE") -> NIE | C38: =IF(B38="TAK",A38,"") ->  | D38: 33 | E38: Maszyna pchana - Nilfisk SC351 Full | F38: 1480/890 | G38: 370 | H38: ok. 1 h | I38: 11065 | J38: 13278 | K38: 36 | L38: =IFERROR((J38/K38)*O38,0) -> 0 | M38: 0 | N38: 442.6 | O38: 0 | P38: 0 | Q38: 2655.6 | R38: nie | S38: 1.2
A39: =COUNTIF($R$6:R39,"tak") -> 0 | B39: =IF(A39>MAX($A$6:A38),"TAK","NIE") -> NIE | D39: 34 | E39: Maszyna pchana - Tennant T191 | F39: 1600/1200 | G39: 455 | H39: ok. 2h | I39: 14700 | J39: 17640 | K39: 36 | L39: =IFERROR((J39/K39)*O39,0) -> 0 | M39: 0 | N39: 588 | O39: 0 | P39: 0 | Q39: 3528 | R39: nie | S39: 1.2
A40: =COUNTIF($R$6:R40,"tak") -> 0 | B40: =IF(A40>MAX($A$6:A39),"TAK","NIE") -> NIE | D40: 35 | E40: Maszyna pchana Nilfisk SC250 | F40: 1360/680 | G40: 340 | H40: ok. 40 min. | I40: 8840 | J40: 10608 | K40: 24 | L40: 0 | M40: 0 | N40: 530.4 | O40: 0 | P40: 0 | Q40: 2121.6 | R40: nie | S40: 1.2
A41: =COUNTIF($R$6:R41,"tak") -> 0 | B41: =IF(A41>MAX($A$6:A40),"TAK","NIE") -> NIE | D41: 36 | E41: Zamiatarka samojezdna TASKI balimat 2300 | F41: 2300 | I41: 10500 | J41: 12600 | K41: 24 | L41: 0 | M41: 0 | N41: 630 | O41: 0 | P41: 0 | Q41: 2520 | R41: nie | S41: 1.2
A42: =COUNTIF($R$6:R42,"tak") -> 0 | B42: =IF(A42>MAX($A$6:A41),"TAK","NIE") -> NIE | D42: 37 | E42: Zamiatarka samojezdna TASKI balimat 3300 | F42: 3300 | I42: 22500 | J42: 27000 | K42: 36 | L42: 0 | M42: 0 | N42: 900 | O42: 0 | P42: 0 | Q42: 5400 | R42: nie | S42: 1.2
A43: =COUNTIF($R$6:R43,"tak") -> 0 | B43: =IF(A43>MAX($A$6:A42),"TAK","NIE") -> NIE | D43: 38 | E43: Zamiatarka samojezdna TASKI balimat 6500 | F43: 6500 | G43: 700-1150 | H43: ok. 3,5 h | I43: 52000 | J43: 62400 | K43: 36 | L43: 0 | M43: =L43*0.2 -> 0 | N43: 2080 | O43: 0 | P43: 0 | Q43: 12480 | R43: nie | S43: 1.2
A44: =COUNTIF($R$6:R44,"tak") -> 0 | B44: =IF(A44>MAX($A$6:A43),"TAK","NIE") -> NIE | D44: 39 | E44: Zamiatarka samojezdna NILFISK SW3000 LI-JON | F44: 6120/4280 | G44: 1350 | H44: ok. 4h | I44: 42300 | J44: 50760 | K44: 36 | L44: 0 | M44: 0 | N44: 1692 | O44: 0 | P44: 0 | Q44: 10152 | R44: nie | S44: 1.2
A45: =COUNTIF($R$6:R45,"tak") -> 0 | B45: =IF(A45>MAX($A$6:A44),"TAK","NIE") -> NIE | D45: 40 | E45: Zamiatarka Tennant S680 (RECON - po regeneracji) | F45: 6300 | G45: 650-1050 | H45: ok. 3h | I45: 54000 | J45: 64800 | K45: 36 | L45: 0 | M45: 0 | N45: 2160 | O45: 0 | P45: 0 | Q45: 12960 | R45: nie | S45: 1.2
A46: =COUNTIF($R$6:R46,"tak") -> 0 | B46: =IF(A46>MAX($A$6:A45),"TAK","NIE") -> NIE | D46: 41 | E46: Zamiatarka z napędem ręcznym POLI JOLY | F46: 1000 | G46: 600-800 | H46: - | I46: 2790 | J46: 3348 | K46: 24 | L46: 0 | M46: 0 | N46: 167.4 | O46: 0 | P46: 0 | Q46: 669.6 | R46: nie | S46: 1.2
A47: =COUNTIF($R$6:R47,"tak") -> 0 | B47: =IF(A47>MAX($A$6:A46),"TAK","NIE") -> NIE | D47: 42 | E47: Podstawowa zamiatarka z napędem ręcznym KARCHER S4 Twin | F47: 2400 | G47: 680 | H47: - | I47: 800 | J47: 960 | K47: 24 | L47: 0 | M47: 0 | N47: 48 | O47: 0 | P47: 0 | Q47: 192 | R47: nie | S47: 1.2
A48: =COUNTIF($R$6:R48,"tak") -> 0 | B48: =IF(A48>MAX($A$6:A47),"TAK","NIE") -> NIE | D48: 43 | J48: 0 | L48: 0 | M48: 0 | N48: 0 | O48: 0 | P48: 0 | Q48: 0 | R48: nie | S48: 1.2
A49: =COUNTIF($R$6:R49,"tak") -> 0 | B49: =IF(A49>MAX($A$6:A48),"TAK","NIE") -> NIE | D49: 44 | J49: 0 | L49: 0 | M49: 0 | N49: 0 | O49: 0 | P49: 0 | Q49: 0 | R49: nie | S49: 1.2
A50: =COUNTIF($R$6:R50,"tak") -> 0 | B50: =IF(A50>MAX($A$6:A49),"TAK","NIE") -> NIE | D50: 45 | J50: 0 | L50: 0 | M50: 0 | N50: 0 | O50: 0 | P50: 0 | Q50: 0 | R50: nie | S50: 1.2
A51: =COUNTIF($R$6:R51,"tak") -> 0 | B51: =IF(A51>MAX($A$6:A50),"TAK","NIE") -> NIE | D51: 46 | J51: 0 | L51: 0 | M51: 0 | N51: 0 | O51: 0 | P51: 0 | Q51: 0 | R51: nie | S51: 1.2
A52: =COUNTIF($R$6:R52,"tak") -> 0 | B52: =IF(A52>MAX($A$6:A51),"TAK","NIE") -> NIE | D52: 47 | J52: 0 | L52: 0 | M52: 0 | N52: 0 | O52: 0 | P52: 0 | Q52: 0 | R52: nie | S52: 1.2
A53: =COUNTIF($R$6:R53,"tak") -> 0 | B53: =IF(A53>MAX($A$6:A52),"TAK","NIE") -> NIE | D53: 48 | J53: 0 | L53: 0 | M53: 0 | N53: 0 | O53: 0 | P53: 0 | Q53: 0 | R53: nie | S53: 1.2
A54: =COUNTIF($R$6:R54,"tak") -> 0 | B54: =IF(A54>MAX($A$6:A53),"TAK","NIE") -> NIE | D54: 49 | J54: 0 | L54: 0 | M54: 0 | N54: 0 | O54: 0 | P54: 0 | Q54: 0 | R54: nie | S54: 1.2
A55: =COUNTIF($R$6:R55,"tak") -> 0 | B55: =IF(A55>MAX($A$6:A54),"TAK","NIE") -> NIE | D55: 50 | J55: 0 | L55: 0 | M55: 0 | N55: 0 | O55: 0 | P55: 0 | Q55: 0 | R55: nie | S55: 1.2
D56: SUMA | P56: =SUM(P6:P55) -> 0
D58: Sprzęt podstawowy - SPRZĘT DROBNY
C59: =COUNTIF(C61:C92,2) -> 0 | D59: Lp | E59: Nazwa maszyny | F59: Wydajność maszyny mkw/h | G59: Szerokość czyszczenia mm | H59: Czas pracy maszyny | I59: Szerokość czyszczenia mm | J59: Cena | K59: Okres spłaty [msc] | L59: Miesięczny koszt | M59: Eksploatacja [msc] | N59: Cena 1 szt. do oferty z eksploatacją [msc] | O59: Ilość maszyn | P59: Kwota do oferty | Q59: Eksploatacja kwotowo (1 szt.) | R59: Czy uwzględniać | S59: Wskaźnik eksploatacji | T59: Cena z eksploatacją
A60: =COUNTIF($R$60:R60,"tak") -> 0 | B60: =IF(A60>MAX($A60:A$60),"TAK","NIE") -> NIE | C60: =IF(R60="TAK",A60,"") ->  | D60: =D55+1 -> 51 | E60: Odkurzacz biurowy - Numatic PRP180 / Taski Go | F60: - | H60: - | J60: 555 | K60: 24 | L60: =IFERROR((J60/K60)*O60,0) -> 0 | M60: =L60*(S60-1) -> 0 | N60: =IFERROR((T60/K60),0) -> 27.75 | O60: 0 | P60: =L60*S60 -> 0 | Q60: =T60-J60 -> 111 | R60: =IF(O60>0,"tak","nie") -> nie | S60: 1.2 | T60: =J60*S60 -> 666
A61: =COUNTIF($R$60:R61,"tak") -> 0 | B61: =IF(A61>MAX($A$60:A61),"TAK","NIE") -> NIE | C61: =IF(R61="TAK",A61,"") ->  | D61: =D60+1 -> 52 | E61: Odkurzacz piorący CT 470-2 | F61: - | H61: - | J61: 2200 | K61: 12 | L61: =IFERROR((J61/K61)*O61,0) -> 0 | M61: =L61*(S61-1) -> 0 | N61: =IFERROR((T61/K61),0) -> 220 | O61: 0 | P61: =L61*S61 -> 0 | Q61: =T61-J61 -> 440 | R61: =IF(O61>0,"tak","nie") -> nie | S61: 1.2 | T61: =J61*S61 -> 2640
A62: =COUNTIF($R$60:R62,"tak") -> 0 | B62: =IF(A62>MAX($A$60:A62),"TAK","NIE") -> NIE | D62: =D61+1 -> 53 | E62: Odkurzacz przemysłowy AERO 31-21 INOX PC | F62: - | H62: - | J62: 915 | K62: 12 | L62: 0 | M62: 0 | N62: 91.5 | O62: 0 | P62: 0 | Q62: 183 | R62: nie | S62: 1.2 | T62: 1098
A63: =COUNTIF($R$60:R63,"tak") -> 0 | B63: =IF(A63>MAX($A$60:A63),"TAK","NIE") -> NIE | D63: =D62+1 -> 54 | E63: Odkurzacz plecakowy kablowy NILFISK GD10 BACK HEPA | F63: - | H63: - | J63: 1445 | K63: 12 | L63: 0 | M63: 0 | N63: 144.5 | O63: 0 | P63: 0 | Q63: 289 | R63: nie | S63: 1.2 | T63: 1734
A64: =COUNTIF($R$60:R64,"tak") -> 0 | B64: =IF(A64>MAX($A$60:A64),"TAK","NIE") -> NIE | D64: 55 | E64: Odkurzacz plecakowy bateryjny NILFISK GD5 Battery | F64: - | H64: - | J64: 4150 | K64: 12 | L64: 0 | M64: 0 | N64: 415 | O64: 0 | P64: 0 | Q64: 830 | R64: nie | S64: 1.2 | T64: 4980
A65: =COUNTIF($R$60:R65,"tak") -> 0 | B65: =IF(A65>MAX($A$60:A65),"TAK","NIE") -> NIE | D65: 56 | E65: Odkurzacz do pracy na sucho/mokro NILFISK VL500-35 BSF | F65: - | H65: - | J65: 963 | K65: 12 | L65: 0 | M65: 0 | N65: 96.3 | O65: 0 | P65: =L65*S65 -> 0 | Q65: 192.6 | R65: nie | S65: 1.2 | T65: 1155.6
A66: =COUNTIF($R$60:R66,"tak") -> 0 | B66: =IF(A66>MAX($A$60:A66),"TAK","NIE") -> NIE | D66: 57 | E66: Pralko-suszarka - podstawowa | F66: - | H66: - | J66: 1200 | K66: 12 | L66: 0 | M66: 0 | N66: 120 | O66: 0 | P66: 0 | Q66: 240 | R66: nie | S66: 1.2 | T66: 1440
A67: =COUNTIF($R$60:R67,"tak") -> 0 | B67: =IF(A67>MAX($A$60:A67),"TAK","NIE") -> NIE | D67: 58 | E67: Profesjonalna pralnico-wirówka | F67: - | H67: - | J67: 3660 | K67: 24 | L67: 0 | M67: 0 | N67: 183 | O67: 0 | P67: =L67*S67 -> 0 | Q67: 732 | R67: nie | S67: 1.2 | T67: 4392
A68: =COUNTIF($R$60:R68,"tak") -> 0 | B68: =IF(A68>MAX($A$60:A68),"TAK","NIE") -> NIE | D68: 59 | E68: Myjka ciśnieniowa - podstawowa (125 bar) | F68: - | H68: - | J68: 1230 | K68: 12 | L68: 0 | M68: 0 | N68: 123 | O68: 0 | P68: =L68*S68 -> 0 | Q68: 246 | R68: nie | S68: 1.2 | T68: 1476
A69: =COUNTIF($R$60:R69,"tak") -> 0 | B69: =IF(A69>MAX($A$60:A69),"TAK","NIE") -> NIE | D69: 60 | E69: Myjka ciśnieniowa - profesjonalna (170 bar) | F69: - | H69: - | J69: 3660 | K69: 12 | L69: 0 | M69: 0 | N69: 366 | O69: 0 | P69: =L69*S69 -> 0 | Q69: 732 | R69: nie | S69: 1.2 | T69: 4392
A70: =COUNTIF($R$60:R70,"tak") -> 0 | B70: =IF(A70>MAX($A$60:A70),"TAK","NIE") -> NIE | D70: 61 | E70: Wózek do sprzątania mały | F70: - | H70: - | J70: 585 | K70: 24 | L70: =IFERROR((J70/K70)*O70,0) -> 0 | M70: =L70*(S70-1) -> 0 | N70: =IFERROR((T70/K70),0) -> 29.25 | O70: 0 | P70: =L70*S70 -> 0 | Q70: =T70-J70 -> 117 | R70: nie | S70: 1.2 | T70: 702
A71: =COUNTIF($R$60:R71,"tak") -> 0 | B71: =IF(A71>MAX($A$60:A71),"TAK","NIE") -> NIE | D71: 62 | E71: Wózek do sprzątania duży (biura, magazyny) | F71: - | H71: - | J71: 1045 | K71: 24 | L71: =IFERROR((J71/K71)*O71,0) -> 0 | M71: =L71*(S71-1) -> 0 | N71: 52.25 | O71: 0 | P71: 0 | Q71: 209 | R71: nie | S71: 1.2 | T71: 1254 | U71: stały koszt co miesiąc
A72: =COUNTIF($R$60:R72,"tak") -> 0 | B72: =IF(A72>MAX($A$60:A72),"TAK","NIE") -> NIE | D72: 63 | E72: Wózek medyczny do sprzątania - VERMOP | F72: - | H72: - | J72: 3500 | K72: 24 | L72: 0 | M72: 0 | N72: 175 | O72: 0 | P72: 0 | Q72: 700 | R72: nie | S72: 1.2 | T72: 4200
A73: =COUNTIF($R$60:R73,"tak") -> 0 | B73: =IF(A73>MAX($A$60:A73),"TAK","NIE") -> NIE | C73: =IF(R73="TAK",A73,"") ->  | D73: 64 | E73: 1 | L73: =IFERROR((J73/K73)*O73,0) -> 0 | M73: =L73*(S73-1) -> 0 | N73: =IFERROR((T73/K73),0) -> 0 | O73: 0 | P73: =L73*S73 -> 0 | Q73: =T73-J73 -> 0 | R73: =IF(O73>0,"tak","nie") -> nie | S73: 1.2 | T73: =J73*S73 -> 0
A74: =COUNTIF($R$60:R74,"tak") -> 0 | B74: =IF(A74>MAX($A$60:A74),"TAK","NIE") -> NIE | D74: 65 | E74: 1 | L74: 0 | M74: 0 | N74: 0 | O74: 0 | P74: 0 | Q74: 0 | R74: nie | S74: 1.2 | T74: 0
A75: =COUNTIF($R$60:R75,"tak") -> 0 | B75: =IF(A75>MAX($A$60:A75),"TAK","NIE") -> NIE | D75: 66 | E75: 1 | L75: 0 | M75: 0 | N75: 0 | O75: 0 | P75: 0 | Q75: 0 | R75: nie | S75: 1.2 | T75: 0
A76: =COUNTIF($R$60:R76,"tak") -> 0 | B76: =IF(A76>MAX($A$60:A76),"TAK","NIE") -> NIE | D76: 67 | E76: 1 | L76: 0 | M76: 0 | N76: 0 | O76: 0 | P76: 0 | Q76: 0 | R76: nie | S76: 1.2 | T76: 0
A77: =COUNTIF($R$60:R77,"tak") -> 0 | B77: =IF(A77>MAX($A$60:A77),"TAK","NIE") -> NIE | D77: =D76+1 -> 68 | E77: Inne np.ścierki, mopy, butelki, atomizery | F77: - | H77: - | J77: 30 | K77: 1 | L77: =IFERROR((J77/K77)*O77,0) -> 0 | M77: =L77*(S77) -> 0 | N77: 36 | O77: 0 | P77: 0 | Q77: 6 | R77: nie | S77: 1.2 | T77: 36
A78: =COUNTIF($R$60:R78,"tak") -> 0 | B78: =IF(A78>MAX($A$60:A78),"TAK","NIE") -> NIE | C78: =IF(R78="TAK",A78,"") ->  | D78: 69 | E78: 2 | L78: =IFERROR((J78/K78)*O78,0) -> 0 | M78: =L78*(S78-1) -> 0 | N78: =IFERROR((T78/K78),0) -> 0 | O78: 0 | P78: =L78*S78 -> 0 | Q78: =T78-J78 -> 0 | R78: =IF(O78>0,"tak","nie") -> nie | S78: 1.2 | T78: =J78*S78 -> 0
A79: =COUNTIF($R$60:R79,"tak") -> 0 | B79: =IF(A79>MAX($A$60:A79),"TAK","NIE") -> NIE | D79: 70 | E79: 2 | L79: 0 | M79: 0 | N79: 0 | O79: 0 | P79: 0 | Q79: 0 | R79: nie | S79: 1.2 | T79: 0
D80: SUMA | P80: =SUM(P60:P79) -> 0 | R80: nie
D82: Sprzęt do koszenia - SPRZĘT DROBNY | R82: nie
D83: Lp | E83: Nazwa maszyny | F83: Wydajność maszyny mkw/h | H83: Czas pracy maszyny | J83: Cena | K83: Okres spłaty [msc] | L83: Miesięczny koszt | M83: Eksploatacja [msc] | N83: Cena 1 szt. do oferty z eksploatacją [msc] | O83: Ilość | P83: Kwota do oferty | Q83: Eksploatacja kwotowo (1 szt.) | S83: Wskaźnik eksploatacji | T83: Cena z eksploatacją
A84: =COUNTIF($R$60:R84,"tak") -> 0 | B84: =IF(A84>MAX($A$60:A83),"TAK","NIE") -> NIE | C84: =IF(B84="TAK",A84,"") ->  | D84: =D79+1 -> 71 | E84: Kosiarka spalinowa | F84: - | H84: - | J84: 2100 | K84: 12 | L84: =IFERROR((J84/K84)*O84,0) -> 0 | M84: =L84*(S84-1) -> 0 | N84: =IFERROR((T84/K84),0) -> 210 | O84: 0 | P84: =L84*S84 -> 0 | Q84: =T84-J84 -> 420 | R84: nie | S84: 1.2 | T84: =J84*S84 -> 2520
A85: =COUNTIF($R$60:R85,"tak") -> 0 | B85: =IF(A85>MAX($A$60:A84),"TAK","NIE") -> NIE | D85: 72 | E85: Kosa spalinowa (Sparta 441T - 2,0KM) | F85: - | H85: - | J85: 1500 | K85: 12 | L85: 0 | M85: 0 | N85: 150 | O85: 0 | P85: 0 | Q85: 300 | R85: nie | S85: 1.2 | T85: 1800
A86: =COUNTIF($R$60:R86,"tak") -> 0 | B86: =IF(A86>MAX($A$60:A85),"TAK","NIE") -> NIE | D86: 73 | E86: Dmuchawa do liści plecakowa (BV163) | F86: - | H86: - | J86: 1650 | K86: 12 | L86: 0 | M86: 0 | N86: 165 | O86: 0 | P86: 0 | Q86: 330 | R86: nie | S86: 1.2 | T86: 1980
A87: =COUNTIF($R$60:R87,"tak") -> 0 | B87: =IF(A87>MAX($A$60:A86),"TAK","NIE") -> NIE | D87: 74 | E87: Zamiatarka spalinowa / odrzutnik do śniegu OLEO MAC PKM100 | F87: - | H87: - | J87: 4200 | K87: 12 | L87: 0 | M87: 0 | N87: 420 | O87: 0 | P87: 0 | Q87: 840 | R87: nie | S87: 1.2 | T87: 5040
A88: =COUNTIF($R$60:R88,"tak") -> 0 | B88: =IF(A88>MAX($A$60:A87),"TAK","NIE") -> NIE | D88: 75 | E88: Traktor wielofunkcyjny z osprzętem OM92/16KH (16KM) | F88: - | H88: - | J88: 10500 | K88: 24 | L88: 0 | M88: 0 | N88: 525 | O88: 0 | P88: 0 | Q88: 2100 | R88: nie | S88: 1.2 | T88: 12600
A89: =COUNTIF($R$60:R89,"tak") -> 0 | B89: =IF(A89>MAX($A$60:A88),"TAK","NIE") -> NIE | D89: 76 | E89: Przyczepka do traktora | J89: 1150 | K89: 12 | L89: 0 | M89: 0 | N89: 115 | O89: 0 | P89: 0 | Q89: 230 | R89: nie | S89: 1.2 | T89: 1380
A90: =COUNTIF($R$60:R90,"tak") -> 0 | B90: =IF(A90>MAX($A$60:A89),"TAK","NIE") -> NIE | D90: 77 | E90: Pług do traktora | F90: - | H90: - | J90: 1550 | K90: 12 | L90: 0 | M90: 0 | N90: 155 | O90: 0 | P90: 0 | Q90: 310 | R90: nie | S90: 1.2 | T90: 1860
A91: =COUNTIF($R$60:R91,"tak") -> 0 | B91: =IF(A91>MAX($A$60:A90),"TAK","NIE") -> NIE | D91: 78 | E91: Łańcuchy na koła - do traktora | F91: - | H91: - | J91: 310 | K91: 12 | L91: 0 | M91: 0 | N91: 31 | O91: 0 | P91: 0 | Q91: 62 | R91: nie | S91: 1.2 | T91: 372
A92: =COUNTIF($R$60:R92,"tak") -> 0 | B92: =IF(A92>MAX($A$60:A91),"TAK","NIE") -> NIE | D92: 79 | E92: Zamiatarka spalinowa YATO 100 CM, poj. 196 cm3 | F92: - | H92: - | J92: 2500 | K92: 12 | L92: 0 | M92: 0 | N92: 250 | O92: 0 | P92: 0 | Q92: 500 | R92: nie | S92: 1.2 | T92: 3000
A93: =COUNTIF($R$60:R93,"tak") -> 0 | B93: =IF(A93>MAX($A$60:A92),"TAK","NIE") -> NIE | D93: 80 | F93: - | H93: - | L93: 0 | M93: 0 | N93: 0 | O93: 0 | P93: 0 | Q93: 0 | R93: nie | S93: 1.2 | T93: 0
D94: SUMA | P94: =SUM(P84:P93) -> 0
D96: Teren zewnętrzny - sprzęt
D97: Lp | E97: Zestaw | F97: Wydajność maszyny mkw/h | H97: Czas pracy maszyny | J97: Cena | K97: Okres spłaty [msc] | L97: Miesięczny koszt | M97: Eksploatacja [msc] | N97: Cena 1 szt. do oferty z eksploatacją [msc] | O97: Ilość | P97: Kwota do oferty | Q97: Eksploatacja kwotowo (1 szt.) | S97: Wskaźnik eksploatacji | T97: Cena z eksploatacją
D98: 1 | E98: Miotła, łopata, grabie, szufelka, wiaderko | F98: - | H98: - | J98: 300 | K98: 12 | L98: =IFERROR((J98/K98)*O98,0) -> 0 | M98: =L98*(S98-1) -> 0 | N98: =IFERROR((T98/K98),0) -> 30 | O98: 0 | P98: =L98*S98 -> 0 | Q98: =T98-J98 -> 60 | R98: =IF(O98>0,"tak","nie") -> nie | S98: 1.2 | T98: =J98*S98 -> 360
D99: 2 | F99: - | H99: - | L99: 0 | M99: 0 | N99: 0 | O99: 0 | P99: 0 | Q99: 0 | R99: nie | S99: 1.2 | T99: 0
D100: 3 | F100: - | H100: - | L100: 0 | M100: 0 | N100: 0 | O100: 0 | P100: 0 | Q100: 0 | R100: nie | S100: 1.2 | T100: 0
D101: 4 | F101: - | H101: - | L101: 0 | M101: 0 | N101: 0 | O101: 0 | P101: 0 | Q101: 0 | R101: nie | S101: 1.2 | T101: 0
D102: 5 | F102: - | H102: - | L102: 0 | M102: 0 | N102: 0 | O102: 0 | P102: 0 | Q102: 0 | R102: nie | S102: 1.2 | T102: 0
D103: SUMA | P103: =SUM(P98:P102) -> 0
D105: MASZYNY / SPRZĘT
D106: SUMA | P106: =SUM(P84:P93,P60:P79,P6:P55,P103) -> 0

Sheet MASZYNY SPRZĘT ceny (hidden)
D2: MASZYNY / SPRZĘT
D4: Maszyny sprzątające
C5: =COUNTIF(C7:C25,2) -> 1 | D5: Lp | E5: Nazwa maszyny | F5: Wydajność maszyny mkw/h | G5: Szerokość czyszczenia mm | H5: Czas pracy maszyny | I5: Cena | J5: Cena z leasingiem | K5: Okres spłaty [msc] | L5: Koszt leasingu [msc] | M5: Eksploatacja [msc] | N5: Cena 1 szt. do oferty [msc] | O5: Ilość maszyn | P5: Kwota do oferty | Q5: Eksploatacja kwotowo (1 szt.) | R5: Czy uwzględniać | S5: Wskaźnik eksploatacji
A6: =COUNTIF($R$6:R6,"tak") -> 1 | B6: =IF(A6>=MAX($A6:A$6),"TAK","NIE") -> TAK | C6: =IF(B6="TAK",A6,"") -> 1 | D6: 1 | E6: Tennant T16 lit-jon + H2O + ES | F6: 8200/7000 | G6: 910 | H6: ok. 4h | I6: 103500 | J6: =I6*1.2 -> 124200 | K6: 36 | L6: =IFERROR((J6/K6)*O6,0) -> 3450 | M6: =L6*0.2 -> 690 | N6: =IFERROR((J6/K6)*S6,0) -> 4140 | O6: 1 | P6: =L6*S6 -> 4140 | Q6: =J6*S6-J6 -> 24840 | R6: =IF(O6>0,"tak","nie") -> tak | S6: 1.2
A7: =COUNTIF($R$6:R7,"tak") -> 2 | B7: =IF(A7>MAX($A$6:A6),"TAK","NIE") -> TAK | C7: =IF(B7="TAK",A7,"") -> 2 | D7: =D6+1 -> 2 | E7: Tennant T16 lit-jon + H2O | F7: 8200/7001 | G7: 911 | H7: ok.4h | I7: 96000 | J7: =I7*1.2 -> 115200 | K7: 36 | L7: =IFERROR((J7/K7)*O7,0) -> 3200 | M7: 640 | N7: =IFERROR((J7/K7)*S7,0) -> 3840 | O7: 1 | P7: 3840 | Q7: =J7*S7-J7 -> 23040 | R7: =IF(O7>0,"tak","nie") -> tak | S7: 1.2
A8: =COUNTIF($R$6:R8,"tak") -> 3 | B8: =IF(A8>MAX($A$6:A7),"TAK","NIE") -> TAK | C8: =IF(B8="TAK",A8,"") -> 3 | D8: =D7+1 -> 3 | E8: Tennant T16 lit-jon | F8: 8200/7000 | G8: 910 | H8: ok. 4h | I8: 90000 | J8: =I8*1.2 -> 108000 | K8: 36 | L8: =IFERROR((J8/K8)*O8,0) -> 3000 | M8: =L8*0.2 -> 600 | N8: =IFERROR((J8/K8)*S8,0) -> 3600 | O8: 1 | P8: =L8*S8 -> 3600 | Q8: =J8*S8-J8 -> 21600 | R8: tak | S8: 1.2
A9: =COUNTIF($R$6:R9,"tak") -> 4 | B9: =IF(A9>MAX($A$6:A8),"TAK","NIE") -> TAK | C9: 4 | D9: 4 | E9: Taski Swingo 5000 200 lit-jon | F9: 5000 | G9: 1005 | H9: ok. 6,5h | I9: 74500 | J9: 89400 | K9: 36 | L9: 2483.333333 | M9: 496.6666667 | N9: 2980 | O9: 1 | P9: 2980 | Q9: 17880 | R9: tak | S9: 1.2
A10: =COUNTIF($R$6:R10,"tak") -> 5 | B10: =IF(A10>MAX($A$6:A9),"TAK","NIE") -> TAK | C10: 5 | D10: 5 | E10: Tennant T12 lit-jon + H2O | F10: 6700 / 4500 | G10: 800 | H10: ok. 3,5h | I10: 78000 | J10: 93600 | K10: 36 | L10: 2600 | M10: 520 | N10: 3120 | O10: 1 | P10: 3120 | Q10: 18720 | R10: tak | S10: 1.2
A11: =COUNTIF($R$6:R11,"tak") -> 6 | B11: =IF(A11>MAX($A$6:A10),"TAK","NIE") -> TAK | C11: 6 | D11: 6 | E11: Tennant T12 lit-jon | F11: 6700 / 4500 | G11: 800 | H11: ok. 3,5h | I11: 73500 | J11: 88200 | K11: 36 | L11: 2450 | M11: 490 | N11: 2940 | O11: 1 | P11: 2940 | Q11: 17640 | R11: tak | S11: 1.2
A12: =COUNTIF($R$6:R12,"tak") -> 7 | B12: =IF(A12>MAX($A$6:A11),"TAK","NIE") -> TAK | C12: 7 | D12: 7 | E12: Taski Swingo 4000 200 lit-jon | F12: 4000 | G12: 850 | H12: ok. 4,5 h | I12: 64750 | J12: 77700 | K12: 36 | L12: 2158.333333 | M12: 431.6666667 | N12: 2590 | O12: 1 | P12: 2590 | Q12: 15540 | R12: tak | S12: 1.2
A13: =COUNTIF($R$6:R13,"tak") -> 8 | B13: =IF(A13>MAX($A$6:A12),"TAK","NIE") -> TAK | C13: 8 | D13: 8 | E13: Tennant T7 lit-jon + H2O | F13: 5000/3000 | G13: 810 | H13: ok. 3,5h | I13: 58500 | J13: 70200 | K13: 36 | L13: 1950 | M13: 390 | N13: 2340 | O13: 1 | P13: 2340 | Q13: 14040 | R13: tak | S13: 1.2
A14: =COUNTIF($R$6:R14,"tak") -> 9 | B14: =IF(A14>MAX($A$6:A13),"TAK","NIE") -> TAK | C14: 9 | D14: 9 | E14: Tennant T7 lit-jon | F14: 5000/3000 | G14: 810 | H14: ok. 3,5h | I14: 54000 | J14: 64800 | K14: 36 | L14: 1800 | M14: 360 | N14: 2160 | O14: 1 | P14: 2160 | Q14: 12960 | R14: tak | S14: 1.2
A15: =COUNTIF($R$6:R15,"tak") -> 10 | B15: =IF(A15>MAX($A$6:A14),"TAK","NIE") -> TAK | C15: 10 | D15: 10 | E15: Numatic TVL850 (150T - 3 akumulatory) | F15: 4250 | G15: 650 / 750 / 850 | H15: ok. 3,5h | I15: 52500 | J15: 63000 | K15: 36 | L15: 1750 | M15: 350 | N15: 2100 | O15: 1 | P15: 2100 | Q15: 12600 | R15: tak | S15: 1.2
A16: =COUNTIF($R$6:R16,"tak") -> 11 | B16: =IF(A16>MAX($A$6:A15),"TAK","NIE") -> TAK | C16: 11 | D16: 11 | E16: Numatic TVL850 (200T - 4 akumulatory) | F16: 4250 | G16: 650 / 750 / 850 | H16: ok. 4,5h | I16: 55500 | J16: 66600 | K16: 36 | L16: 1850 | M16: 370 | N16: 2220 | O16: 1 | P16: 2220 | Q16: 13320 | R16: tak | S16: 1.2
A17: =COUNTIF($R$6:R17,"tak") -> 12 | B17: =IF(A17>MAX($A$6:A16),"TAK","NIE") -> TAK | C17: 12 | D17: 12 | E17: Numatic TVL850 (300T - 6 akumulatorów) | F17: 4250 | G17: 650 / 750 / 850 | H17: ok. 6,5h | I17: 61500 | J17: 73800 | K17: 36 | L17: 2050 | M17: 410 | N17: 2460 | O17: 1 | P17: 2460 | Q17: 14760 | R17: tak | S17: 1.2
A18: =COUNTIF($R$6:R18,"tak") -> 13 | B18: =IF(A18>MAX($A$6:A17),"TAK","NIE") -> TAK | C18: 13 | D18: 13 | E18: Maszyna samojezdna Tennant T581 | F18: 3290 / 2040 | G18: 510 | H18: ok. 2,5h | I18: 37500 | J18: 45000 | K18: 36 | L18: 1250 | M18: 250 | N18: 1500 | O18: 1 | P18: 1500 | Q18: 9000 | R18: tak | S18: 1.2
A19: =COUNTIF($R$6:R19,"tak") -> 14 | B19: =IF(A19>MAX($A$6:A18),"TAK","NIE") -> TAK | C19: 14 | D19: 14 | E19: Maszyna samojezdna Nilfisk SC 3500 | F19: 4260/2980 | G19: 710 | H19: ok. 4h | I19: 35300 | J19: 42360 | K19: 36 | L19: 1176.666667 | M19: 235.3333333 | N19: 1412 | O19: 1 | P19: 1412 | Q19: =J19*S19-J19 -> 8472 | R19: tak | S19: 1.2
A20: =COUNTIF($R$6:R20,"tak") -> 15 | B20: =IF(A20>MAX($A$6:A19),"TAK","NIE") -> TAK | C20: =IF(B20="TAK",A20,"") -> 15 | D20: 15 | E20: Maszyna Samojezdna Numatic CRL 8072/100T | F20: 3000 | G20: 720 | H20: ok. 3 h | I20: 43500 | J20: 52200 | K20: 36 | L20: 1450 | M20: 290 | N20: 1740 | O20: 1 | P20: 1740 | Q20: =J20*S20-J20 -> 10440 | R20: tak | S20: 1.2
A21: =COUNTIF($R$6:R21,"tak") -> 16 | B21: =IF(A21>MAX($A$6:A20),"TAK","NIE") -> TAK | C21: 16 | D21: 16 | E21: Maszyna samojezdna Taski Swingo 2500 lit-jon | F21: 2500 | G21: 700 | H21: ok. 6 h | I21: 56600 | J21: 67920 | K21: 36 | L21: 1886.666667 | M21: 377.3333333 | N21: 2264 | O21: 1 | P21: 2264 | Q21: 13584 | R21: tak | S21: 1.2
A22: =COUNTIF($R$6:R22,"tak") -> 17 | B22: =IF(A22>MAX($A$6:A21),"TAK","NIE") -> TAK | C22: 17 | D22: 17 | E22: Maszyna samojezdna Taski Swingo 2100 lit-jon | F22: 2100 | G22: 550 | H22: ok. 4 h | I22: 42800 | J22: 51360 | K22: 36 | L22: 1426.666667 | M22: 285.3333333 | N22: 1712 | O22: 1 | P22: 1712 | Q22: 10272 | R22: tak | S22: 1.2
A23: =COUNTIF($R$6:R23,"tak") -> 18 | B23: =IF(A23>MAX($A$6:A22),"TAK","NIE") -> TAK | C23: 18 | D23: 18 | E23: Maszyna samojezdna Nilfisk SC2000 Full | F23: 2230 | G23: 520 | H23: ok. 4 h | I23: 26150 | J23: 31380 | K23: 36 | L23: 871.6666667 | M23: 174.3333333 | N23: 1046 | O23: 1 | P23: 1046 | Q23: 6276 | R23: tak | S23: 1.2
A24: =COUNTIF($R$6:R24,"tak") -> 19 | B24: =IF(A24>MAX($A$6:A23),"TAK","NIE") -> TAK | C24: 19 | D24: 19 | E24: Cleanfix RA565 IBC mały automat samojezdny | F24: 3000 | G24: 1260/500/1050 | H24: ok. 4 h | I24: 30000 | J24: 36000 | K24: 36 | L24: 1000 | M24: 200 | N24: 1200 | O24: 1 | P24: 1200 | Q24: 7200 | R24: tak | S24: 1.2
A25: =COUNTIF($R$6:R25,"tak") -> 20 | B25: =IF(A25>MAX($A$6:A24),"TAK","NIE") -> TAK | C25: 20 | D25: 20 | E25: Maszyna pchana - Numatic TBL4045 lit-fosfor | F25: 1600 | G25: 450 | H25: ok 100 min. | I25: 21800 | J25: 26160 | K25: 36 | L25: 726.6666667 | M25: 145.3333333 | N25: 872 | O25: 1 | P25: 872 | Q25: 5232 | R25: tak | S25: 1.2
A26: =COUNTIF($R$6:R26,"tak") -> 21 | B26: =IF(A26>MAX($A$6:A25),"TAK","NIE") -> TAK | C26: 21 | D26: 21 | E26: Maszyna pchana - Tennant T300 e Li-ion + H2O | F26: 2500 / 1600 | G26: 600 | H26: ok. 3h | I26: 25500 | J26: 30600 | K26: 36 | L26: 850 | M26: 170 | N26: 1020 | O26: 1 | P26: 1020 | Q26: 6120 | R26: tak | S26: 1.2
A27: =COUNTIF($R$6:R27,"tak") -> 22 | B27: =IF(A27>MAX($A$6:A26),"TAK","NIE") -> TAK | C27: 22 | D27: 22 | E27: Maszyna pchana - Tennant T300 e Li-ion | F27: 2500 / 1600 | G27: 600 | H27: ok. 3h | I27: 22500 | J27: 27000 | K27: 36 | L27: =IFERROR((J27/K27)*O27,0) -> 750 | M27: =L27*0.2 -> 150 | N27: =IFERROR((J27/K27)*S27,0) -> 900 | O27: 1 | P27: =L27*S27 -> 900 | Q27: =J27*S27-J27 -> 5400 | R27: tak | S27: 1.2
A28: =COUNTIF($R$6:R28,"tak") -> 23 | B28: =IF(A28>MAX($A$6:A27),"TAK","NIE") -> TAK | C28: 23 | D28: 23 | E28: Maszyna pchana - Taski Swingo 455 lit-jon | F28: 455 | H28: ok. 1,5-2h | I28: 18600 | J28: 22320 | K28: 36 | L28: 620 | M28: 124 | N28: 744 | O28: 1 | P28: 744 | Q28: 4464 | R28: tak | S28: 1.2
A29: =COUNTIF($R$6:R29,"tak") -> 24 | B29: =IF(A29>MAX($A$6:A28),"TAK","NIE") -> TAK | C29: 24 | D29: 24 | E29: Maszyna pchana - Taski ULTIMAXX 1900 SD43 lit-jon | F29: 968 | G29: 430 | H29: ok. 2 h | I29: 26200 | J29: 31440 | K29: 36 | L29: 873.3333333 | M29: 174.6666667 | N29: 1048 | O29: 1 | P29: 1048 | Q29: 6288 | R29: tak | S29: 1.2
A30: =COUNTIF($R$6:R30,"tak") -> 25 | B30: =IF(A30>MAX($A$6:A29),"TAK","NIE") -> TAK | C30: 25 | D30: 25 | E30: Maszyna pchana - Taski ULTIMAXX 1900 DD55 lit-jon | G30: 550 | H30: ok. 2 h | I30: 32700 | J30: 39240 | K30: 36 | L30: 1090 | M30: 218 | N30: 1308 | O30: 1 | P30: 1308 | Q30: 7848 | R30: tak | S30: 1.2
A31: =COUNTIF($R$6:R31,"tak") -> 26 | B31: =IF(A31>MAX($A$6:A30),"TAK","NIE") -> TAK | C31: 26 | D31: 26 | E31: Maszyna pchana Nilfisk SC500 Full (z trakcją) | F31: 2650/1590 | G31: 530 | H31: ok. 5h | I31: 20850 | J31: 25020 | K31: 36 | L31: 695 | M31: 139 | N31: 834 | O31: 1 | P31: 834 | Q31: 5004 | R31: tak | S31: 1.2
A32: =COUNTIF($R$6:R32,"tak") -> 27 | B32: =IF(A32>MAX($A$6:A31),"TAK","NIE") -> TAK | C32: =IF(B32="TAK",A32,"") -> 27 | D32: 27 | E32: Maszyna pchana Nilfisk SC430 B Full Go Line (bez trakcji) | F32: 2120/1272 | G32: 530 | H32: ok. 2-3h | I32: 11400 | J32: 13680 | K32: 36 | L32: 380 | M32: 76 | N32: 456 | O32: 1 | P32: 456 | Q32: 2736 | R32: tak | S32: 1.2
A33: =COUNTIF($R$6:R33,"tak") -> 28 | B33: =IF(A33>MAX($A$6:A32),"TAK","NIE") -> TAK | C33: =IF(B33="TAK",A33,"") -> 28 | D33: 28 | E33: Maszyna pchana Nilfisk SC401BD (z trakcją) | F33: 1720/1032 | G33: 430 | H33: ok. 2,5 h | I33: 16300 | J33: 19560 | K33: 36 | L33: 543.3333333 | M33: 108.6666667 | N33: 652 | O33: 1 | P33: 652 | Q33: 3912 | R33: tak | S33: 1.2
A34: =COUNTIF($R$6:R34,"tak") -> 29 | B34: =IF(A34>MAX($A$6:A33),"TAK","NIE") -> TAK | C34: 29 | D34: 29 | E34: Maszyna pchana Nilfisk SC401 B (bez trakcji) | F34: 1720/860 | G34: 430 | H34: ok. 2,5 h | I34: 14100 | J34: 16920 | K34: 36 | L34: 470 | M34: 94 | N34: 564 | O34: 1 | P34: 564 | Q34: 3384 | R34: tak | S34: 1.2
A35: =COUNTIF($R$6:R35,"tak") -> 30 | B35: =IF(A35>MAX($A$6:A34),"TAK","NIE") -> TAK | C35: 30 | D35: 30 | E35: Tennant T2 lit-jon | F35: 1720 / 950 | G35: 430 | H35: ok. 3h | I35: 18000 | J35: 21600 | K35: 36 | L35: 600 | M35: 120 | N35: 720 | O35: 1 | P35: 720 | Q35: 4320 | R35: tak | S35: 1.2
A36: =COUNTIF($R$6:R36,"tak") -> 31 | B36: =IF(A36>MAX($A$6:A35),"TAK","NIE") -> TAK | C36: 31 | D36: 31 | E36: Maszyna pchana Numatic TTB 3045NX-R | F36: 1200 | G36: 450 | H36: ok. 70 min. | I36: 18000 | J36: 21600 | K36: 36 | L36: 600 | M36: 120 | N36: 720 | O36: 1 | P36: 720 | Q36: 4320 | R36: tak | S36: 1.2
A37: =COUNTIF($R$6:R37,"tak") -> 32 | B37: =IF(A37>MAX($A$6:A36),"TAK","NIE") -> TAK | C37: 32 | D37: 32 | E37: Taski Ultimax 360 (2 baterie) | F37: 360 | H37: ok. 1 h | I37: 16500 | J37: 19800 | K37: 36 | L37: 550 | M37: 110 | N37: 660 | O37: 1 | P37: 660 | Q37: 3960 | R37: tak | S37: 1.2
A38: =COUNTIF($R$6:R38,"tak") -> 33 | B38: =IF(A38>MAX($A$6:A37),"TAK","NIE") -> TAK | C38: 33 | D38: 33 | E38: Maszyna pchana - Nilfisk SC351 Full | F38: 1480/890 | G38: 370 | H38: ok. 1 h | I38: 11065 | J38: 13278 | K38: 36 | L38: 368.8333333 | M38: 73.76666667 | N38: 442.6 | O38: 1 | P38: 442.6 | Q38: 2655.6 | R38: tak | S38: 1.2
A39: =COUNTIF($R$6:R39,"tak") -> 34 | B39: =IF(A39>MAX($A$6:A38),"TAK","NIE") -> TAK | C39: 34 | D39: 34 | E39: Maszyna pchana - Tennant T191 | F39: 1600/1200 | G39: 455 | H39: ok. 2h | I39: 14700 | J39: 17640 | K39: 36 | L39: 490 | M39: 98 | N39: 588 | O39: 1 | P39: 588 | Q39: 3528 | R39: tak | S39: 1.2
A40: =COUNTIF($R$6:R40,"tak") -> 35 | B40: =IF(A40>MAX($A$6:A39),"TAK","NIE") -> TAK | C40: 35 | D40: 35 | E40: Maszyna pchana Nilfisk SC250 | F40: 1360/680 | G40: 340 | H40: ok. 40 min. | I40: 8840 | J40: 10608 | K40: 24 | L40: 442 | M40: 88.4 | N40: 530.4 | O40: 1 | P40: 530.4 | Q40: 2121.6 | R40: tak | S40: 1.2
A41: =COUNTIF($R$6:R41,"tak") -> 36 | B41: =IF(A41>MAX($A$6:A40),"TAK","NIE") -> TAK | C41: 36 | D41: 36 | E41: Zamiatarka samojezdna TASKI balimat 2300 | F41: 2300 | I41: 10500 | J41: 12600 | K41: 24 | L41: 525 | M41: 105 | N41: 630 | O41: 1 | P41: 630 | Q41: 2520 | R41: tak | S41: 1.2
A42: =COUNTIF($R$6:R42,"tak") -> 37 | B42: =IF(A42>MAX($A$6:A41),"TAK","NIE") -> TAK | C42: 37 | D42: 37 | E42: Zamiatarka samojezdna TASKI balimat 3300 | F42: 3300 | I42: 22500 | J42: 27000 | K42: 36 | L42: 750 | M42: 150 | N42: 900 | O42: 1 | P42: 900 | Q42: 5400 | R42: tak | S42: 1.2
A43: =COUNTIF($R$6:R43,"tak") -> 38 | B43: =IF(A43>MAX($A$6:A42),"TAK","NIE") -> TAK | C43: 38 | D43: 38 | E43: Zamiatarka samojezdna TASKI balimat 6500 | F43: 6500 | G43: 700-1150 | H43: ok. 3,5 h | I43: 52000 | J43: 62400 | K43: 36 | L43: 1733.333333 | M43: 346.6666667 | N43: 2080 | O43: 1 | P43: 2080 | Q43: 12480 | R43: tak | S43: 1.2
A44: =COUNTIF($R$6:R44,"tak") -> 39 | B44: =IF(A44>MAX($A$6:A43),"TAK","NIE") -> TAK | C44: 39 | D44: 39 | E44: Zamiatarka samojezdna NILFISK SW3000 LI-JON | F44: 6120/4280 | G44: 1350 | H44: ok. 4h | I44: 42300 | J44: 50760 | K44: 36 | L44: 1410 | M44: 282 | N44: 1692 | O44: 1 | P44: 1692 | Q44: 10152 | R44: tak | S44: 1.2
A45: =COUNTIF($R$6:R45,"tak") -> 40 | B45: =IF(A45>MAX($A$6:A44),"TAK","NIE") -> TAK | C45: 40 | D45: 40 | E45: Zamiatarka Tennant S680 (RECON - po regeneracji) | F45: 6300 | G45: 650-1050 | H45: ok. 3h | I45: 54000 | J45: 64800 | K45: 36 | L45: 1800 | M45: 360 | N45: 2160 | O45: 1 | P45: 2160 | Q45: 12960 | R45: tak | S45: 1.2
A46: =COUNTIF($R$6:R46,"tak") -> 41 | B46: =IF(A46>MAX($A$6:A45),"TAK","NIE") -> TAK | C46: 41 | D46: 41 | E46: Zamiatarka z napędem ręcznym POLI JOLY | F46: 1000 | G46: 600-800 | H46: - | I46: 2790 | J46: 3348 | K46: 24 | L46: 139.5 | M46: 27.9 | N46: 167.4 | O46: 1 | P46: 167.4 | Q46: 669.6 | R46: tak | S46: 1.2
A47: =COUNTIF($R$6:R47,"tak") -> 42 | B47: =IF(A47>MAX($A$6:A46),"TAK","NIE") -> TAK | C47: 42 | D47: 42 | E47: Podstawowa zamiatarka z napędem ręcznym KARCHER S4 Twin | F47: 2400 | G47: 680 | H47: - | I47: 800 | J47: 960 | K47: 24 | L47: 40 | M47: 8 | N47: 48 | O47: 1 | P47: 48 | Q47: 192 | R47: tak | S47: 1.2
A48: =COUNTIF($R$6:R48,"tak") -> 42 | B48: =IF(A48>MAX($A$6:A47),"TAK","NIE") -> NIE | D48: 43 | J48: 0 | L48: 0 | M48: 0 | N48: 0 | O48: 0 | P48: 0 | Q48: 0 | R48: nie | S48: 1.2
A49: =COUNTIF($R$6:R49,"tak") -> 42 | B49: =IF(A49>MAX($A$6:A48),"TAK","NIE") -> NIE | D49: 44 | J49: 0 | L49: 0 | M49: 0 | N49: 0 | O49: 0 | P49: 0 | Q49: 0 | R49: nie | S49: 1.2
A50: =COUNTIF($R$6:R50,"tak") -> 42 | B50: =IF(A50>MAX($A$6:A49),"TAK","NIE") -> NIE | D50: 45 | J50: 0 | L50: 0 | M50: 0 | N50: 0 | O50: 0 | P50: 0 | Q50: 0 | R50: nie | S50: 1.2
A51: =COUNTIF($R$6:R51,"tak") -> 42 | B51: =IF(A51>MAX($A$6:A50),"TAK","NIE") -> NIE | D51: 46 | J51: 0 | L51: 0 | M51: 0 | N51: 0 | O51: 0 | P51: 0 | Q51: 0 | R51: nie | S51: 1.2
A52: =COUNTIF($R$6:R52,"tak") -> 42 | B52: =IF(A52>MAX($A$6:A51),"TAK","NIE") -> NIE | D52: 47 | J52: 0 | L52: 0 | M52: 0 | N52: 0 | O52: 0 | P52: 0 | Q52: 0 | R52: nie | S52: 1.2
A53: =COUNTIF($R$6:R53,"tak") -> 42 | B53: =IF(A53>MAX($A$6:A52),"TAK","NIE") -> NIE | D53: 48 | J53: 0 | L53: 0 | M53: 0 | N53: 0 | O53: 0 | P53: 0 | Q53: 0 | R53: nie | S53: 1.2
A54: =COUNTIF($R$6:R54,"tak") -> 42 | B54: =IF(A54>MAX($A$6:A53),"TAK","NIE") -> NIE | D54: 49 | J54: 0 | L54: 0 | M54: 0 | N54: 0 | O54: 0 | P54: 0 | Q54: 0 | R54: nie | S54: 1.2
A55: =COUNTIF($R$6:R55,"tak") -> 42 | B55: =IF(A55>MAX($A$6:A54),"TAK","NIE") -> NIE | D55: 50 | J55: 0 | L55: 0 | M55: 0 | N55: 0 | O55: 0 | P55: 0 | Q55: 0 | R55: nie | S55: 1.2
D56: SUMA | P56: =SUM(P6:P31) -> 52090
D58: Sprzęt podstawowy - SPRZĘT DROBNY
C59: =COUNTIF(C61:C91,2) -> 1 | D59: Lp | E59: Nazwa maszyny | F59: Wydajność maszyny mkw/h | G59: Szerokość czyszczenia mm | H59: Czas pracy maszyny | I59: Cena | J59: Cena z eksploatacją | K59: Okres spłaty [msc] | L59: Koszt leasingu [msc] | M59: Eksploatacja [msc] | N59: Cena 1 szt. do oferty [msc] | O59: Ilość maszyn | P59: Kwota do oferty | Q59: Eksploatacja kwotowo (1 szt.) | R59: Czy uwzględniać | S59: Wskaźnik eksploatacji
A60: =COUNTIF($R$60:R60,"tak") -> 1 | B60: =IF(A60>MAX($A60:A$60),"TAK","NIE") -> NIE | C60: =IF(R60="TAK",A60,"") -> 1 | D60: =D55+1 -> 51 | E60: Odkurzacz biurowy - Numatic PRP180 / Taski Go | F60: - | H60: - | J60: 555 | K60: 24 | L60: =IFERROR((J60/K60)*O60,0) -> 23.125 | M60: =L60*(S60-1) -> 4.625 | N60: =IFERROR((J60/K60)*S60,0) -> 27.75 | O60: 1 | P60: =L60*S60 -> 27.75 | Q60: =J60*S60-J60 -> 111 | R60: =IF(O60>0,"tak","nie") -> tak | S60: 1.2
A61: =COUNTIF($R$60:R61,"tak") -> 2 | B61: =IF(A61>MAX($A$60:A60),"TAK","NIE") -> TAK | C61: =IF(B61="TAK",A61,"") -> 2 | D61: 52 | E61: Odkurzacz piorący CT 470-2 | F61: - | H61: - | J61: 2200 | K61: 12 | L61: =IFERROR((J61/K61)*O61,0) -> 183.3333333 | M61: =L61*(S61-1) -> 36.66666667 | N61: =IFERROR((J61/K61)*S61,0) -> 220 | O61: 1 | P61: =L61*S61 -> 220 | Q61: =J61*S61-J61 -> 440 | R61: =IF(O61>0,"tak","nie") -> tak | S61: 1.2
A62: =COUNTIF($R$60:R62,"tak") -> 3 | B62: =IF(A62>MAX($A$60:A61),"TAK","NIE") -> TAK | C62: =IF(B62="TAK",A62,"") -> 3 | D62: 53 | E62: Odkurzacz przemysłowy AERO 31-21 INOX PC | F62: - | H62: - | J62: 915 | K62: 12 | L62: 76.25 | M62: =L62*(S62-1) -> 15.25 | N62: 91.5 | O62: 1 | P62: 91.5 | Q62: =J62*S62-J62 -> 183 | R62: tak | S62: 1.2
A63: =COUNTIF($R$60:R63,"tak") -> 4 | B63: =IF(A63>MAX($A$60:A62),"TAK","NIE") -> TAK | C63: 4 | D63: 54 | E63: Odkurzacz plecakowy kablowy NILFISK GD10 BACK HEPA | F63: - | H63: - | J63: 1445 | K63: 12 | L63: 120.4166667 | M63: 24.08333333 | N63: 144.5 | O63: 1 | P63: 144.5 | Q63: =J63*S63-J63 -> 289 | R63: tak | S63: 1.2
A64: =COUNTIF($R$60:R64,"tak") -> 5 | B64: =IF(A64>MAX($A$60:A63),"TAK","NIE") -> TAK | C64: 5 | D64: 55 | E64: Odkurzacz plecakowy bateryjny NILFISK GD5 Battery | F64: - | H64: - | J64: 4150 | K64: 12 | L64: 345.8333333 | M64: 69.16666667 | N64: =IFERROR((J64/K64)*S64,0) -> 415 | O64: 1 | P64: 415 | Q64: =J64*S64-J64 -> 830 | R64: tak | S64: 1.2
A65: =COUNTIF($R$60:R65,"tak") -> 6 | B65: =IF(A65>MAX($A$60:A64),"TAK","NIE") -> TAK | C65: 6 | D65: 56 | E65: Odkurzacz do pracy na sucho/mokro NILFISK VL500-35 BSF | F65: - | H65: - | J65: 963 | K65: 12 | L65: =IFERROR((J65/K65)*O65,0) -> 80.25 | M65: =L65*(S65-1) -> 16.05 | N65: =IFERROR((J65/K65)*S65,0) -> 96.3 | O65: 1 | P65: =L65*S65 -> 96.3 | Q65: 0 | R65: tak | S65: 1.2
A66: =COUNTIF($R$60:R66,"tak") -> 7 | B66: =IF(A66>MAX($A$60:A65),"TAK","NIE") -> TAK | C66: 7 | D66: 57 | E66: Pralka automatyczna - podstawowa | F66: - | H66: - | J66: 1200 | K66: 12 | L66: 100 | M66: 20 | N66: =IFERROR((J66/K66)*S66,0) -> 120 | O66: 1 | P66: 120 | Q66: 0 | R66: tak | S66: 1.2
A67: =COUNTIF($R$60:R67,"tak") -> 8 | B67: =IF(A67>MAX($A$60:A66),"TAK","NIE") -> TAK | C67: 8 | D67: 58 | E67: Pralka automatyczna - profesjonalna | F67: - | H67: - | J67: 3660 | K67: 24 | L67: =IFERROR((J67/K67)*O67,0) -> 152.5 | M67: 30.5 | N67: =IFERROR((J67/K67)*S67,0) -> 183 | O67: 1 | P67: =L67*S67 -> 183 | Q67: 30 | R67: tak | S67: 1.2
A68: =COUNTIF($R$60:R68,"tak") -> 9 | B68: =IF(A68>MAX($A$60:A67),"TAK","NIE") -> TAK | C68: 9 | D68: 59 | E68: Myjka ciśnieniowa - podstawowa (125 bar) | F68: - | H68: - | J68: 1230 | K68: 12 | L68: 102.5 | M68: 20.5 | N68: 123 | O68: 1 | P68: =L68*S68 -> 123 | Q68: =IFERROR(J68*S68-J68,"") -> 246 | R68: tak | S68: 1.2
A69: =COUNTIF($R$60:R69,"tak") -> 10 | B69: =IF(A69>MAX($A$60:A68),"TAK","NIE") -> TAK | C69: 10 | D69: 60 | E69: Myjka ciśnieniowa - profesjonalna (170 bar) | F69: - | H69: - | J69: 3660 | K69: 12 | L69: 305 | M69: 61 | N69: 366 | O69: 1 | P69: 366 | Q69: =IFERROR(J69*S69-J69,"") -> 732 | R69: tak | S69: 1.2
A70: =COUNTIF($R$60:R70,"tak") -> 11 | B70: =IF(A70>MAX($A$60:A69),"TAK","NIE") -> TAK | C70: 11 | D70: 61 | E70: Wózek do sprzątania mały | F70: - | H70: - | J70: 585 | K70: 24 | L70: =IFERROR((J70/K70)*O70,0) -> 24.375 | M70: =L70*(S70-1) -> 0 | N70: =IFERROR((J70/K70)*S70,0) -> 24.375 | O70: 1 | P70: =L70*S70 -> 24.375 | Q70: =IFERROR(J70*S70-J70,"") -> 0 | R70: tak | S70: 1
A71: =COUNTIF($R$60:R71,"tak") -> 12 | B71: =IF(A71>MAX($A$60:A70),"TAK","NIE") -> TAK | C71: 12 | D71: 62 | E71: Wózek do sprzątania duży (biura, magazyny) | F71: - | H71: - | J71: 1045 | K71: 24 | L71: 43.54166667 | M71: 0 | N71: 43.54166667 | O71: 1 | P71: 43.54166667 | Q71: 0 | R71: tak | S71: 1
A72: =COUNTIF($R$60:R72,"tak") -> 13 | B72: =IF(A72>MAX($A$60:A71),"TAK","NIE") -> TAK | C72: 13 | D72: 63 | E72: Wózek medyczny do sprzątania - VERMOP | F72: - | H72: - | J72: 3500 | K72: 24 | L72: =IFERROR((J72/K72)*O72,0) -> 145.8333333 | M72: =L72*(S72-1) -> 0 | N72: =IFERROR((J72/K72)*S72,0) -> 145.8333333 | O72: 1 | P72: =L72*S72 -> 145.8333333 | Q72: =IFERROR(J72*S72-J72,"") -> 0 | R72: tak | S72: 1
A73: =COUNTIF($R$60:R73,"tak") -> 13 | B73: =IF(A73>MAX($A$60:A72),"TAK","NIE") -> NIE | C73: =IF(B73="TAK",A73,"") ->  | D73: 64 | L73: =IFERROR((J73/K73)*O73,0) -> 0 | M73: =L73*(S73-1) -> 0 | N73: =IFERROR((J73/K73)*S73,0) -> 0 | P73: =L73*S73 -> 0 | Q73: =IFERROR(J73*S73-J73,"") -> 0 | R73: =IF(O73>0,"tak","nie") -> nie | S73: 1
A74: =COUNTIF($R$60:R74,"tak") -> 13 | B74: =IF(A74>MAX($A$60:A73),"TAK","NIE") -> NIE | D74: 65 | L74: 0 | M74: 0 | N74: 0 | P74: 0 | Q74: 0 | R74: nie | S74: 1
A75: =COUNTIF($R$60:R75,"tak") -> 13 | B75: =IF(A75>MAX($A$60:A74),"TAK","NIE") -> NIE | D75: 66 | L75: 0 | M75: 0 | N75: 0 | P75: 0 | Q75: 0 | R75: nie | S75: 1
A76: =COUNTIF($R$60:R76,"tak") -> 13 | B76: =IF(A76>MAX($A$60:A75),"TAK","NIE") -> NIE | D76: 67 | L76: 0 | M76: 0 | N76: 0 | P76: 0 | Q76: 0 | R76: nie | S76: 1
A77: =COUNTIF($R$60:R77,"tak") -> 14 | B77: =IF(A77>MAX($A$60:A72),"TAK","NIE") -> TAK | C77: 14 | D77: =D76+1 -> 68 | E77: Inne np.ścierki, mopy, butelki, atomizery | F77: - | H77: - | J77: 30 | K77: 1 | L77: 30 | M77: 0 | N77: 30 | O77: 1 | P77: 30 | Q77: 0 | R77: tak | S77: 1
A78: =COUNTIF($R$60:R78,"tak") -> 14 | B78: =IF(A78>MAX($A$60:A77),"TAK","NIE") -> NIE | C78: =IF(B78="TAK",A78,"") ->  | D78: 69 | L78: =IFERROR((J78/K78)*O78,0) -> 0 | M78: =L78*(S78-1) -> 0 | N78: =IFERROR((J78/K78)*S78,0) -> 0 | P78: =L78*S78 -> 0 | Q78: =IFERROR(J78*S78-J78,"") -> 0 | R78: =IF(O78>0,"tak","nie") -> nie | S78: 1
A79: =COUNTIF($R$60:R79,"tak") -> 14 | B79: =IF(A79>MAX($A$60:A78),"TAK","NIE") -> NIE | D79: 70 | L79: 0 | M79: 0 | N79: 0 | P79: 0 | Q79: 0 | R79: nie | S79: 1
D80: SUMA | P80: =SUM(P60:P77) -> 2030.8
A81: =COUNTIF($R$60:R81,"tak") -> 14 | B81: =IF(A81>MAX($A$60:A68),"TAK","NIE") -> TAK | C81: =IF(B81="TAK",A81,"") -> 14 | R81: nie
A82: =COUNTIF($R$60:R82,"tak") -> 14 | B82: =IF(A82>MAX($A$60:A81),"TAK","NIE") -> NIE | D82: Sprzęt do koszenia - SPRZĘT DROBNY | R82: nie
A83: =COUNTIF($R$60:R83,"tak") -> 14 | B83: =IF(A83>MAX($A$60:A82),"TAK","NIE") -> NIE | D83: Lp | E83: Nazwa maszyny | F83: Wydajność maszyny mkw/h | H83: Czas pracy maszyny | J83: Cena | K83: Okres spłaty [msc] | L83: Koszt leasingu [msc] | M83: Eksploatacja [msc] | N83: Cena 1 szt. do oferty [msc] | O83: Ilość | P83: Kwota do oferty | Q83: Eksploatacja kwotowo (1 szt.) | S83: Wskaźnik eksploatacji | T83: Cena z eksploatacją
A84: =COUNTIF($R$60:R84,"tak") -> 15 | B84: =IF(A84>MAX($A$60:A83),"TAK","NIE") -> TAK | C84: 15 | D84: =#REF!+1 ->  | E84: Kosiarka spalinowa | F84: - | H84: - | J84: 2100 | K84: 12 | L84: =IFERROR((T84/K84)*O84,0) -> 210 | M84: =L84*0.2 -> 42 | N84: =IFERROR((T84/K84)*S84,0) -> 252 | O84: 1 | P84: =L84*S84 -> 252 | Q84: =T84*S84-T84 -> 504 | R84: tak | S84: 1.2 | T84: =J84*1.2 -> 2520
A85: =COUNTIF($R$60:R85,"tak") -> 16 | B85: =IF(A85>MAX($A$60:A84),"TAK","NIE") -> TAK | C85: 16 | E85: Kosa spalinowa (Sparta 441T - 2,0KM) | F85: - | H85: - | J85: 1500 | K85: 12 | L85: 150 | M85: 30 | N85: 180 | O85: 1 | P85: 180 | Q85: 360 | R85: tak | S85: 1.2 | T85: 1800
A86: =COUNTIF($R$60:R86,"tak") -> 17 | B86: =IF(A86>MAX($A$60:A85),"TAK","NIE") -> TAK | C86: 17 | E86: Dmuchawa do liści plecakowa (BV163) | F86: - | H86: - | J86: 1650 | K86: 12 | L86: 165 | M86: 33 | N86: 198 | O86: 1 | P86: 198 | Q86: 396 | R86: tak | S86: 1.2 | T86: 1980
A87: =COUNTIF($R$60:R87,"tak") -> 18 | B87: =IF(A87>MAX($A$60:A86),"TAK","NIE") -> TAK | C87: 18 | E87: Zamiatarka spalinowa / odrzutnik do śniegu OLEO MAC PKM100 | F87: - | H87: - | J87: 4200 | K87: 12 | L87: 420 | M87: 84 | N87: 504 | O87: 1 | P87: 504 | Q87: 1008 | R87: tak | S87: 1.2 | T87: 5040
A88: =COUNTIF($R$60:R88,"tak") -> 19 | B88: =IF(A88>MAX($A$60:A87),"TAK","NIE") -> TAK | C88: 19 | E88: Traktor wielofunkcyjny z osprzętem OM92/16KH (16KM) | F88: - | H88: - | J88: 10500 | K88: 24 | L88: 525 | M88: 105 | N88: 630 | O88: 1 | P88: 630 | Q88: 2520 | R88: tak | S88: 1.2 | T88: 12600
A89: =COUNTIF($R$60:R89,"tak") -> 20 | B89: =IF(A89>MAX($A$60:A88),"TAK","NIE") -> TAK | C89: 20 | E89: Przyczepka do traktora | J89: 1150 | K89: 12 | L89: 115 | M89: 23 | N89: 138 | O89: 1 | P89: 138 | Q89: 276 | R89: tak | S89: 1.2 | T89: 1380
A90: =COUNTIF($R$60:R90,"tak") -> 21 | B90: =IF(A90>MAX($A$60:A89),"TAK","NIE") -> TAK | C90: 21 | E90: Pług do traktora OM92/16KH (120 cm) | F90: - | H90: - | J90: 1550 | K90: 12 | L90: 155 | M90: 31 | N90: 186 | O90: 1 | P90: 186 | Q90: 372 | R90: tak | S90: 1.2 | T90: 1860
A91: =COUNTIF($R$60:R91,"tak") -> 22 | B91: =IF(A91>MAX($A$60:A90),"TAK","NIE") -> TAK | C91: 22 | E91: Łańcuchy na koła - do traktora | F91: - | H91: - | J91: 310 | K91: 12 | L91: 31 | M91: 6.2 | N91: 37.2 | O91: 1 | P91: 37.2 | Q91: 74.4 | R91: tak | S91: 1.2 | T91: 372
A92: =COUNTIF($R$60:R92,"tak") -> 23 | B92: =IF(A92>MAX($A$60:A91),"TAK","NIE") -> TAK | C92: 23 | E92: Zamiatarka spalinowa YATO 100 CM, poj. 196 cm3 | F92: - | H92: - | J92: 2500 | K92: 12 | L92: 250 | M92: 50 | N92: 300 | O92: 1 | P92: 300 | Q92: 600 | R92: tak | S92: 1.2 | T92: 3000
A93: =COUNTIF($R$60:R93,"tak") -> 24 | B93: =IF(A93>MAX($A$60:A92),"TAK","NIE") -> TAK | C93: 24 | F93: - | H93: - | L93: 0 | M93: 0 | N93: 0 | O93: 1 | P93: 0 | Q93: 0 | R93: tak | S93: 1.2 | T93: 0
D94: SUMA | P94: =SUM(P84:P93) -> 2425.2
D96: Teren zewnętrzny - sprzęt
D97: Lp | E97: Zestaw | F97: Wydajność maszyny mkw/h | G97: Współczynnik | H97: Czas pracy maszyny | J97: Cena | K97: Okres spłaty [msc] | L97: Miesięczny koszt | M97: Eksploatacja [msc] | N97: Cena 1 szt. do oferty [msc] | O97: Ilość | P97: Ryczałt | S97: Wskaźnik eksploatacji | T97: Cena z eksploatacją
D98: 1 | E98: Miotła, łopata, grabie, szufelka, wiaderko | G98: 1 | J98: 300 | K98: 12 | L98: =IFERROR((J98/K98)*O98,0) -> 25 | M98: =L98*(S98-1) -> 5 | N98: =IFERROR((T98/K98),0) -> 30 | O98: 1 | P98: =L98*S98 -> 30 | S98: 1.2 | T98: =J98*S98 -> 360
D99: 2 | G99: 1 | L99: =IFERROR((J99/K99)*O99,0) -> 0 | M99: =L99*(S99-1) -> 0 | N99: =IFERROR((T99/K99),0) -> 0 | P99: =L99*S99 -> 0 | S99: 1.2 | T99: =J99*S99 -> 0
D100: 3 | G100: 1 | L100: 0 | M100: 0 | N100: 0 | P100: 0 | S100: 1.2 | T100: 0
D101: 4 | G101: 1 | L101: 0 | M101: 0 | N101: 0 | P101: 0 | S101: 1.2 | T101: 0
D102: 5 | G102: 1 | L102: 0 | M102: 0 | N102: 0 | P102: 0 | S102: 1.2 | T102: 0
D103: SUMA | P103: =SUM(P98:S102) -> 36
D105: MASZYNY / SPRZĘT
D106: SUMA | E106: =SUM(P84:P93,P60:P77,P6:P31,H103) -> 56546

Sheet CHEMIA
B2: PIELĘGNACJA / CHEMIA
B4: Biura
B5: Lp | C5: Przedział metrażu mkw | D5: Metraż | E5: Współczynnik | F5: Ryczałt
B6: 1 | C6: <500 | E6: 0.2 | F6: =E6*D6 -> 0
B7: 2 | C7: do 1000 | E7: 0.15 | F7: 0
B8: 3 | C8: do 2000 | E8: 0.125 | F8: 0
B9: 4 | C9: do 5000 | E9: 0.12 | F9: 0
B10: 5 | C10: do 10 000 | E10: 0.1 | F10: 0
B11: 6 | C11: > 10 000 | E11: 0.09 | F11: 0
B12: SUMA | D12: =SUM(D6:D11) -> 0 | F12: =SUM(F6:F11) -> 0
B14: Powierzchnie produkcyjne
B15: Lp | C15: Przedział metrażu mkw | D15: Metraż | E15: Współczynnik | F15: Ryczałt
B16: 1 | C16: <500 | E16: 0.075 | F16: =E16*D16 -> 0
B17: 2 | C17: do 1000 | E17: 0.075 | F17: 0
B18: 3 | C18: do 2000 | E18: 0.06 | F18: 0
B19: 4 | C19: do 5000 | E19: 0.05 | F19: 0
B20: 5 | C20: do 10 000 | E20: 0.04 | F20: 0
B21: 6 | C21: > 10 000 | E21: 0.035 | F21: 0
B22: SUMA | D22: =SUM(D16:D21) -> 0 | F22: =SUM(F16:F21) -> 0
B24: Powierzchnie magazynowe
B25: Lp | C25: Przedział metrażu mkw | D25: Metraż | E25: Współczynnik | F25: Ryczałt
B26: 1 | C26: <500 | E26: 0.075 | F26: =E26*D26 -> 0
B27: 2 | C27: do 1000 | E27: 0.075 | F27: 0
B28: 3 | C28: do 2000 | E28: 0.06 | F28: 0
B29: 4 | C29: do 5000 | E29: 0.05 | F29: 0
B30: 5 | C30: do 10 000 | E30: 0.04 | F30: 0
B31: 6 | C31: > 10 000 | E31: 0.035 | F31: 0
B32: SUMA | D32: =SUM(D26:D31) -> 0 | F32: =SUM(F26:F31) -> 0
B34: Powierzchnie medyczne / sanitariaty
B35: Lp | C35: Przedział metrażu mkw | D35: Metraż | E35: Współczynnik | F35: Ryczałt
B36: 1 | C36: <500 | E36: 0.75 | F36: =E36*D36 -> 0
B37: 2 | C37: do 1000 | E37: 0.6 | F37: 0
B38: 3 | C38: do 2000 | E38: 0.5 | F38: 0
B39: 4 | C39: do 5000 | E39: 0.4 | F39: 0
B40: 5 | C40: do 10 000 | E40: 0.35 | F40: 0
B41: 6 | C41: > 10 000 | E41: 0.25 | F41: 0
B42: SUMA | D42: =SUM(D36:D41) -> 0 | F42: =SUM(F36:F41) -> 0
B44: Teren zewnętrzny
B45: Lp | C45: Przedział metrażu mkw | D45: Metraż | E45: Współczynnik | F45: Ryczałt
B46: 1 | C46: <1000 | E46: 0.075 | F46: =E46*D46 -> 0
B47: 2 | C47: do 2000 | E47: 0.075 | F47: =E47*D47 -> 0
B48: 3 | C48: do 5000 | E48: 0.06 | F48: =E48*D48 -> 0
B49: 4 | C49: do 10 000 | E49: 0.05 | F49: 0
B50: 5 | C50: do 30 000 | E50: 0.04 | F50: 0
B51: 6 | C51: > 30 000 | E51: 0.012 | F51: 0
B52: SUMA | D52: =SUM(D46:D51) -> 0 | F52: =SUM(F46:F51) -> 0
B54: PIELĘGNACJA / CHEMIA
B55: SUMA | F55: =SUM(F12,F22,F32,F42,F52) -> 0

Sheet HIGIENA
B2: HIGIENA
B4: Biura
B5: Lp | C5: Standard | D5: Ilość osób | E5: Ryczałt osoba | F5: Ryczałt
B6: 1 | C6: Niski | E6: 12 | F6: =D6*E6 -> 0
B7: 2 | C7: Średni | E7: 14 | F7: =D7*E7 -> 0
B8: 3 | C8: Wysoki | E8: 16 | F8: =D8*E8 -> 0
B9: SUMA | D9: =SUM(D6:D8) -> 0 | F9: =SUM(F6:F8) -> 0
B11: Powierzchnie produkcyjne
B12: Lp | C12: Standard | D12: Ilość osób | E12: Ryczałt osoba | F12: Ryczałt
B13: 1 | C13: Niski | E13: 10 | F13: =D13*E13 -> 0
B14: 2 | C14: Średni | E14: 12 | F14: =D14*E14 -> 0
B15: 3 | C15: Wysoki | E15: 14 | F15: =D15*E15 -> 0
B16: SUMA | D16: =SUM(D13:D15) -> 0 | F16: =SUM(F13:F15) -> 0
B18: Powierzchnie magazynowe
B19: Lp | C19: Standard | D19: Ilość osób | E19: Ryczałt osoba | F19: Ryczałt
B20: 1 | C20: Niski | E20: 10 | F20: =D20*E20 -> 0
B21: 2 | C21: Średni | E21: 12 | F21: =D21*E21 -> 0
B22: 3 | C22: Wysoki | E22: 14 | F22: =D22*E22 -> 0
B23: SUMA | D23: =SUM(D20:D22) -> 0 | F23: =SUM(F20:F22) -> 0
B25: Galeria
B26: Lp | C26: Przedział metrażu mkw | D26: Metraż | E26: Ryczałt mkw | F26: Ryczałt
B27: 1 | C27: do 2000 | E27: 0.35 | F27: =D27*E27 -> 0
B28: 2 | C28: do 5000 | E28: 0.3 | F28: 0
B29: 3 | C29: do 10 000 | E29: 0.25 | F29: 0
B30: 4 | C30: do 20 000 | E30: 0.23 | F30: 0
B31: 5 | C31: do 30 000 | E31: 0.21 | F31: 0
B32: 6 | C32: > 30 000 | E32: 0.2 | F32: 0
B33: SUMA | D33: =SUM(D27:D32) -> 0 | F33: =SUM(F27:F32) -> 0
B35: Kosze
B36: Lp | C36: Przedział metrażu mkw | D36: Metraż | E36: Ryczałt mkw | F36: Ryczałt
B37: 1 | C37: do 2000 | E37: 0.2 | F37: =D37*E37 -> 0
B38: 2 | C38: do 5000 | E38: 0.18 | F38: 0
B39: 3 | C39: do 10 000 | E39: 0.15 | F39: 0
B40: 4 | C40: do 20 000 | E40: 0.13 | F40: 0
B41: 5 | C41: do 30 000 | E41: 0.11 | F41: 0
B42: 6 | C42: > 30 000 | E42: 0.1 | F42: 0
B43: SUMA | D43: =SUM(D37:D42) -> 0 | F43: =SUM(F37:F42) -> 0
B45: HIGIENA
B46: SUMA | F46: =SUM(F9,F16,F23,F33,F43) -> 0

Sheet ZIMA
B2: ZIMA
B4: Sprzęt ciężki - na miejscu
B5: Lp | C5: Nazwa maszyny | D5: Ilośc maszyn | E5: rbh/dzień | F5: Postojowe | G5: zł/rbh | H5: Dni pracujące / m-c | I5: Kwota do oferty | J5: Budżet na roboczogodziny | K5: Budżet na postojowe
B6: 1 | C6: Traktor duży - zima | D6: 0 | E6: 0 | F6: 4500 | G6: 150 | H6: 0 | I6: =((D6*H6*E6*G6*5))/12+((F6*5*D6)/12) -> 0 | J6: =I6*12-K6 -> 0 | K6: =F6*5*D6 -> 0
B7: =B6+1 -> 2 | C7: Traktor mały - zima | D7: 0 | E7: 0 | F7: 2500 | G7: 120 | H7: 0 | I7: =((D7*H7*E7*G7*5))/12+((F7*5*D7)/12) -> 0 | J7: =I7*12-K7 -> 0 | K7: =F7*5*D7 -> 0
B8: =B7+1 -> 3 | C8: Ładowarka | D8: 0 | E8: 0 | F8: 3000 | G8: 150 | H8: 0 | I8: 0 | J8: 0 | K8: 0
B9: =B8+1 -> 4 | C9: Wywrotka | D9: 0 | E9: 0 | F9: 3000 | G9: 150 | H9: 0 | I9: 0 | J9: 0 | K9: 0
B10: =B9+1 -> 5 | H10: 0 | I10: 0 | J10: =I10*12-K10 -> 0 | K10: 0
B11: SUMA | I11: =SUM(I6:I10) -> 0 | J11: =SUM(J6:J10) -> 0 | K11: =SUM(K6:K10) -> 0
B13: Teren zewnętrzny - sprzęt do prac ręcznych
B14: Lp | C14: Zestaw | D14: Ilość | F14: Cena | I14: Kwota do oferty
B15: 6 | C15: Łopata do odśnieżania, łopatka, szufelka, wiaderko (ilość zestawów) | D15: 0 | F15: 300 | G15: 1 | I15: =(D15*F15*G15)/12 -> 0
B16: 7 | C16: Inne | G16: 1 | I16: =(D16*F16*G16)/12 -> 0
B17: SUMA | I17: =SUM(I15:I16) -> 0
B19: Sprzęt ciężki - dojazd
B20: Lp | C20: Nazwa maszyny | D20: Ilośc maszyn | E20: rbh/przyjazd | F20: Dojazd | G20: zł/rhb | H20: Ilość przyjazdów | I20: Kwota do oferty [msc]
B21: 1 | C21: Traktor duży - zima | D21: 0 | E21: 0 | F21: 250 | G21: 120 | H21: 0 | I21: =((D21*E21*H21*G21*5)+(D21*F21*H21*5))/12 -> 0
B22: =B21+1 -> 2 | C22: Traktor mały - zima | D22: 0 | E22: 0 | F22: 250 | G22: 100 | H22: 0 | I22: 0
B23: =B22+1 -> 3 | C23: Ładowarka | D23: 0 | E23: 0 | F23: 250 | G23: 100 | H23: 0 | I23: =((D23*E23*H23*G23*5)+(D23*F23*H23*5))/12 -> 0
B24: =B23+1 -> 4 | C24: Wywrotka | D24: 0 | E24: 0 | F24: 250 | G24: 100 | H24: 0 | I24: 0
B25: =B24+1 -> 5 | H25: 0 | I25: 0
B26: =B25+1 -> 6 | H26: 0 | I26: 0
B27: SUMA | I27: =SUM(I21:I26) -> 0
B29: Koszty mieszanki / płatne przez okres 12 miesięcy (mieszanka sól/piach)
B30: Lp | C30: Przedział metrażu mkw | D30: Metraż | E30: Współczynnik | F30: Ilość miesięcy w roku | G30: Kwota do oferty
B31: 1 | C31: <1000 | E31: 1.55 | F31: 12 | G31: =(E31*D31)/F31 -> 0
B32: =B31+1 -> 2 | C32: do 2000 | E32: 1.35 | F32: 12 | G32: 0
B33: =B32+1 -> 3 | C33: do 5000 | E33: 1.1 | F33: 12 | G33: 0
B34: =B33+1 -> 4 | C34: do 10 000 | E34: 0.88 | F34: 12 | G34: 0
B35: =B34+1 -> 5 | C35: do 30 000 | E35: 0.55 | F35: 12 | G35: 0
B36: =B35+1 -> 6 | C36: > 30 000 | E36: 0.5 | F36: 12 | G36: 0
B37: SUMA | D37: =SUM(D31:D36) -> 0 | G37: =SUM(G31:G36) -> 0
B39: ZIMA
B40: SUMA | I40: =SUM(I11,I17,I27,G37) -> 0

Sheet ZIMA ceny (hidden)
B2: ZIMA
B4: Sprzęt ciężki - na miejscu
B5: Lp | C5: Nazwa maszyny | D5: Ilośc maszyn | E5: rbh/dzień | F5: Postojowe | G5: zł/rbh | H5: Dni pracujące | I5: Kwota do oferty | J5: Budżet na roboczogodziny | K5: Budżet na postojowe
B6: 1 | C6: Traktor duży - zima | D6: 0 | E6: 0 | F6: 4500 | G6: 150 | H6: 0 | I6: =((D6*H6*E6*G6*5))/12+((F6*5*D6)/12) -> 0 | J6: =I6*12-K6 -> 0 | K6: =F6*5*D6 -> 0
B7: =B6+1 -> 2 | C7: Traktor mały - zima | D7: 0 | E7: 0 | F7: 2500 | G7: 120 | H7: 0 | I7: =((D7*H7*E7*G7*5))/12+((F7*5*D7)/12) -> 0 | J7: =I7*12-K7 -> 0 | K7: =F7*5*D7 -> 0
B8: =B7+1 -> 3 | C8: Ładowarka | D8: 0 | E8: 0 | F8: 3000 | G8: 150 | H8: 0 | I8: 0 | J8: 0 | K8: 0
B9: =B8+1 -> 4 | C9: Wywrotka | D9: 0 | E9: 0 | F9: 3000 | G9: 150 | H9: 0 | I9: 0 | J9: 0 | K9: 0
B10: =B9+1 -> 5 | H10: 0 | I10: 0 | J10: =I10*12-K10 -> 0 | K10: 0
B11: SUMA | I11: =SUM(I6:I10) -> 0 | J11: =SUM(J6:J10) -> 0 | K11: =SUM(K6:K10) -> 0
B13: Teren zewnętrzny - sprzęt do prac ręcznych
B14: Lp | C14: Zestaw | D14: ilość zestawów lub cena | F14: Cena | I14: Kwota do oferty
B15: 6 | C15: Łopata do odśnieżania, łopatka, szufelka, wiaderko (ilość zestawów) | F15: 300 | G15: 1 | I15: =(D15*F15*G15)/12 -> 0
B16: 7 | C16: Inne (cena) | G16: 1 | I16: =(D16*G16)/12 -> 0
B17: SUMA | I17: =SUM(I15:I16) -> 0
B19: Sprzęt ciężki - dojazd
B20: Lp | C20: Nazwa maszyny | D20: Ilośc maszyn | E20: rbh/przyjazd | F20: Dojazd | G20: zł/rhb | H20: Ilość przyjazdów | I20: Kwota do oferty [msc]
B21: 1 | C21: Traktor duży - zima | D21: 0 | E21: 0 | F21: 250 | G21: 120 | H21: 0 | I21: =((D21*E21*H21*G21*5)+(D21*F21*H21*5))/12 -> 0
B22: =B21+1 -> 2 | C22: Traktor mały - zima | D22: 0 | E22: 0 | F22: 250 | G22: 100 | H22: 0 | I22: 0
B23: =B22+1 -> 3 | C23: Ładowarka | D23: 0 | E23: 0 | F23: 250 | G23: 100 | H23: 0 | I23: =((D23*E23*H23*G23*5)+(D23*F23*H23*5))/12 -> 0
B24: =B23+1 -> 4 | C24: Wywrotka | D24: 0 | E24: 0 | F24: 250 | G24: 100 | H24: 0 | I24: 0
B25: =B24+1 -> 5 | H25: 0 | I25: 0
B26: =B25+1 -> 6 | H26: 0 | I26: 0
B27: SUMA | I27: =SUM(I21:I26) -> 0
B29: Koszty mieszanki / płatne przez okres 12 miesięcy (mieszanka sól/piach)
B30: Lp | C30: Przedział metrażu mkw | D30: Metraż | E30: Współczynnik | F30: Ilość miesięcy w roku | G30: Kwota do oferty
B31: 1 | C31: <1000 | E31: 1.35 | F31: 12 | G31: =(E31*D31)/F31 -> 0
B32: =B31+1 -> 2 | C32: do 2000 | E32: 1.15 | F32: 12 | G32: 0
B33: =B32+1 -> 3 | C33: do 5000 | E33: 0.9 | F33: 12 | G33: 0
B34: =B33+1 -> 4 | C34: do 10 000 | E34: 0.68 | F34: 12 | G34: 0
B35: =B34+1 -> 5 | C35: do 30 000 | E35: 0.35 | F35: 12 | G35: 0
B36: =B35+1 -> 6 | C36: > 30 000 | E36: 0.3 | F36: 12 | G36: 0
B37: SUMA | D37: =SUM(D31:D36) -> 0 | G37: =SUM(G31:G36) -> 0
B39: ZIMA
B40: SUMA | I40: =SUM(I11,I17,I27,G37) -> 0

Sheet POZOSTAŁE
D2: POZOSTAŁE KOSZTY
D4: POZOSTAŁE KOSZTY
D5: Lp | E5: Nazwa | F5: ilość / mkw | G5: krotność w roku | H5: Cena za jednostkę | I5: Cena | J5: Kwota do oferty [msc]
D6: 1 | E6: ZAKUP ODZIEŻY - pracownik biurowo-socjalny | F6: 0 | G6: 1 | H6: 210 | I6: =IF(F6="","",F6*G6*H6) -> 0 | J6: =IFERROR(I6/12,"") -> 0
D7: =D6+1 -> 2 | E7: ZAKUP ODZIEŻY - pracownik magazynowo-produkcyjny | F7: 0 | G7: 1 | H7: 287 | I7: =IF(F7="","",F7*G7*H7) -> 0 | J7: =IFERROR(I7/12,"") -> 0
C8: =COUNTIF(C9:C16,2) -> 0 | D8: =D7+1 -> 3 | E8: Pranie strojów roboczych | F8: =F6+F7 -> 0 | G8: 12 | H8: 20 | I8: =IF(F8="","",F8*G8*H8) -> 0 | J8: 0
A9: =COUNTIF($K$8:K9,"tak") -> 0 | B9: =IF(A9>MAX($A$8:A8),"TAK","NIE") -> NIE | C9: =IF(B9="TAK",A9,"") ->  | D9: 4 | E9: Mycie okien | H9: 2 | I9: =IF(F9="","",F9*G9*H9) ->  | J9: =IFERROR(I9/12,"") ->  | K9: =IF(F9*G9>0,"tak","nie") -> nie
A10: =COUNTIF($K$8:K10,"tak") -> 0 | B10: =IF(A10>MAX($A$8:A9),"TAK","NIE") -> NIE | D10: 5 | E10: Przeszklenia wewnętrzne | H10: 10 | I10: =IF(F10="","",F10*G10*H10) ->  | K10: nie
A11: =COUNTIF($K$8:K11,"tak") -> 0 | B11: =IF(A11>MAX($A$8:A10),"TAK","NIE") -> NIE | D11: 6 | E11: Nakładanie polimerów | H11: 8 | K11: nie
A12: =COUNTIF($K$8:K12,"tak") -> 0 | B12: =IF(A12>MAX($A$8:A11),"TAK","NIE") -> NIE | D12: 7 | E12: Paliwo do maszyn | H12: 7.5 | K12: nie
A13: =COUNTIF($K$8:K13,"tak") -> 0 | B13: =IF(A13>MAX($A$8:A12),"TAK","NIE") -> NIE | D13: 8 | E13: Pranie wykładzin | H13: 10 | K13: nie
A14: =COUNTIF($K$8:K14,"tak") -> 0 | B14: =IF(A14>MAX($A$8:A13),"TAK","NIE") -> NIE | D14: 9 | E14: Koszenie | K14: nie
A15: =COUNTIF($K$8:K15,"tak") -> 0 | B15: =IF(A15>MAX($A$8:A14),"TAK","NIE") -> NIE | D15: 10 | K15: nie
A16: =COUNTIF($K$8:K16,"tak") -> 0 | B16: =IF(A16>MAX($A$8:A15),"TAK","NIE") -> NIE | D16: 11 | K16: nie
A17: =COUNTIF($K$8:K17,"tak") -> 0 | B17: =IF(A17>MAX($A$8:A16),"TAK","NIE") -> NIE | C17: =IF(B17="TAK",A17,"") ->  | D17: 12 | I17: =IF(F17="","",F17*G17*H17) ->  | J17: =IFERROR(I17/12,"") ->  | K17: =IF(F17*G17>0,"tak","nie") -> nie
A18: =COUNTIF($K$8:K18,"tak") -> 0 | B18: =IF(A18>MAX($A$8:A17),"TAK","NIE") -> NIE | D18: 13 | K18: nie
A19: =COUNTIF($K$8:K19,"tak") -> 0 | B19: =IF(A19>MAX($A$8:A18),"TAK","NIE") -> NIE | D19: 14 | K19: nie
A20: =COUNTIF($K$8:K20,"tak") -> 0 | B20: =IF(A20>MAX($A$8:A19),"TAK","NIE") -> NIE | D20: 15 | K20: nie
D21: SUMA | J21: =SUM(J6:J20) -> 0
D23: Budżet na dojazdy koordynatorów
F24: odległośc w km (w 2 strony) | G24: krotność w tygodniu | H24: stawka za 1 km
D25: =D24+1 -> 1 | E25: Obsługa obiektu - dostawy, kontrole | F25: 0 | G25: 0 | H25: 0.9 | I25: =L25/12 -> 0 | L25: =(((F25*H25)*(G25*53))) -> 0
D26: SUMA | J26: =SUM(I25:J25) -> 0
D28: POZOSTAŁE KOSZTY + BUDŻET NA DOJAZDY KOORDYNATORÓW
D29: SUMA | J29: =SUM(J21,J26) -> 0

Sheet POZOSTAŁE ceny (hidden)
D2: POZOSTAŁE KOSZTY
D4: POZOSTAŁE KOSZTY
D5: Lp | E5: Nazwa | F5: ilość / mkw | G5: krotność w roku | H5: Cena za jednostkę | I5: Cena | J5: Kwota do oferty [msc]
D6: 1 | E6: Zakup odzieży - pracownik biurowo-socjalny | G6: 1 | H6: 210 | I6: =IF(F6="","",F6*G6*H6) ->  | J6: =IFERROR(I6/12,"") -> 
D7: =D6+1 -> 2 | E7: Zakup odzieży - pracownik magazynowo-produkcyjny | G7: 1 | H7: 287 | I7: =IF(F7="","",F7*G7*H7) ->  | J7: =IFERROR(I7/12,"") -> 
D8: =D7+1 -> 3 | E8: Pranie strojów roboczych | G8: 12 | H8: 20 | I8: =IF(F8="","",F8*G8*H8) -> 
D9: 4 | E9: Mycie okien | G9: 2 | H9: 2 | I9: =IF(F9="","",F9*G9*H9) ->  | J9: =IFERROR(I9/12,"") -> 
D10: 5 | E10: Przeszklenia wewnętrzne | H10: 10 | I10: =IF(F10="","",F10*G10*H10) -> 
D11: 6 | E11: Nakładanie polimerów | H11: 8
D12: 7 | E12: Paliwo do maszyn | H12: 7.5
D13: 8 | E13: Pranie wykładzin | H13: 10
D14: 9 | E14: Koszenie
D15: 10
D16: 11
D17: 12 | I17: =IF(F17="","",F17*G17*H17) ->  | J17: =IFERROR(I17/12,"") -> 
D18: 13
D19: 14
D20: 15
D21: SUMA | J21: =SUM(J6:J20) -> 0
D23: Budżet na dojazdy koordynatorów
F24: odległośc w km (w 2 strony) | G24: krotność w tygodniu | H24: stawka za 1 km
D25: =D24+1 -> 1 | E25: Obsługa obiektu - dostawy, kontrole | H25: 0.9 | I25: =L25/12 -> 0 | L25: =(((F25*H25)*(G25*53))) -> 0
D26: SUMA | J26: =SUM(I25:J25) -> 0
D28: POZOSTAŁE KOSZTY + BUDŻET NA DOJAZDY KOORDYNATORÓW
D29: SUMA | J29: =SUM(J21,J26) -> 0

Sheet PODSUMOWANIE
B2: PODSUMOWANIE
G3: Rentowność kontraktów
B4: KOSZTY | G4: rodzaj usługi | H4: Wartość usługi od | I4: Wartość usługi do | J4: Min. próg rentowności
B5: Lp | C5: Rodzaj kosztów | D5: Suma | G5: stała | H5: 0 | I5: 2000 | J5: 0.35
B6: 1 | C6: Pracownicy | D6: =SUM(PRACOWNICY!AC24,PRACOWNICY!Y28,PRACOWNICY!J32,PRACOWNICY!J33) -> 233.1222188 | H6: =I5+0.01 -> 2000.01 | I6: 5000 | J6: 0.3
B7: =B6+1 -> 2 | C7: Zakup maszyn | D7: =SUM('MASZYNY SPRZĘT'!L6:L55,'MASZYNY SPRZĘT'!L60:L79,'MASZYNY SPRZĘT'!L84:L93,'MASZYNY SPRZĘT'!L98:L102) -> 0 | H7: =I6+0.01 -> 5000.01 | I7: 10000 | J7: 0.25
B8: =B7+1 -> 3 | C8: Eksploatacja maszyn | D8: =SUM('MASZYNY SPRZĘT'!M6:M55,'MASZYNY SPRZĘT'!M60:M79,'MASZYNY SPRZĘT'!M84:M93,'MASZYNY SPRZĘT'!M98:M102)-'MASZYNY SPRZĘT'!M77 -> 0 | H8: =I7+0.01 -> 10000.01 | I8: 20000 | J8: 0.23
B9: 4 | C9: Chemia | D9: =CHEMIA!F55 -> 0 | H9: =I8+0.01 -> 20000.01 | J9: 0.2
B10: 5 | C10: Higiena | D10: =HIGIENA!F46 -> 0
B11: 6 | C11: Pozostałe | D11: =POZOSTAŁE!J29 -> 0
B12: 7 | C12: Zima | D12: =ZIMA!I40 -> 0
B13: 8
B14: SUMA | D14: =SUM(D6:D13) -> 233.1222188
B16: MARŻA PROPONOWANA | C16: =VLOOKUP(D14,$H$4:$J$9,3,1) -> 0.35
B17: MARŻA FINALNA | C17: 0.3 | D17: =D14*IF(C17="",C16,C17) -> 69.93666563
B19: SUMA KOSZTÓW Z MARŻĄ | D19: =SUM(D14,D17) -> 303.0588844
B21: PROPOZYCJA CENY | D21: =CEILING(D19,100) -> 400
B23: ZYSK / STRATA | D23: =D21-D14 -> 166.8777812

Sheet Karta obiektu
F1: ` | M1: Czy chować wiersz
B9: POCZĄTEK OBSŁUGI | D9: =IF(G15="","",G15) -> 
B11: KARTA INFORMACYJNA OBIEKTU
B13: DANE KONTAKTOWE
B14: Pełna nazwa zleceniodawcy | F14: Zgodnie z umową nr z dnia
B15: Lokalizacja obiektu | F15: Data rozpoczęcia usługi | H15: Aneksy/zmiany
B16: Rodzaj faktury | F16: Termin wystawiania faktury
B17: Adres | F17: Osoba odpowiedzialna po stronie Zleceniodawcy
B18: NIP | F18: Telefon
B19: Dodatkowe informacje | F19: Email
B21: Spółka zleceniobiorcy
B22: Przedstawiciel handlowy | F22: Kierownik operacyjny obiektu
B23: Telefon | F23: Telefon
B24: Email | F24: Email
B26: SPECYFIKACJA OBIEKTU
B27: Łączna powierzchnia sprzątania w m2 | E27: Powierzchnie wewnętrzne w m2 | G27: Powiechnie zewnętrzne m2
B28: =E28+G28 -> 0 | E28: =SUM(F29:F32) -> 0 | G28: =CHEMIA!D52+I29 -> 0
B29: Typ posadzki | E29: =CHEMIA!B4 -> Biura | F29: =IF(CHEMIA!D12="","",CHEMIA!D12) -> 0 | G29: Tereny zielone
E30: =CHEMIA!B14 -> Powierzchnie produkcyjne | F30: =IF(CHEMIA!D22="","",CHEMIA!D22) -> 0 | G30: Drogi
E31: =CHEMIA!B24 -> Powierzchnie magazynowe | F31: =IF(CHEMIA!D32="","",CHEMIA!D32) -> 0 | G31: Parkingi
E32: =CHEMIA!B34 -> Powierzchnie medyczne / sanitariaty | F32: =IF(CHEMIA!D42="","",CHEMIA!D42) -> 0 | G32: Ciągi pieszych
B34: Budżet na eksploatację maszyn (pady, szczotki, gumy, serwis) | E34: =SUM(E38:E66) -> 0 | F34: Budżet na eksploatację sprzętu drobnego | I34: =SUM(I38:I87) -> 0
B35: Budżet na najem maszyn | E35: =SUM(D38:D66) -> 0 | F35: Budżet na zakup sprzętu drobnego | I35: =SUM(H38:H87) -> 0
B36: WYKAZ MASZYN | F36: WYKAZ SPRZĘTU DROBNEGO
B37: Symbol i nazwa | C37: Ilość | D37: Budżet na najem msc | E37: Koszt eksploatacji msc | F37: Symbol i nazwa | G37: Ilość | H37: Budżet na zakup | I37: Koszt eksploatacji msc
A38: 1 | B38: =IFERROR(VLOOKUP(A38,'MASZYNY SPRZĘT'!$C$6:$S$55,3,0),"---") -> --- | C38: =IFERROR(VLOOKUP(A38,'MASZYNY SPRZĘT'!$C$6:$S$55,13,0),"---") -> --- | D38: =IFERROR(VLOOKUP(A38,'MASZYNY SPRZĘT'!$C$6:$S$55,10,0),"---") -> --- | E38: =IFERROR(VLOOKUP(A38,'MASZYNY SPRZĘT'!$C$6:$S$55,11,0),"---") -> --- | F38: =IFERROR(VLOOKUP(A38,'MASZYNY SPRZĘT'!$C$60:$S$80,3,0),"---") -> --- | G38: =IFERROR(VLOOKUP(A38,'MASZYNY SPRZĘT'!$C$60:$S$80,13,0),"---") -> --- | H38: =IFERROR(IFERROR(VLOOKUP(A38,'MASZYNY SPRZĘT'!$C$60:$S$80,8,0),"---")*G38,"---") -> --- | I38: =IFERROR(VLOOKUP(A38,'MASZYNY SPRZĘT'!$C$60:$S$80,11,0),"---") -> ---
A39: 2 | B39: =IFERROR(VLOOKUP(A39,'MASZYNY SPRZĘT'!$C$6:$S$55,3,0),"---") -> --- | C39: =IFERROR(VLOOKUP(A39,'MASZYNY SPRZĘT'!$C$6:$S$55,13,0),"---") -> --- | D39: =IFERROR(VLOOKUP(A39,'MASZYNY SPRZĘT'!$C$6:$S$55,10,0),"---") -> --- | E39: =IFERROR(VLOOKUP(A39,'MASZYNY SPRZĘT'!$C$6:$S$55,11,0),"---") -> --- | F39: =IFERROR(VLOOKUP(A39,'MASZYNY SPRZĘT'!$C$60:$S$80,3,0),"---") -> --- | G39: =IFERROR(VLOOKUP(A39,'MASZYNY SPRZĘT'!$C$60:$S$80,13,0),"---") -> --- | H39: =IFERROR(IFERROR(VLOOKUP(A39,'MASZYNY SPRZĘT'!$C$60:$S$80,8,0),"---")*G39,"---") -> --- | I39: =IFERROR(VLOOKUP(A39,'MASZYNY SPRZĘT'!$C$60:$S$80,11,0),"---") -> --- | M39: =IF(SUM(C39,G39)<=0,"TAK","") -> TAK
A40: 3 | B40: =IFERROR(VLOOKUP(A40,'MASZYNY SPRZĘT'!$C$6:$S$55,3,0),"---") -> --- | C40: =IFERROR(VLOOKUP(A40,'MASZYNY SPRZĘT'!$C$6:$S$55,13,0),"---") -> --- | D40: =IFERROR(VLOOKUP(A40,'MASZYNY SPRZĘT'!$C$6:$S$55,10,0),"---") -> --- | E40: =IFERROR(VLOOKUP(A40,'MASZYNY SPRZĘT'!$C$6:$S$55,11,0),"---") -> --- | F40: =IFERROR(VLOOKUP(A40,'MASZYNY SPRZĘT'!$C$60:$S$80,3,0),"---") -> --- | G40: =IFERROR(VLOOKUP(A40,'MASZYNY SPRZĘT'!$C$60:$S$80,13,0),"---") -> --- | H40: =IFERROR(IFERROR(VLOOKUP(A40,'MASZYNY SPRZĘT'!$C$60:$S$80,8,0),"---")*G40,"---") -> --- | I40: =IFERROR(VLOOKUP(A40,'MASZYNY SPRZĘT'!$C$60:$S$80,11,0),"---") -> --- | M40: TAK
A41: 4 | B41: =IFERROR(VLOOKUP(A41,'MASZYNY SPRZĘT'!$C$6:$S$55,3,0),"---") -> --- | C41: =IFERROR(VLOOKUP(A41,'MASZYNY SPRZĘT'!$C$6:$S$55,13,0),"---") -> --- | D41: =IFERROR(VLOOKUP(A41,'MASZYNY SPRZĘT'!$C$6:$S$55,10,0),"---") -> --- | E41: =IFERROR(VLOOKUP(A41,'MASZYNY SPRZĘT'!$C$6:$S$55,11,0),"---") -> --- | F41: =IFERROR(VLOOKUP(A41,'MASZYNY SPRZĘT'!$C$60:$S$80,3,0),"---") -> --- | G41: =IFERROR(VLOOKUP(A41,'MASZYNY SPRZĘT'!$C$60:$S$80,13,0),"---") -> --- | H41: =IFERROR(IFERROR(VLOOKUP(A41,'MASZYNY SPRZĘT'!$C$60:$S$80,8,0),"---")*G41,"---") -> --- | I41: =IFERROR(VLOOKUP(A41,'MASZYNY SPRZĘT'!$C$60:$S$80,11,0),"---") -> --- | M41: TAK
A42: 5 | B42: =IFERROR(VLOOKUP(A42,'MASZYNY SPRZĘT'!$C$6:$S$55,3,0),"---") -> --- | C42: =IFERROR(VLOOKUP(A42,'MASZYNY SPRZĘT'!$C$6:$S$55,13,0),"---") -> --- | D42: =IFERROR(VLOOKUP(A42,'MASZYNY SPRZĘT'!$C$6:$S$55,10,0),"---") -> --- | E42: =IFERROR(VLOOKUP(A42,'MASZYNY SPRZĘT'!$C$6:$S$55,11,0),"---") -> --- | F42: =IFERROR(VLOOKUP(A42,'MASZYNY SPRZĘT'!$C$60:$S$80,3,0),"---") -> --- | G42: =IFERROR(VLOOKUP(A42,'MASZYNY SPRZĘT'!$C$60:$S$80,13,0),"---") -> --- | H42: =IFERROR(IFERROR(VLOOKUP(A42,'MASZYNY SPRZĘT'!$C$60:$S$80,8,0),"---")*G42,"---") -> --- | I42: =IFERROR(VLOOKUP(A42,'MASZYNY SPRZĘT'!$C$60:$S$80,11,0),"---") -> --- | M42: TAK
A43: 6 | B43: =IFERROR(VLOOKUP(A43,'MASZYNY SPRZĘT'!$C$6:$S$55,3,0),"---") -> --- | C43: =IFERROR(VLOOKUP(A43,'MASZYNY SPRZĘT'!$C$6:$S$55,13,0),"---") -> --- | D43: =IFERROR(VLOOKUP(A43,'MASZYNY SPRZĘT'!$C$6:$S$55,10,0),"---") -> --- | E43: =IFERROR(VLOOKUP(A43,'MASZYNY SPRZĘT'!$C$6:$S$55,11,0),"---") -> --- | F43: =IFERROR(VLOOKUP(A43,'MASZYNY SPRZĘT'!$C$60:$S$80,3,0),"---") -> --- | G43: =IFERROR(VLOOKUP(A43,'MASZYNY SPRZĘT'!$C$60:$S$80,13,0),"---") -> --- | H43: =IFERROR(IFERROR(VLOOKUP(A43,'MASZYNY SPRZĘT'!$C$60:$S$80,8,0),"---")*G43,"---") -> --- | I43: =IFERROR(VLOOKUP(A43,'MASZYNY SPRZĘT'!$C$60:$S$80,11,0),"---") -> --- | M43: TAK
A44: 7 | B44: =IFERROR(VLOOKUP(A44,'MASZYNY SPRZĘT'!$C$6:$S$55,3,0),"---") -> --- | C44: =IFERROR(VLOOKUP(A44,'MASZYNY SPRZĘT'!$C$6:$S$55,13,0),"---") -> --- | D44: =IFERROR(VLOOKUP(A44,'MASZYNY SPRZĘT'!$C$6:$S$55,10,0),"---") -> --- | E44: =IFERROR(VLOOKUP(A44,'MASZYNY SPRZĘT'!$C$6:$S$55,11,0),"---") -> --- | F44: =IFERROR(VLOOKUP(A44,'MASZYNY SPRZĘT'!$C$60:$S$80,3,0),"---") -> --- | G44: =IFERROR(VLOOKUP(A44,'MASZYNY SPRZĘT'!$C$60:$S$80,13,0),"---") -> --- | H44: =IFERROR(IFERROR(VLOOKUP(A44,'MASZYNY SPRZĘT'!$C$60:$S$80,8,0),"---")*G44,"---") -> --- | I44: =IFERROR(VLOOKUP(A44,'MASZYNY SPRZĘT'!$C$60:$S$80,11,0),"---") -> --- | M44: TAK
A45: 8 | B45: =IFERROR(VLOOKUP(A45,'MASZYNY SPRZĘT'!$C$6:$S$55,3,0),"---") -> --- | C45: =IFERROR(VLOOKUP(A45,'MASZYNY SPRZĘT'!$C$6:$S$55,13,0),"---") -> --- | D45: =IFERROR(VLOOKUP(A45,'MASZYNY SPRZĘT'!$C$6:$S$55,10,0),"---") -> --- | E45: =IFERROR(VLOOKUP(A45,'MASZYNY SPRZĘT'!$C$6:$S$55,11,0),"---") -> --- | F45: =IFERROR(VLOOKUP(A45,'MASZYNY SPRZĘT'!$C$60:$S$80,3,0),"---") -> --- | G45: =IFERROR(VLOOKUP(A45,'MASZYNY SPRZĘT'!$C$60:$S$80,13,0),"---") -> --- | H45: =IFERROR(IFERROR(VLOOKUP(A45,'MASZYNY SPRZĘT'!$C$60:$S$80,8,0),"---")*G45,"---") -> --- | I45: =IFERROR(VLOOKUP(A45,'MASZYNY SPRZĘT'!$C$60:$S$80,11,0),"---") -> --- | M45: TAK
A46: 9 | B46: =IFERROR(VLOOKUP(A46,'MASZYNY SPRZĘT'!$C$6:$S$55,3,0),"---") -> --- | C46: =IFERROR(VLOOKUP(A46,'MASZYNY SPRZĘT'!$C$6:$S$55,13,0),"---") -> --- | D46: =IFERROR(VLOOKUP(A46,'MASZYNY SPRZĘT'!$C$6:$S$55,10,0),"---") -> --- | E46: =IFERROR(VLOOKUP(A46,'MASZYNY SPRZĘT'!$C$6:$S$55,11,0),"---") -> --- | F46: =IFERROR(VLOOKUP(A46,'MASZYNY SPRZĘT'!$C$60:$S$80,3,0),"---") -> --- | G46: =IFERROR(VLOOKUP(A46,'MASZYNY SPRZĘT'!$C$60:$S$80,13,0),"---") -> --- | H46: =IFERROR(IFERROR(VLOOKUP(A46,'MASZYNY SPRZĘT'!$C$60:$S$80,8,0),"---")*G46,"---") -> --- | I46: =IFERROR(VLOOKUP(A46,'MASZYNY SPRZĘT'!$C$60:$S$80,11,0),"---") -> --- | M46: TAK
A47: 10 | B47: =IFERROR(VLOOKUP(A47,'MASZYNY SPRZĘT'!$C$6:$S$55,3,0),"---") -> --- | C47: =IFERROR(VLOOKUP(A47,'MASZYNY SPRZĘT'!$C$6:$S$55,13,0),"---") -> --- | D47: =IFERROR(VLOOKUP(A47,'MASZYNY SPRZĘT'!$C$6:$S$55,10,0),"---") -> --- | E47: =IFERROR(VLOOKUP(A47,'MASZYNY SPRZĘT'!$C$6:$S$55,11,0),"---") -> --- | F47: =IFERROR(VLOOKUP(A47,'MASZYNY SPRZĘT'!$C$60:$S$80,3,0),"---") -> --- | G47: =IFERROR(VLOOKUP(A47,'MASZYNY SPRZĘT'!$C$60:$S$80,13,0),"---") -> --- | H47: =IFERROR(IFERROR(VLOOKUP(A47,'MASZYNY SPRZĘT'!$C$60:$S$80,8,0),"---")*G47,"---") -> --- | I47: =IFERROR(VLOOKUP(A47,'MASZYNY SPRZĘT'!$C$60:$S$80,11,0),"---") -> --- | M47: TAK
A48: 11 | B48: =IFERROR(VLOOKUP(A48,'MASZYNY SPRZĘT'!$C$6:$S$55,3,0),"---") -> --- | C48: =IFERROR(VLOOKUP(A48,'MASZYNY SPRZĘT'!$C$6:$S$55,13,0),"---") -> --- | D48: =IFERROR(VLOOKUP(A48,'MASZYNY SPRZĘT'!$C$6:$S$55,10,0),"---") -> --- | E48: =IFERROR(VLOOKUP(A48,'MASZYNY SPRZĘT'!$C$6:$S$55,11,0),"---") -> --- | F48: =IFERROR(VLOOKUP(A48,'MASZYNY SPRZĘT'!$C$60:$S$80,3,0),"---") -> --- | G48: =IFERROR(VLOOKUP(A48,'MASZYNY SPRZĘT'!$C$60:$S$80,13,0),"---") -> --- | H48: =IFERROR(IFERROR(VLOOKUP(A48,'MASZYNY SPRZĘT'!$C$60:$S$80,8,0),"---")*G48,"---") -> --- | I48: =IFERROR(VLOOKUP(A48,'MASZYNY SPRZĘT'!$C$60:$S$80,11,0),"---") -> --- | M48: TAK
A49: 12 | B49: =IFERROR(VLOOKUP(A49,'MASZYNY SPRZĘT'!$C$6:$S$55,3,0),"---") -> --- | C49: =IFERROR(VLOOKUP(A49,'MASZYNY SPRZĘT'!$C$6:$S$55,13,0),"---") -> --- | D49: =IFERROR(VLOOKUP(A49,'MASZYNY SPRZĘT'!$C$6:$S$55,10,0),"---") -> --- | E49: =IFERROR(VLOOKUP(A49,'MASZYNY SPRZĘT'!$C$6:$S$55,11,0),"---") -> --- | F49: =IFERROR(VLOOKUP(A49,'MASZYNY SPRZĘT'!$C$60:$S$80,3,0),"---") -> --- | G49: =IFERROR(VLOOKUP(A49,'MASZYNY SPRZĘT'!$C$60:$S$80,13,0),"---") -> --- | H49: =IFERROR(IFERROR(VLOOKUP(A49,'MASZYNY SPRZĘT'!$C$60:$S$80,8,0),"---")*G49,"---") -> --- | I49: =IFERROR(VLOOKUP(A49,'MASZYNY SPRZĘT'!$C$60:$S$80,11,0),"---") -> --- | M49: TAK
A50: 13 | B50: =IFERROR(VLOOKUP(A50,'MASZYNY SPRZĘT'!$C$6:$S$55,3,0),"---") -> --- | C50: =IFERROR(VLOOKUP(A50,'MASZYNY SPRZĘT'!$C$6:$S$55,13,0),"---") -> --- | D50: =IFERROR(VLOOKUP(A50,'MASZYNY SPRZĘT'!$C$6:$S$55,10,0),"---") -> --- | E50: =IFERROR(VLOOKUP(A50,'MASZYNY SPRZĘT'!$C$6:$S$55,11,0),"---") -> --- | F50: =IFERROR(VLOOKUP(A50,'MASZYNY SPRZĘT'!$C$60:$S$80,3,0),"---") -> --- | G50: =IFERROR(VLOOKUP(A50,'MASZYNY SPRZĘT'!$C$60:$S$80,13,0),"---") -> --- | H50: =IFERROR(IFERROR(VLOOKUP(A50,'MASZYNY SPRZĘT'!$C$60:$S$80,8,0),"---")*G50,"---") -> --- | I50: =IFERROR(VLOOKUP(A50,'MASZYNY SPRZĘT'!$C$60:$S$80,11,0),"---") -> --- | M50: TAK
A51: 14 | B51: =IFERROR(VLOOKUP(A51,'MASZYNY SPRZĘT'!$C$6:$S$55,3,0),"---") -> --- | C51: =IFERROR(VLOOKUP(A51,'MASZYNY SPRZĘT'!$C$6:$S$55,13,0),"---") -> --- | D51: =IFERROR(VLOOKUP(A51,'MASZYNY SPRZĘT'!$C$6:$S$55,10,0),"---") -> --- | E51: =IFERROR(VLOOKUP(A51,'MASZYNY SPRZĘT'!$C$6:$S$55,11,0),"---") -> --- | F51: =IFERROR(VLOOKUP(A51,'MASZYNY SPRZĘT'!$C$60:$S$80,3,0),"---") -> --- | G51: =IFERROR(VLOOKUP(A51,'MASZYNY SPRZĘT'!$C$60:$S$80,13,0),"---") -> --- | H51: =IFERROR(IFERROR(VLOOKUP(A51,'MASZYNY SPRZĘT'!$C$60:$S$80,8,0),"---")*G51,"---") -> --- | I51: =IFERROR(VLOOKUP(A51,'MASZYNY SPRZĘT'!$C$60:$S$80,11,0),"---") -> --- | M51: TAK
A52: 15 | B52: =IFERROR(VLOOKUP(A52,'MASZYNY SPRZĘT'!$C$6:$S$55,3,0),"---") -> --- | C52: =IFERROR(VLOOKUP(A52,'MASZYNY SPRZĘT'!$C$6:$S$55,13,0),"---") -> --- | D52: =IFERROR(VLOOKUP(A52,'MASZYNY SPRZĘT'!$C$6:$S$55,10,0),"---") -> --- | E52: =IFERROR(VLOOKUP(A52,'MASZYNY SPRZĘT'!$C$6:$S$55,11,0),"---") -> --- | F52: =IFERROR(VLOOKUP(A52,'MASZYNY SPRZĘT'!$C$60:$S$80,3,0),"---") -> --- | G52: =IFERROR(VLOOKUP(A52,'MASZYNY SPRZĘT'!$C$60:$S$80,13,0),"---") -> --- | H52: =IFERROR(IFERROR(VLOOKUP(A52,'MASZYNY SPRZĘT'!$C$60:$S$80,8,0),"---")*G52,"---") -> --- | I52: =IFERROR(VLOOKUP(A52,'MASZYNY SPRZĘT'!$C$60:$S$80,11,0),"---") -> --- | M52: TAK
A53: 16 | B53: =IFERROR(VLOOKUP(A53,'MASZYNY SPRZĘT'!$C$6:$S$55,3,0),"---") -> --- | C53: =IFERROR(VLOOKUP(A53,'MASZYNY SPRZĘT'!$C$6:$S$55,13,0),"---") -> --- | D53: =IFERROR(VLOOKUP(A53,'MASZYNY SPRZĘT'!$C$6:$S$55,10,0),"---") -> --- | E53: =IFERROR(VLOOKUP(A53,'MASZYNY SPRZĘT'!$C$6:$S$55,11,0),"---") -> --- | F53: =IFERROR(VLOOKUP(A53,'MASZYNY SPRZĘT'!$C$60:$S$80,3,0),"---") -> --- | G53: =IFERROR(VLOOKUP(A53,'MASZYNY SPRZĘT'!$C$60:$S$80,13,0),"---") -> --- | H53: =IFERROR(IFERROR(VLOOKUP(A53,'MASZYNY SPRZĘT'!$C$60:$S$80,8,0),"---")*G53,"---") -> --- | I53: =IFERROR(VLOOKUP(A53,'MASZYNY SPRZĘT'!$C$60:$S$80,11,0),"---") -> --- | M53: TAK
A54: 17 | B54: =IFERROR(VLOOKUP(A54,'MASZYNY SPRZĘT'!$C$6:$S$55,3,0),"---") -> --- | C54: =IFERROR(VLOOKUP(A54,'MASZYNY SPRZĘT'!$C$6:$S$55,13,0),"---") -> --- | D54: =IFERROR(VLOOKUP(A54,'MASZYNY SPRZĘT'!$C$6:$S$55,10,0),"---") -> --- | E54: =IFERROR(VLOOKUP(A54,'MASZYNY SPRZĘT'!$C$6:$S$55,11,0),"---") -> --- | F54: =IFERROR(VLOOKUP(A54,'MASZYNY SPRZĘT'!$C$60:$S$80,3,0),"---") -> --- | G54: =IFERROR(VLOOKUP(A54,'MASZYNY SPRZĘT'!$C$60:$S$80,13,0),"---") -> --- | H54: =IFERROR(IFERROR(VLOOKUP(A54,'MASZYNY SPRZĘT'!$C$60:$S$80,8,0),"---")*G54,"---") -> --- | I54: =IFERROR(VLOOKUP(A54,'MASZYNY SPRZĘT'!$C$60:$S$80,11,0),"---") -> --- | M54: TAK
A55: 18 | B55: =IFERROR(VLOOKUP(A55,'MASZYNY SPRZĘT'!$C$6:$S$55,3,0),"---") -> --- | C55: =IFERROR(VLOOKUP(A55,'MASZYNY SPRZĘT'!$C$6:$S$55,13,0),"---") -> --- | D55: =IFERROR(VLOOKUP(A55,'MASZYNY SPRZĘT'!$C$6:$S$55,10,0),"---") -> --- | E55: =IFERROR(VLOOKUP(A55,'MASZYNY SPRZĘT'!$C$6:$S$55,11,0),"---") -> --- | F55: =IFERROR(VLOOKUP(A55,'MASZYNY SPRZĘT'!$C$60:$S$80,3,0),"---") -> --- | G55: =IFERROR(VLOOKUP(A55,'MASZYNY SPRZĘT'!$C$60:$S$80,13,0),"---") -> --- | H55: =IFERROR(IFERROR(VLOOKUP(A55,'MASZYNY SPRZĘT'!$C$60:$S$80,8,0),"---")*G55,"---") -> --- | I55: =IFERROR(VLOOKUP(A55,'MASZYNY SPRZĘT'!$C$60:$S$80,11,0),"---") -> --- | M55: TAK
A56: 19 | B56: =IFERROR(VLOOKUP(A56,'MASZYNY SPRZĘT'!$C$6:$S$55,3,0),"---") -> --- | C56: =IFERROR(VLOOKUP(A56,'MASZYNY SPRZĘT'!$C$6:$S$55,13,0),"---") -> --- | D56: =IFERROR(VLOOKUP(A56,'MASZYNY SPRZĘT'!$C$6:$S$55,10,0),"---") -> --- | E56: =IFERROR(VLOOKUP(A56,'MASZYNY SPRZĘT'!$C$6:$S$55,11,0),"---") -> --- | F56: =IFERROR(VLOOKUP(A56,'MASZYNY SPRZĘT'!$C$60:$S$80,3,0),"---") -> --- | G56: =IFERROR(VLOOKUP(A56,'MASZYNY SPRZĘT'!$C$60:$S$80,13,0),"---") -> --- | H56: =IFERROR(IFERROR(VLOOKUP(A56,'MASZYNY SPRZĘT'!$C$60:$S$80,8,0),"---")*G56,"---") -> --- | I56: =IFERROR(VLOOKUP(A56,'MASZYNY SPRZĘT'!$C$60:$S$80,11,0),"---") -> --- | M56: TAK
A57: 20 | B57: =IFERROR(VLOOKUP(A57,'MASZYNY SPRZĘT'!$C$6:$S$55,3,0),"---") -> --- | C57: =IFERROR(VLOOKUP(A57,'MASZYNY SPRZĘT'!$C$6:$S$55,13,0),"---") -> --- | D57: =IFERROR(VLOOKUP(A57,'MASZYNY SPRZĘT'!$C$6:$S$55,10,0),"---") -> --- | E57: =IFERROR(VLOOKUP(A57,'MASZYNY SPRZĘT'!$C$6:$S$55,11,0),"---") -> --- | F57: =IFERROR(VLOOKUP(A57,'MASZYNY SPRZĘT'!$C$60:$S$80,3,0),"---") -> --- | G57: =IFERROR(VLOOKUP(A57,'MASZYNY SPRZĘT'!$C$60:$S$80,13,0),"---") -> --- | H57: =IFERROR(IFERROR(VLOOKUP(A57,'MASZYNY SPRZĘT'!$C$60:$S$80,8,0),"---")*G57,"---") -> --- | I57: =IFERROR(VLOOKUP(A57,'MASZYNY SPRZĘT'!$C$60:$S$80,11,0),"---") -> --- | M57: TAK
A58: 21 | B58: =IFERROR(VLOOKUP(A58,'MASZYNY SPRZĘT'!$C$6:$S$55,3,0),"---") -> --- | C58: =IFERROR(VLOOKUP(A58,'MASZYNY SPRZĘT'!$C$6:$S$55,13,0),"---") -> --- | D58: =IFERROR(VLOOKUP(A58,'MASZYNY SPRZĘT'!$C$6:$S$55,10,0),"---") -> --- | E58: =IFERROR(VLOOKUP(A58,'MASZYNY SPRZĘT'!$C$6:$S$55,11,0),"---") -> --- | F58: =IFERROR(VLOOKUP(A58,'MASZYNY SPRZĘT'!$C$60:$S$80,3,0),"---") -> --- | G58: =IFERROR(VLOOKUP(A58,'MASZYNY SPRZĘT'!$C$60:$S$80,13,0),"---") -> --- | H58: =IFERROR(IFERROR(VLOOKUP(A58,'MASZYNY SPRZĘT'!$C$60:$S$80,8,0),"---")*G58,"---") -> --- | I58: =IFERROR(VLOOKUP(A58,'MASZYNY SPRZĘT'!$C$60:$S$80,11,0),"---") -> --- | M58: TAK
A59: 22 | B59: =IFERROR(VLOOKUP(A59,'MASZYNY SPRZĘT'!$C$6:$S$55,3,0),"---") -> --- | C59: =IFERROR(VLOOKUP(A59,'MASZYNY SPRZĘT'!$C$6:$S$55,13,0),"---") -> --- | D59: =IFERROR(VLOOKUP(A59,'MASZYNY SPRZĘT'!$C$6:$S$55,10,0),"---") -> --- | E59: =IFERROR(VLOOKUP(A59,'MASZYNY SPRZĘT'!$C$6:$S$55,11,0),"---") -> --- | F59: =IFERROR(VLOOKUP(A59,'MASZYNY SPRZĘT'!$C$60:$S$80,3,0),"---") -> --- | G59: =IFERROR(VLOOKUP(A59,'MASZYNY SPRZĘT'!$C$60:$S$80,13,0),"---") -> --- | H59: =IFERROR(IFERROR(VLOOKUP(A59,'MASZYNY SPRZĘT'!$C$60:$S$80,8,0),"---")*G59,"---") -> --- | I59: =IFERROR(VLOOKUP(A59,'MASZYNY SPRZĘT'!$C$60:$S$80,11,0),"---") -> --- | M59: TAK
A60: 23 | B60: =IFERROR(VLOOKUP(A60,'MASZYNY SPRZĘT'!$C$6:$S$55,3,0),"---") -> --- | C60: =IFERROR(VLOOKUP(A60,'MASZYNY SPRZĘT'!$C$6:$S$55,13,0),"---") -> --- | D60: =IFERROR(VLOOKUP(A60,'MASZYNY SPRZĘT'!$C$6:$S$55,10,0),"---") -> --- | E60: =IFERROR(VLOOKUP(A60,'MASZYNY SPRZĘT'!$C$6:$S$55,11,0),"---") -> --- | F60: =IFERROR(VLOOKUP(A60,'MASZYNY SPRZĘT'!$C$60:$S$80,3,0),"---") -> --- | G60: =IFERROR(VLOOKUP(A60,'MASZYNY SPRZĘT'!$C$60:$S$80,13,0),"---") -> --- | H60: =IFERROR(IFERROR(VLOOKUP(A60,'MASZYNY SPRZĘT'!$C$60:$S$80,8,0),"---")*G60,"---") -> --- | I60: =IFERROR(VLOOKUP(A60,'MASZYNY SPRZĘT'!$C$60:$S$80,11,0),"---") -> --- | M60: TAK
A61: 24 | B61: =IFERROR(VLOOKUP(A61,'MASZYNY SPRZĘT'!$C$6:$S$55,3,0),"---") -> --- | C61: =IFERROR(VLOOKUP(A61,'MASZYNY SPRZĘT'!$C$6:$S$55,13,0),"---") -> --- | D61: =IFERROR(VLOOKUP(A61,'MASZYNY SPRZĘT'!$C$6:$S$55,10,0),"---") -> --- | E61: =IFERROR(VLOOKUP(A61,'MASZYNY SPRZĘT'!$C$6:$S$55,11,0),"---") -> --- | F61: =IFERROR(VLOOKUP(A61,'MASZYNY SPRZĘT'!$C$60:$S$80,3,0),"---") -> --- | G61: =IFERROR(VLOOKUP(A61,'MASZYNY SPRZĘT'!$C$60:$S$80,13,0),"---") -> --- | H61: =IFERROR(IFERROR(VLOOKUP(A61,'MASZYNY SPRZĘT'!$C$60:$S$80,8,0),"---")*G61,"---") -> --- | I61: =IFERROR(VLOOKUP(A61,'MASZYNY SPRZĘT'!$C$60:$S$80,11,0),"---") -> --- | M61: TAK
A62: 25 | B62: =IFERROR(VLOOKUP(A62,'MASZYNY SPRZĘT'!$C$6:$S$55,3,0),"---") -> --- | C62: =IFERROR(VLOOKUP(A62,'MASZYNY SPRZĘT'!$C$6:$S$55,13,0),"---") -> --- | D62: =IFERROR(VLOOKUP(A62,'MASZYNY SPRZĘT'!$C$6:$S$55,10,0),"---") -> --- | E62: =IFERROR(VLOOKUP(A62,'MASZYNY SPRZĘT'!$C$6:$S$55,11,0),"---") -> --- | F62: =IFERROR(VLOOKUP(A62,'MASZYNY SPRZĘT'!$C$60:$S$80,3,0),"---") -> --- | G62: =IFERROR(VLOOKUP(A62,'MASZYNY SPRZĘT'!$C$60:$S$80,13,0),"---") -> --- | H62: =IFERROR(IFERROR(VLOOKUP(A62,'MASZYNY SPRZĘT'!$C$60:$S$80,8,0),"---")*G62,"---") -> --- | I62: =IFERROR(VLOOKUP(A62,'MASZYNY SPRZĘT'!$C$60:$S$80,11,0),"---") -> --- | M62: TAK
A63: 26 | B63: =IFERROR(VLOOKUP(A63,'MASZYNY SPRZĘT'!$C$6:$S$55,3,0),"---") -> --- | C63: =IFERROR(VLOOKUP(A63,'MASZYNY SPRZĘT'!$C$6:$S$55,13,0),"---") -> --- | D63: =IFERROR(VLOOKUP(A63,'MASZYNY SPRZĘT'!$C$6:$S$55,10,0),"---") -> --- | E63: =IFERROR(VLOOKUP(A63,'MASZYNY SPRZĘT'!$C$6:$S$55,11,0),"---") -> --- | F63: =IFERROR(VLOOKUP(A63,'MASZYNY SPRZĘT'!$C$60:$S$80,3,0),"---") -> --- | G63: =IFERROR(VLOOKUP(A63,'MASZYNY SPRZĘT'!$C$60:$S$80,13,0),"---") -> --- | H63: =IFERROR(IFERROR(VLOOKUP(A63,'MASZYNY SPRZĘT'!$C$60:$S$80,8,0),"---")*G63,"---") -> --- | I63: =IFERROR(VLOOKUP(A63,'MASZYNY SPRZĘT'!$C$60:$S$80,11,0),"---") -> --- | M63: TAK
A64: 27 | B64: =IFERROR(VLOOKUP(A64,'MASZYNY SPRZĘT'!$C$6:$S$55,3,0),"---") -> --- | C64: =IFERROR(VLOOKUP(A64,'MASZYNY SPRZĘT'!$C$6:$S$55,13,0),"---") -> --- | D64: =IFERROR(VLOOKUP(A64,'MASZYNY SPRZĘT'!$C$6:$S$55,10,0),"---") -> --- | E64: =IFERROR(VLOOKUP(A64,'MASZYNY SPRZĘT'!$C$6:$S$55,11,0),"---") -> --- | F64: =IFERROR(VLOOKUP(A64,'MASZYNY SPRZĘT'!$C$60:$S$80,3,0),"---") -> --- | G64: =IFERROR(VLOOKUP(A64,'MASZYNY SPRZĘT'!$C$60:$S$80,13,0),"---") -> --- | H64: =IFERROR(IFERROR(VLOOKUP(A64,'MASZYNY SPRZĘT'!$C$60:$S$80,8,0),"---")*G64,"---") -> --- | I64: =IFERROR(VLOOKUP(A64,'MASZYNY SPRZĘT'!$C$60:$S$80,11,0),"---") -> --- | M64: TAK
A65: 28 | B65: =IFERROR(VLOOKUP(A65,'MASZYNY SPRZĘT'!$C$6:$S$55,3,0),"---") -> --- | C65: =IFERROR(VLOOKUP(A65,'MASZYNY SPRZĘT'!$C$6:$S$55,13,0),"---") -> --- | D65: =IFERROR(VLOOKUP(A65,'MASZYNY SPRZĘT'!$C$6:$S$55,10,0),"---") -> --- | E65: =IFERROR(VLOOKUP(A65,'MASZYNY SPRZĘT'!$C$6:$S$55,11,0),"---") -> --- | F65: =IFERROR(VLOOKUP(A65,'MASZYNY SPRZĘT'!$C$60:$S$80,3,0),"---") -> --- | G65: =IFERROR(VLOOKUP(A65,'MASZYNY SPRZĘT'!$C$60:$S$80,13,0),"---") -> --- | H65: =IFERROR(IFERROR(VLOOKUP(A65,'MASZYNY SPRZĘT'!$C$60:$S$80,8,0),"---")*G65,"---") -> --- | I65: =IFERROR(VLOOKUP(A65,'MASZYNY SPRZĘT'!$C$60:$S$80,11,0),"---") -> --- | M65: TAK
A66: 29 | B66: =IFERROR(VLOOKUP(A66,'MASZYNY SPRZĘT'!$C$6:$S$55,3,0),"---") -> --- | C66: =IFERROR(VLOOKUP(A66,'MASZYNY SPRZĘT'!$C$6:$S$55,13,0),"---") -> --- | D66: =IFERROR(VLOOKUP(A66,'MASZYNY SPRZĘT'!$C$6:$S$55,10,0),"---") -> --- | E66: =IFERROR(VLOOKUP(A66,'MASZYNY SPRZĘT'!$C$6:$S$55,11,0),"---") -> --- | F66: Teren zewnętrzny - sprzęt
A67: 30 | B67: =IFERROR(VLOOKUP(A67,'MASZYNY SPRZĘT'!$C$6:$S$55,3,0),"---") -> --- | C67: =IFERROR(VLOOKUP(A67,'MASZYNY SPRZĘT'!$C$6:$S$55,13,0),"---") -> --- | D67: =IFERROR(VLOOKUP(A67,'MASZYNY SPRZĘT'!$C$6:$S$55,10,0),"---") -> --- | E67: =IFERROR(VLOOKUP(A67,'MASZYNY SPRZĘT'!$C$6:$S$55,11,0),"---") -> --- | F67: =IF('MASZYNY SPRZĘT'!O84<1,"---",'MASZYNY SPRZĘT'!E84) -> --- | G67: =IF('MASZYNY SPRZĘT'!O84<1,"---",'MASZYNY SPRZĘT'!O84) -> --- | H67: =IF(F67="---","---",'MASZYNY SPRZĘT'!J84*'Karta obiektu'!G67) -> --- | I67: =IF(F67="---","---",'MASZYNY SPRZĘT'!M84) -> ---
A68: 31 | B68: =IFERROR(VLOOKUP(A68,'MASZYNY SPRZĘT'!$C$6:$S$55,3,0),"---") -> --- | C68: =IFERROR(VLOOKUP(A68,'MASZYNY SPRZĘT'!$C$6:$S$55,13,0),"---") -> --- | D68: =IFERROR(VLOOKUP(A68,'MASZYNY SPRZĘT'!$C$6:$S$55,10,0),"---") -> --- | E68: =IFERROR(VLOOKUP(A68,'MASZYNY SPRZĘT'!$C$6:$S$55,11,0),"---") -> --- | F68: =IF('MASZYNY SPRZĘT'!O85<1,"---",'MASZYNY SPRZĘT'!E85) -> --- | G68: =IF('MASZYNY SPRZĘT'!O85<1,"---",'MASZYNY SPRZĘT'!O85) -> --- | H68: =IF(F68="---","---",'MASZYNY SPRZĘT'!J85*'Karta obiektu'!G68) -> --- | I68: =IF(F68="---","---",'MASZYNY SPRZĘT'!M85) -> --- | M68: =IF(SUM(C68,G68)<=0,"TAK","") -> TAK
A69: 32 | B69: =IFERROR(VLOOKUP(A69,'MASZYNY SPRZĘT'!$C$6:$S$55,3,0),"---") -> --- | C69: =IFERROR(VLOOKUP(A69,'MASZYNY SPRZĘT'!$C$6:$S$55,13,0),"---") -> --- | D69: =IFERROR(VLOOKUP(A69,'MASZYNY SPRZĘT'!$C$6:$S$55,10,0),"---") -> --- | E69: =IFERROR(VLOOKUP(A69,'MASZYNY SPRZĘT'!$C$6:$S$55,11,0),"---") -> --- | F69: =IF('MASZYNY SPRZĘT'!O86<1,"---",'MASZYNY SPRZĘT'!E86) -> --- | G69: =IF('MASZYNY SPRZĘT'!O86<1,"---",'MASZYNY SPRZĘT'!O86) -> --- | H69: =IF(F69="---","---",'MASZYNY SPRZĘT'!J86*'Karta obiektu'!G69) -> --- | I69: =IF(F69="---","---",'MASZYNY SPRZĘT'!M86) -> --- | M69: TAK
A70: 33 | B70: =IFERROR(VLOOKUP(A70,'MASZYNY SPRZĘT'!$C$6:$S$55,3,0),"---") -> --- | C70: =IFERROR(VLOOKUP(A70,'MASZYNY SPRZĘT'!$C$6:$S$55,13,0),"---") -> --- | D70: =IFERROR(VLOOKUP(A70,'MASZYNY SPRZĘT'!$C$6:$S$55,10,0),"---") -> --- | E70: =IFERROR(VLOOKUP(A70,'MASZYNY SPRZĘT'!$C$6:$S$55,11,0),"---") -> --- | F70: =IF('MASZYNY SPRZĘT'!O87<1,"---",'MASZYNY SPRZĘT'!E87) -> --- | G70: =IF('MASZYNY SPRZĘT'!O87<1,"---",'MASZYNY SPRZĘT'!O87) -> --- | H70: =IF(F70="---","---",'MASZYNY SPRZĘT'!J87*'Karta obiektu'!G70) -> --- | I70: =IF(F70="---","---",'MASZYNY SPRZĘT'!M87) -> --- | M70: TAK
A71: 34 | B71: =IFERROR(VLOOKUP(A71,'MASZYNY SPRZĘT'!$C$6:$S$55,3,0),"---") -> --- | C71: =IFERROR(VLOOKUP(A71,'MASZYNY SPRZĘT'!$C$6:$S$55,13,0),"---") -> --- | D71: =IFERROR(VLOOKUP(A71,'MASZYNY SPRZĘT'!$C$6:$S$55,10,0),"---") -> --- | E71: =IFERROR(VLOOKUP(A71,'MASZYNY SPRZĘT'!$C$6:$S$55,11,0),"---") -> --- | F71: =IF('MASZYNY SPRZĘT'!O88<1,"---",'MASZYNY SPRZĘT'!E88) -> --- | G71: =IF('MASZYNY SPRZĘT'!O88<1,"---",'MASZYNY SPRZĘT'!O88) -> --- | H71: =IF(F71="---","---",'MASZYNY SPRZĘT'!J88*'Karta obiektu'!G71) -> --- | I71: =IF(F71="---","---",'MASZYNY SPRZĘT'!M88) -> --- | M71: TAK
A72: 35 | B72: =IFERROR(VLOOKUP(A72,'MASZYNY SPRZĘT'!$C$6:$S$55,3,0),"---") -> --- | C72: =IFERROR(VLOOKUP(A72,'MASZYNY SPRZĘT'!$C$6:$S$55,13,0),"---") -> --- | D72: =IFERROR(VLOOKUP(A72,'MASZYNY SPRZĘT'!$C$6:$S$55,10,0),"---") -> --- | E72: =IFERROR(VLOOKUP(A72,'MASZYNY SPRZĘT'!$C$6:$S$55,11,0),"---") -> --- | F72: =IF('MASZYNY SPRZĘT'!O89<1,"---",'MASZYNY SPRZĘT'!E89) -> --- | G72: =IF('MASZYNY SPRZĘT'!O89<1,"---",'MASZYNY SPRZĘT'!O89) -> --- | H72: =IF(F72="---","---",'MASZYNY SPRZĘT'!J89*'Karta obiektu'!G72) -> --- | I72: =IF(F72="---","---",'MASZYNY SPRZĘT'!M89) -> --- | M72: TAK
A73: 36 | B73: =IFERROR(VLOOKUP(A73,'MASZYNY SPRZĘT'!$C$6:$S$55,3,0),"---") -> --- | C73: =IFERROR(VLOOKUP(A73,'MASZYNY SPRZĘT'!$C$6:$S$55,13,0),"---") -> --- | D73: =IFERROR(VLOOKUP(A73,'MASZYNY SPRZĘT'!$C$6:$S$55,10,0),"---") -> --- | E73: =IFERROR(VLOOKUP(A73,'MASZYNY SPRZĘT'!$C$6:$S$55,11,0),"---") -> --- | F73: =IF('MASZYNY SPRZĘT'!O90<1,"---",'MASZYNY SPRZĘT'!E90) -> --- | G73: =IF('MASZYNY SPRZĘT'!O90<1,"---",'MASZYNY SPRZĘT'!O90) -> --- | H73: =IF(F73="---","---",'MASZYNY SPRZĘT'!J90*'Karta obiektu'!G73) -> --- | I73: =IF(F73="---","---",'MASZYNY SPRZĘT'!M90) -> --- | M73: TAK
A74: 37 | B74: =IFERROR(VLOOKUP(A74,'MASZYNY SPRZĘT'!$C$6:$S$55,3,0),"---") -> --- | C74: =IFERROR(VLOOKUP(A74,'MASZYNY SPRZĘT'!$C$6:$S$55,13,0),"---") -> --- | D74: =IFERROR(VLOOKUP(A74,'MASZYNY SPRZĘT'!$C$6:$S$55,10,0),"---") -> --- | E74: =IFERROR(VLOOKUP(A74,'MASZYNY SPRZĘT'!$C$6:$S$55,11,0),"---") -> --- | F74: =IF('MASZYNY SPRZĘT'!O91<1,"---",'MASZYNY SPRZĘT'!E91) -> --- | G74: =IF('MASZYNY SPRZĘT'!O91<1,"---",'MASZYNY SPRZĘT'!O91) -> --- | H74: =IF(F74="---","---",'MASZYNY SPRZĘT'!J91*'Karta obiektu'!G74) -> --- | I74: =IF(F74="---","---",'MASZYNY SPRZĘT'!M91) -> --- | M74: TAK
A75: 38 | B75: =IFERROR(VLOOKUP(A75,'MASZYNY SPRZĘT'!$C$6:$S$55,3,0),"---") -> --- | C75: =IFERROR(VLOOKUP(A75,'MASZYNY SPRZĘT'!$C$6:$S$55,13,0),"---") -> --- | D75: =IFERROR(VLOOKUP(A75,'MASZYNY SPRZĘT'!$C$6:$S$55,10,0),"---") -> --- | E75: =IFERROR(VLOOKUP(A75,'MASZYNY SPRZĘT'!$C$6:$S$55,11,0),"---") -> --- | F75: =IF('MASZYNY SPRZĘT'!O92<1,"---",'MASZYNY SPRZĘT'!E92) -> --- | G75: =IF('MASZYNY SPRZĘT'!O92<1,"---",'MASZYNY SPRZĘT'!O92) -> --- | H75: =IF(F75="---","---",'MASZYNY SPRZĘT'!J92*'Karta obiektu'!G75) -> --- | I75: =IF(F75="---","---",'MASZYNY SPRZĘT'!M92) -> --- | M75: TAK
A76: 39 | B76: =IFERROR(VLOOKUP(A76,'MASZYNY SPRZĘT'!$C$6:$S$55,3,0),"---") -> --- | C76: =IFERROR(VLOOKUP(A76,'MASZYNY SPRZĘT'!$C$6:$S$55,13,0),"---") -> --- | D76: =IFERROR(VLOOKUP(A76,'MASZYNY SPRZĘT'!$C$6:$S$55,10,0),"---") -> --- | E76: =IFERROR(VLOOKUP(A76,'MASZYNY SPRZĘT'!$C$6:$S$55,11,0),"---") -> --- | F76: =IF('MASZYNY SPRZĘT'!O93<1,"---",'MASZYNY SPRZĘT'!E93) -> --- | G76: =IF('MASZYNY SPRZĘT'!O93<1,"---",'MASZYNY SPRZĘT'!O93) -> --- | H76: =IF(F76="---","---",'MASZYNY SPRZĘT'!J93*'Karta obiektu'!G76) -> --- | I76: =IF(F76="---","---",'MASZYNY SPRZĘT'!M93) -> --- | M76: TAK
A77: 40 | B77: =IFERROR(VLOOKUP(A77,'MASZYNY SPRZĘT'!$C$6:$S$55,3,0),"---") -> --- | C77: =IFERROR(VLOOKUP(A77,'MASZYNY SPRZĘT'!$C$6:$S$55,13,0),"---") -> --- | D77: =IFERROR(VLOOKUP(A77,'MASZYNY SPRZĘT'!$C$6:$S$55,10,0),"---") -> --- | E77: =IFERROR(VLOOKUP(A77,'MASZYNY SPRZĘT'!$C$6:$S$55,11,0),"---") -> --- | F77: =IF('MASZYNY SPRZĘT'!O98<1,"---",'MASZYNY SPRZĘT'!E98) -> --- | G77: =IF('MASZYNY SPRZĘT'!O98<1,"---",'MASZYNY SPRZĘT'!O98) -> --- | H77: =IF(F77="---","---",'MASZYNY SPRZĘT'!J98*'Karta obiektu'!G77) -> --- | I77: =IF(F77="---","---",'MASZYNY SPRZĘT'!M98) -> --- | M77: TAK
A78: 41 | B78: =IFERROR(VLOOKUP(A78,'MASZYNY SPRZĘT'!$C$6:$S$55,3,0),"---") -> --- | C78: =IFERROR(VLOOKUP(A78,'MASZYNY SPRZĘT'!$C$6:$S$55,13,0),"---") -> --- | D78: =IFERROR(VLOOKUP(A78,'MASZYNY SPRZĘT'!$C$6:$S$55,10,0),"---") -> --- | E78: =IFERROR(VLOOKUP(A78,'MASZYNY SPRZĘT'!$C$6:$S$55,11,0),"---") -> --- | F78: =IF('MASZYNY SPRZĘT'!O99<1,"---",'MASZYNY SPRZĘT'!E99) -> --- | G78: =IF('MASZYNY SPRZĘT'!O99<1,"---",'MASZYNY SPRZĘT'!O99) -> --- | H78: =IF(F78="---","---",'MASZYNY SPRZĘT'!J99*'Karta obiektu'!G78) -> --- | I78: =IF(F78="---","---",'MASZYNY SPRZĘT'!M99) -> --- | M78: TAK
A79: 42 | B79: =IFERROR(VLOOKUP(A79,'MASZYNY SPRZĘT'!$C$6:$S$55,3,0),"---") -> --- | C79: =IFERROR(VLOOKUP(A79,'MASZYNY SPRZĘT'!$C$6:$S$55,13,0),"---") -> --- | D79: =IFERROR(VLOOKUP(A79,'MASZYNY SPRZĘT'!$C$6:$S$55,10,0),"---") -> --- | E79: =IFERROR(VLOOKUP(A79,'MASZYNY SPRZĘT'!$C$6:$S$55,11,0),"---") -> --- | F79: =IF('MASZYNY SPRZĘT'!O100<1,"---",'MASZYNY SPRZĘT'!E100) -> --- | G79: =IF('MASZYNY SPRZĘT'!O100<1,"---",'MASZYNY SPRZĘT'!O100) -> --- | H79: =IF(F79="---","---",'MASZYNY SPRZĘT'!J100*'Karta obiektu'!G79) -> --- | I79: =IF(F79="---","---",'MASZYNY SPRZĘT'!M100) -> --- | M79: TAK
A80: 43 | B80: =IFERROR(VLOOKUP(A80,'MASZYNY SPRZĘT'!$C$6:$S$55,3,0),"---") -> --- | C80: =IFERROR(VLOOKUP(A80,'MASZYNY SPRZĘT'!$C$6:$S$55,13,0),"---") -> --- | D80: =IFERROR(VLOOKUP(A80,'MASZYNY SPRZĘT'!$C$6:$S$55,10,0),"---") -> --- | E80: =IFERROR(VLOOKUP(A80,'MASZYNY SPRZĘT'!$C$6:$S$55,11,0),"---") -> --- | F80: =IF('MASZYNY SPRZĘT'!O101<1,"---",'MASZYNY SPRZĘT'!E101) -> --- | G80: =IF('MASZYNY SPRZĘT'!O101<1,"---",'MASZYNY SPRZĘT'!O101) -> --- | H80: =IF(F80="---","---",'MASZYNY SPRZĘT'!J101*'Karta obiektu'!G80) -> --- | I80: =IF(F80="---","---",'MASZYNY SPRZĘT'!M101) -> --- | M80: TAK
A81: 44 | B81: =IFERROR(VLOOKUP(A81,'MASZYNY SPRZĘT'!$C$6:$S$55,3,0),"---") -> --- | C81: =IFERROR(VLOOKUP(A81,'MASZYNY SPRZĘT'!$C$6:$S$55,13,0),"---") -> --- | D81: =IFERROR(VLOOKUP(A81,'MASZYNY SPRZĘT'!$C$6:$S$55,10,0),"---") -> --- | E81: =IFERROR(VLOOKUP(A81,'MASZYNY SPRZĘT'!$C$6:$S$55,11,0),"---") -> --- | F81: =IF('MASZYNY SPRZĘT'!O102<1,"---",'MASZYNY SPRZĘT'!E102) -> --- | G81: =IF('MASZYNY SPRZĘT'!O102<1,"---",'MASZYNY SPRZĘT'!O102) -> --- | H81: =IF(F81="---","---",'MASZYNY SPRZĘT'!J102*'Karta obiektu'!G81) -> --- | I81: =IF(F81="---","---",'MASZYNY SPRZĘT'!M102) -> --- | M81: TAK
A82: 45 | B82: =IFERROR(VLOOKUP(A82,'MASZYNY SPRZĘT'!$C$6:$S$55,3,0),"---") -> --- | C82: =IFERROR(VLOOKUP(A82,'MASZYNY SPRZĘT'!$C$6:$S$55,13,0),"---") -> --- | D82: =IFERROR(VLOOKUP(A82,'MASZYNY SPRZĘT'!$C$6:$S$55,10,0),"---") -> --- | E82: =IFERROR(VLOOKUP(A82,'MASZYNY SPRZĘT'!$C$6:$S$55,11,0),"---") -> --- | F82: =IF('MASZYNY SPRZĘT'!O103<1,"---",'MASZYNY SPRZĘT'!E103) -> --- | G82: =IF('MASZYNY SPRZĘT'!O103<1,"---",'MASZYNY SPRZĘT'!O103) -> --- | H82: =IF(F82="---","---",'MASZYNY SPRZĘT'!J103*'Karta obiektu'!G82) -> --- | I82: =IF(F82="---","---",'MASZYNY SPRZĘT'!M103) -> --- | M82: TAK
A83: 46 | B83: =IFERROR(VLOOKUP(A83,'MASZYNY SPRZĘT'!$C$6:$S$55,3,0),"---") -> --- | C83: =IFERROR(VLOOKUP(A83,'MASZYNY SPRZĘT'!$C$6:$S$55,13,0),"---") -> --- | D83: =IFERROR(VLOOKUP(A83,'MASZYNY SPRZĘT'!$C$6:$S$55,10,0),"---") -> --- | E83: =IFERROR(VLOOKUP(A83,'MASZYNY SPRZĘT'!$C$6:$S$55,11,0),"---") -> --- | F83: =IF('MASZYNY SPRZĘT'!O104<1,"---",'MASZYNY SPRZĘT'!E104) -> --- | G83: =IF('MASZYNY SPRZĘT'!O104<1,"---",'MASZYNY SPRZĘT'!O104) -> --- | H83: =IF(F83="---","---",'MASZYNY SPRZĘT'!J104*'Karta obiektu'!G83) -> --- | I83: =IF(F83="---","---",'MASZYNY SPRZĘT'!M104) -> --- | M83: TAK
A84: 47 | B84: =IFERROR(VLOOKUP(A84,'MASZYNY SPRZĘT'!$C$6:$S$55,3,0),"---") -> --- | C84: =IFERROR(VLOOKUP(A84,'MASZYNY SPRZĘT'!$C$6:$S$55,13,0),"---") -> --- | D84: =IFERROR(VLOOKUP(A84,'MASZYNY SPRZĘT'!$C$6:$S$55,10,0),"---") -> --- | E84: =IFERROR(VLOOKUP(A84,'MASZYNY SPRZĘT'!$C$6:$S$55,11,0),"---") -> --- | F84: =IF('MASZYNY SPRZĘT'!O105<1,"---",'MASZYNY SPRZĘT'!E105) -> --- | G84: =IF('MASZYNY SPRZĘT'!O105<1,"---",'MASZYNY SPRZĘT'!O105) -> --- | H84: =IF(F84="---","---",'MASZYNY SPRZĘT'!J105*'Karta obiektu'!G84) -> --- | I84: =IF(F84="---","---",'MASZYNY SPRZĘT'!M105) -> --- | M84: TAK
A85: 48 | B85: =IFERROR(VLOOKUP(A85,'MASZYNY SPRZĘT'!$C$6:$S$55,3,0),"---") -> --- | C85: =IFERROR(VLOOKUP(A85,'MASZYNY SPRZĘT'!$C$6:$S$55,13,0),"---") -> --- | D85: =IFERROR(VLOOKUP(A85,'MASZYNY SPRZĘT'!$C$6:$S$55,10,0),"---") -> --- | E85: =IFERROR(VLOOKUP(A85,'MASZYNY SPRZĘT'!$C$6:$S$55,11,0),"---") -> --- | F85: =IF('MASZYNY SPRZĘT'!O106<1,"---",'MASZYNY SPRZĘT'!E106) -> --- | G85: =IF('MASZYNY SPRZĘT'!O106<1,"---",'MASZYNY SPRZĘT'!O106) -> --- | H85: =IF(F85="---","---",'MASZYNY SPRZĘT'!J106*'Karta obiektu'!G85) -> --- | I85: =IF(F85="---","---",'MASZYNY SPRZĘT'!M106) -> --- | M85: TAK
A86: 49 | B86: =IFERROR(VLOOKUP(A86,'MASZYNY SPRZĘT'!$C$6:$S$55,3,0),"---") -> --- | C86: =IFERROR(VLOOKUP(A86,'MASZYNY SPRZĘT'!$C$6:$S$55,13,0),"---") -> --- | D86: =IFERROR(VLOOKUP(A86,'MASZYNY SPRZĘT'!$C$6:$S$55,10,0),"---") -> --- | E86: =IFERROR(VLOOKUP(A86,'MASZYNY SPRZĘT'!$C$6:$S$55,11,0),"---") -> --- | F86: =IF('MASZYNY SPRZĘT'!O107<1,"---",'MASZYNY SPRZĘT'!E107) -> --- | G86: =IF('MASZYNY SPRZĘT'!O107<1,"---",'MASZYNY SPRZĘT'!O107) -> --- | H86: =IF(F86="---","---",'MASZYNY SPRZĘT'!J107*'Karta obiektu'!G86) -> --- | I86: =IF(F86="---","---",'MASZYNY SPRZĘT'!M107) -> --- | M86: TAK
A87: 50 | B87: =IFERROR(VLOOKUP(A87,'MASZYNY SPRZĘT'!$C$6:$S$55,3,0),"---") -> --- | C87: =IFERROR(VLOOKUP(A87,'MASZYNY SPRZĘT'!$C$6:$S$55,13,0),"---") -> --- | D87: =IFERROR(VLOOKUP(A87,'MASZYNY SPRZĘT'!$C$6:$S$55,10,0),"---") -> --- | E87: =IFERROR(VLOOKUP(A87,'MASZYNY SPRZĘT'!$C$6:$S$55,11,0),"---") -> --- | F87: =IF('MASZYNY SPRZĘT'!O108<1,"---",'MASZYNY SPRZĘT'!E108) -> --- | G87: =IF('MASZYNY SPRZĘT'!O108<1,"---",'MASZYNY SPRZĘT'!O108) -> --- | H87: =IF(F87="---","---",'MASZYNY SPRZĘT'!J108*'Karta obiektu'!G87) -> --- | I87: =IF(F87="---","---",'MASZYNY SPRZĘT'!M108) -> --- | M87: TAK
B89: Budżet na dodatkowe materiały / urzadzenia: | F89: Budżet na chemię wewnętrzną | I89: =SUM(CHEMIA!F12,CHEMIA!F22,CHEMIA!F32,CHEMIA!F42) -> 0
B90: UWAGI: | F90: UWAGI:
B94: Budżet na higienę: | E94: =SUM(HIGIENA!F9,HIGIENA!F16,HIGIENA!F23,HIGIENA!F33) -> 0 | F94: Budżet na chemię zewnętrzną | I94: =CHEMIA!F52 -> 0
B95: UWAGI: | F95: UWAGI:
B99: HIGIENA - REFAKTURA | F99: Budżetna worki: | I99: =HIGIENA!F43 -> 0
B100: UWAGI: | F100: UWAGI:
B104: ZIMA | M104: =IF(SUM($F$105:$I$108,$E$113:$E$116,$E$119:$E$120,$I$113:$I$116,$I$119)<=0,"TAK","") -> TAK
B105: Budżet całkowity na okres zimowy | F105: =ZIMA!I11*12 -> 0 | M105: TAK
B106: Budżet miesięczny w okresie zimowym (listopad - marzec) | F106: =F105/5 -> 0 | M106: TAK
B107: Budżet na roboczogodziny | F107: =ZIMA!J11 -> 0 | M107: TAK
B108: Budżet na postojowe | F108: =ZIMA!K11 -> 0 | M108: TAK
M109: TAK
B110: Nazwa | E110: Koszt | F110: Nazwa | I110: Koszt | M110: TAK
M111: TAK
B112: =ZIMA!B4 -> Sprzęt ciężki - na miejscu | F112: =ZIMA!B19 -> Sprzęt ciężki - dojazd | M112: TAK
B113: =ZIMA!C6&" - budżet na postojowe" -> Traktor duży - zima - budżet na postojowe | E113: =ZIMA!K6 -> 0 | F113: =ZIMA!C21 -> Traktor duży - zima | I113: =ZIMA!I21 -> 0 | M113: TAK
B114: =ZIMA!C7 -> Traktor mały - zima | E114: =ZIMA!I7 -> 0 | F114: =ZIMA!C22 -> Traktor mały - zima | I114: =ZIMA!I22 -> 0 | M114: TAK
B115: =ZIMA!C8 -> Ładowarka | E115: =ZIMA!I8 -> 0 | F115: =ZIMA!C23 -> Ładowarka | I115: =ZIMA!I23 -> 0 | M115: TAK
B116: =ZIMA!C9 -> Wywrotka | E116: =ZIMA!I9 -> 0 | F116: =ZIMA!C24 -> Wywrotka | I116: =ZIMA!I24 -> 0 | M116: TAK
M117: TAK
B118: =ZIMA!B13 -> Teren zewnętrzny - sprzęt do prac ręcznych | E118: Budżet na zakup (roczny) | F118: =ZIMA!B29 -> Koszty mieszanki / płatne przez okres 12 miesięcy (mieszanka sól/piach) | M118: TAK
B119: =ZIMA!C15 -> Łopata do odśnieżania, łopatka, szufelka, wiaderko (ilość zestawów) | E119: =ZIMA!I15*12 -> 0 | F119: Mieszanka sól/piach | I119: =ZIMA!G37 -> 0 | M119: TAK
B120: =ZIMA!C16 -> Inne | E120: =ZIMA!I16*12 -> 0 | M120: TAK
M121: TAK
B122: REFAKTURA (budżet zimowy) | M122: TAK
B123: Nazwa | F123: Uwagi | M123: TAK
B124: Sprzęt cieżki na miejscu | M124: TAK
B125: Teren zewnętrzny - sprzęt do prac | M125: TAK
B126: Sprzęt ciężki - dojazd | M126: TAK
B127: Koszty mieszanki soli | M127: TAK
B128: Budżet na pracowników | M128: TAK
B131: ODZIEŻ ROBOCZA | F131: PRACE DODATKOWE
B132: ZAKUP ODZIEŻY (budżet roczny) | D132: =POZOSTAŁE!I6+POZOSTAŁE!I7 -> 0 | F132: Prace dodatkowe (budżet roczny) | H132: =SUM(H134:H142) -> 0
B133: Spodnie | D133: Kamizelka | F133: Nazwa | G133: Częstotliwość | H133: Budżet roczny | I133: Budżet miesięczny
A134: 1 | B134: T-shirt zwykły | D134: Kurtka | F134: =IFERROR(VLOOKUP(A134,POZOSTAŁE!$C$9:$G$16,3,0),"---") -> --- | G134: =IFERROR(VLOOKUP(A134,POZOSTAŁE!$C$9:$G$16,5,0),"---") -> --- | H134: =IFERROR(VLOOKUP(A134,POZOSTAŁE!$C$9:$I$16,7,0),"---") -> --- | I134: =IFERROR(VLOOKUP(A134,POZOSTAŁE!$C$9:$J$16,8,0),"---") -> ---
A135: 2 | B135: Koszulka polo | D135: Czapka | F135: =IFERROR(VLOOKUP(A135,POZOSTAŁE!$C$9:$G$16,3,0),"---") -> --- | G135: =IFERROR(VLOOKUP(A135,POZOSTAŁE!$C$9:$G$16,5,0),"---") -> --- | H135: =IFERROR(VLOOKUP(A135,POZOSTAŁE!$C$9:$I$16,7,0),"---") -> --- | I135: =IFERROR(VLOOKUP(A135,POZOSTAŁE!$C$9:$J$16,8,0),"---") -> ---
A136: 3 | B136: Fartuszek | D136: Kask | F136: =IFERROR(VLOOKUP(A136,POZOSTAŁE!$C$9:$G$16,3,0),"---") -> --- | G136: =IFERROR(VLOOKUP(A136,POZOSTAŁE!$C$9:$G$16,5,0),"---") -> --- | H136: =IFERROR(VLOOKUP(A136,POZOSTAŁE!$C$9:$I$16,7,0),"---") -> --- | I136: =IFERROR(VLOOKUP(A136,POZOSTAŁE!$C$9:$J$16,8,0),"---") -> ---
A137: 4 | F137: =IFERROR(VLOOKUP(A137,POZOSTAŁE!$C$9:$G$16,3,0),"---") -> --- | G137: =IFERROR(VLOOKUP(A137,POZOSTAŁE!$C$9:$G$16,5,0),"---") -> --- | H137: =IFERROR(VLOOKUP(A137,POZOSTAŁE!$C$9:$I$16,7,0),"---") -> --- | I137: =IFERROR(VLOOKUP(A137,POZOSTAŁE!$C$9:$J$16,8,0),"---") -> --- | M137: =IF(SUM(G137:I137)<=0,"TAK","") -> TAK
A138: 5 | F138: =IFERROR(VLOOKUP(A138,POZOSTAŁE!$C$9:$G$16,3,0),"---") -> --- | G138: =IFERROR(VLOOKUP(A138,POZOSTAŁE!$C$9:$G$16,5,0),"---") -> --- | H138: =IFERROR(VLOOKUP(A138,POZOSTAŁE!$C$9:$I$16,7,0),"---") -> --- | I138: =IFERROR(VLOOKUP(A138,POZOSTAŁE!$C$9:$J$16,8,0),"---") -> --- | M138: =IF(SUM(G138:I138)<=0,"TAK","") -> TAK
A139: 6 | F139: =IFERROR(VLOOKUP(A139,POZOSTAŁE!$C$9:$G$16,3,0),"---") -> --- | G139: =IFERROR(VLOOKUP(A139,POZOSTAŁE!$C$9:$G$16,5,0),"---") -> --- | H139: =IFERROR(VLOOKUP(A139,POZOSTAŁE!$C$9:$I$16,7,0),"---") -> --- | I139: =IFERROR(VLOOKUP(A139,POZOSTAŁE!$C$9:$J$16,8,0),"---") -> --- | M139: =IF(SUM(G139:I139)<=0,"TAK","") -> TAK
A140: 7 | F140: =IFERROR(VLOOKUP(A140,POZOSTAŁE!$C$9:$G$16,3,0),"---") -> --- | G140: =IFERROR(VLOOKUP(A140,POZOSTAŁE!$C$9:$G$16,5,0),"---") -> --- | H140: =IFERROR(VLOOKUP(A140,POZOSTAŁE!$C$9:$I$16,7,0),"---") -> --- | I140: =IFERROR(VLOOKUP(A140,POZOSTAŁE!$C$9:$J$16,8,0),"---") -> --- | M140: =IF(SUM(G140:I140)<=0,"TAK","") -> TAK
A141: 8 | F141: =IFERROR(VLOOKUP(A141,POZOSTAŁE!$C$9:$G$16,3,0),"---") -> --- | G141: =IFERROR(VLOOKUP(A141,POZOSTAŁE!$C$9:$G$16,5,0),"---") -> --- | H141: =IFERROR(VLOOKUP(A141,POZOSTAŁE!$C$9:$I$16,7,0),"---") -> --- | I141: =IFERROR(VLOOKUP(A141,POZOSTAŁE!$C$9:$J$16,8,0),"---") -> --- | M141: =IF(SUM(G141:I141)<=0,"TAK","") -> TAK
A142: 9 | B142: =POZOSTAŁE!E8&" (msc)" -> Pranie strojów roboczych (msc) | D142: =POZOSTAŁE!J8 -> 0 | F142: =IFERROR(VLOOKUP(A142,POZOSTAŁE!$C$9:$G$16,3,0),"---") -> --- | G142: =IFERROR(VLOOKUP(A142,POZOSTAŁE!$C$9:$G$16,5,0),"---") -> --- | H142: =IFERROR(VLOOKUP(A142,POZOSTAŁE!$C$9:$I$16,7,0),"---") -> --- | I142: =IFERROR(VLOOKUP(A142,POZOSTAŁE!$C$9:$J$16,8,0),"---") -> ---
B145: PRACOWNICY
B146: Ilość osób | C146: Dni pracy w tyg | D146: Sezon | E146: Godziny pracy | F146: zł netto/rbh | G146: zł brutto/rbh | H146: rbh/m-c | I146: Wynagrodzenie netto | J146: Wynagrodzenie brutto pracownika | K146: Typ umowy | L146: Opis stanowiska
B147: =IF(PRACOWNICY!K6="","",PRACOWNICY!K6) ->  | C147: =IF(PRACOWNICY!L6="","",PRACOWNICY!L6) ->  | D147: =IF(PRACOWNICY!F6="","",PRACOWNICY!F6) -> Cały rok | E147: =IF(PRACOWNICY!H6="","",_xlfn.CONCAT(TEXT(PRACOWNICY!H6,"gg:mm"),"-",TEXT(PRACOWNICY!I6,"gg:mm"))) ->  | F147: =IF(PRACOWNICY!T6="","",PRACOWNICY!T6) -> 24.5 | G147: =IFERROR(IF(J147="","",J147/H147),0) -> 0 | H147: =IF(PRACOWNICY!Q6="","",PRACOWNICY!Q6) -> 0 | I147: =IF(PRACOWNICY!U6="","",PRACOWNICY!U6) -> 0 | J147: =IF(PRACOWNICY!V6="","",PRACOWNICY!V6) -> 0 | K147: =IF(PRACOWNICY!G6="","",PRACOWNICY!G6) -> zlecenie | L147: =IF(PRACOWNICY!E6="","",PRACOWNICY!E6) ->  | M147: =IF(B147="","TAK","") -> TAK
B148: =IF(PRACOWNICY!K7="","",PRACOWNICY!K7) ->  | C148: =IF(PRACOWNICY!L7="","",PRACOWNICY!L7) ->  | D148: =IF(PRACOWNICY!F7="","",PRACOWNICY!F7) -> Cały rok | E148: =IF(PRACOWNICY!H7="","",_xlfn.CONCAT(TEXT(PRACOWNICY!H7,"gg:mm"),"-",TEXT(PRACOWNICY!I7,"gg:mm"))) ->  | F148: =IF(PRACOWNICY!T7="","",PRACOWNICY!T7) -> 24.5 | G148: =IFERROR(IF(J148="","",J148/H148),0) -> 0 | H148: =IF(PRACOWNICY!Q7="","",PRACOWNICY!Q7) -> 0 | I148: =IF(PRACOWNICY!U7="","",PRACOWNICY!U7) -> 0 | J148: =IF(PRACOWNICY!V7="","",PRACOWNICY!V7) -> 0 | K148: =IF(PRACOWNICY!G7="","",PRACOWNICY!G7) -> zlecenie | L148: =IF(PRACOWNICY!E7="","",PRACOWNICY!E7) ->  | M148: TAK
B149: =IF(PRACOWNICY!K8="","",PRACOWNICY!K8) ->  | C149: =IF(PRACOWNICY!L8="","",PRACOWNICY!L8) ->  | D149: =IF(PRACOWNICY!F8="","",PRACOWNICY!F8) ->  | E149: =IF(PRACOWNICY!H8="","",_xlfn.CONCAT(TEXT(PRACOWNICY!H8,"gg:mm"),"-",TEXT(PRACOWNICY!I8,"gg:mm"))) ->  | F149: =IF(PRACOWNICY!T8="","",PRACOWNICY!T8) ->  | H149: =IF(PRACOWNICY!Q8="","",PRACOWNICY!Q8) ->  | I149: =IF(PRACOWNICY!U8="","",PRACOWNICY!U8) ->  | J149: =IF(PRACOWNICY!V8="","",PRACOWNICY!V8) ->  | K149: =IF(PRACOWNICY!G8="","",PRACOWNICY!G8) ->  | L149: =IF(PRACOWNICY!E8="","",PRACOWNICY!E8) ->  | M149: TAK
B150: =IF(PRACOWNICY!K9="","",PRACOWNICY!K9) ->  | C150: =IF(PRACOWNICY!L9="","",PRACOWNICY!L9) ->  | D150: =IF(PRACOWNICY!F9="","",PRACOWNICY!F9) ->  | E150: =IF(PRACOWNICY!H9="","",_xlfn.CONCAT(TEXT(PRACOWNICY!H9,"gg:mm"),"-",TEXT(PRACOWNICY!I9,"gg:mm"))) ->  | F150: =IF(PRACOWNICY!T9="","",PRACOWNICY!T9) ->  | H150: =IF(PRACOWNICY!Q9="","",PRACOWNICY!Q9) ->  | I150: =IF(PRACOWNICY!U9="","",PRACOWNICY!U9) ->  | J150: =IF(PRACOWNICY!V9="","",PRACOWNICY!V9) ->  | K150: =IF(PRACOWNICY!G9="","",PRACOWNICY!G9) ->  | L150: =IF(PRACOWNICY!E9="","",PRACOWNICY!E9) ->  | M150: TAK
B151: =IF(PRACOWNICY!K10="","",PRACOWNICY!K10) ->  | C151: =IF(PRACOWNICY!L10="","",PRACOWNICY!L10) ->  | D151: =IF(PRACOWNICY!F10="","",PRACOWNICY!F10) ->  | E151: =IF(PRACOWNICY!H10="","",_xlfn.CONCAT(TEXT(PRACOWNICY!H10,"gg:mm"),"-",TEXT(PRACOWNICY!I10,"gg:mm"))) ->  | F151: =IF(PRACOWNICY!T10="","",PRACOWNICY!T10) ->  | H151: =IF(PRACOWNICY!Q10="","",PRACOWNICY!Q10) ->  | I151: =IF(PRACOWNICY!U10="","",PRACOWNICY!U10) ->  | J151: =IF(PRACOWNICY!V10="","",PRACOWNICY!V10) ->  | K151: =IF(PRACOWNICY!G10="","",PRACOWNICY!G10) ->  | L151: =IF(PRACOWNICY!E10="","",PRACOWNICY!E10) ->  | M151: TAK
B152: =IF(PRACOWNICY!K11="","",PRACOWNICY!K11) ->  | C152: =IF(PRACOWNICY!L11="","",PRACOWNICY!L11) ->  | D152: =IF(PRACOWNICY!F11="","",PRACOWNICY!F11) ->  | E152: =IF(PRACOWNICY!H11="","",_xlfn.CONCAT(TEXT(PRACOWNICY!H11,"gg:mm"),"-",TEXT(PRACOWNICY!I11,"gg:mm"))) ->  | F152: =IF(PRACOWNICY!T11="","",PRACOWNICY!T11) ->  | H152: =IF(PRACOWNICY!Q11="","",PRACOWNICY!Q11) ->  | I152: =IF(PRACOWNICY!U11="","",PRACOWNICY!U11) ->  | J152: =IF(PRACOWNICY!V11="","",PRACOWNICY!V11) ->  | K152: =IF(PRACOWNICY!G11="","",PRACOWNICY!G11) ->  | L152: =IF(PRACOWNICY!E11="","",PRACOWNICY!E11) ->  | M152: TAK
B153: =IF(PRACOWNICY!K12="","",PRACOWNICY!K12) ->  | C153: =IF(PRACOWNICY!L12="","",PRACOWNICY!L12) ->  | D153: =IF(PRACOWNICY!F12="","",PRACOWNICY!F12) ->  | E153: =IF(PRACOWNICY!H12="","",_xlfn.CONCAT(TEXT(PRACOWNICY!H12,"gg:mm"),"-",TEXT(PRACOWNICY!I12,"gg:mm"))) ->  | F153: =IF(PRACOWNICY!T12="","",PRACOWNICY!T12) ->  | H153: =IF(PRACOWNICY!Q12="","",PRACOWNICY!Q12) ->  | I153: =IF(PRACOWNICY!U12="","",PRACOWNICY!U12) ->  | J153: =IF(PRACOWNICY!V12="","",PRACOWNICY!V12) ->  | K153: =IF(PRACOWNICY!G12="","",PRACOWNICY!G12) ->  | L153: =IF(PRACOWNICY!E12="","",PRACOWNICY!E12) ->  | M153: TAK
B154: =IF(PRACOWNICY!K13="","",PRACOWNICY!K13) ->  | C154: =IF(PRACOWNICY!L13="","",PRACOWNICY!L13) ->  | D154: =IF(PRACOWNICY!F13="","",PRACOWNICY!F13) ->  | E154: =IF(PRACOWNICY!H13="","",_xlfn.CONCAT(TEXT(PRACOWNICY!H13,"gg:mm"),"-",TEXT(PRACOWNICY!I13,"gg:mm"))) ->  | F154: =IF(PRACOWNICY!T13="","",PRACOWNICY!T13) ->  | H154: =IF(PRACOWNICY!Q13="","",PRACOWNICY!Q13) ->  | I154: =IF(PRACOWNICY!U13="","",PRACOWNICY!U13) ->  | J154: =IF(PRACOWNICY!V13="","",PRACOWNICY!V13) ->  | K154: =IF(PRACOWNICY!G13="","",PRACOWNICY!G13) ->  | L154: =IF(PRACOWNICY!E13="","",PRACOWNICY!E13) ->  | M154: TAK
B155: =IF(PRACOWNICY!K14="","",PRACOWNICY!K14) ->  | C155: =IF(PRACOWNICY!L14="","",PRACOWNICY!L14) ->  | D155: =IF(PRACOWNICY!F14="","",PRACOWNICY!F14) ->  | E155: =IF(PRACOWNICY!H14="","",_xlfn.CONCAT(TEXT(PRACOWNICY!H14,"gg:mm"),"-",TEXT(PRACOWNICY!I14,"gg:mm"))) ->  | F155: =IF(PRACOWNICY!T14="","",PRACOWNICY!T14) ->  | H155: =IF(PRACOWNICY!Q14="","",PRACOWNICY!Q14) ->  | I155: =IF(PRACOWNICY!U14="","",PRACOWNICY!U14) ->  | J155: =IF(PRACOWNICY!V14="","",PRACOWNICY!V14) ->  | K155: =IF(PRACOWNICY!G14="","",PRACOWNICY!G14) ->  | L155: =IF(PRACOWNICY!E14="","",PRACOWNICY!E14) ->  | M155: TAK
B156: =IF(PRACOWNICY!K15="","",PRACOWNICY!K15) ->  | C156: =IF(PRACOWNICY!L15="","",PRACOWNICY!L15) ->  | D156: =IF(PRACOWNICY!F15="","",PRACOWNICY!F15) ->  | E156: =IF(PRACOWNICY!H15="","",_xlfn.CONCAT(TEXT(PRACOWNICY!H15,"gg:mm"),"-",TEXT(PRACOWNICY!I15,"gg:mm"))) ->  | F156: =IF(PRACOWNICY!T15="","",PRACOWNICY!T15) ->  | H156: =IF(PRACOWNICY!Q15="","",PRACOWNICY!Q15) ->  | I156: =IF(PRACOWNICY!U15="","",PRACOWNICY!U15) ->  | J156: =IF(PRACOWNICY!V15="","",PRACOWNICY!V15) ->  | K156: =IF(PRACOWNICY!G15="","",PRACOWNICY!G15) ->  | L156: =IF(PRACOWNICY!E15="","",PRACOWNICY!E15) ->  | M156: TAK
B157: =IF(PRACOWNICY!K16="","",PRACOWNICY!K16) ->  | C157: =IF(PRACOWNICY!L16="","",PRACOWNICY!L16) ->  | D157: =IF(PRACOWNICY!F16="","",PRACOWNICY!F16) ->  | E157: =IF(PRACOWNICY!H16="","",_xlfn.CONCAT(TEXT(PRACOWNICY!H16,"gg:mm"),"-",TEXT(PRACOWNICY!I16,"gg:mm"))) ->  | F157: =IF(PRACOWNICY!T16="","",PRACOWNICY!T16) ->  | H157: =IF(PRACOWNICY!Q16="","",PRACOWNICY!Q16) ->  | I157: =IF(PRACOWNICY!U16="","",PRACOWNICY!U16) ->  | J157: =IF(PRACOWNICY!V16="","",PRACOWNICY!V16) ->  | K157: =IF(PRACOWNICY!G16="","",PRACOWNICY!G16) ->  | L157: =IF(PRACOWNICY!E16="","",PRACOWNICY!E16) ->  | M157: TAK
B158: =IF(PRACOWNICY!K17="","",PRACOWNICY!K17) ->  | C158: =IF(PRACOWNICY!L17="","",PRACOWNICY!L17) ->  | D158: =IF(PRACOWNICY!F17="","",PRACOWNICY!F17) ->  | E158: =IF(PRACOWNICY!H17="","",_xlfn.CONCAT(TEXT(PRACOWNICY!H17,"gg:mm"),"-",TEXT(PRACOWNICY!I17,"gg:mm"))) ->  | F158: =IF(PRACOWNICY!T17="","",PRACOWNICY!T17) ->  | H158: =IF(PRACOWNICY!Q17="","",PRACOWNICY!Q17) ->  | I158: =IF(PRACOWNICY!U17="","",PRACOWNICY!U17) ->  | J158: =IF(PRACOWNICY!V17="","",PRACOWNICY!V17) ->  | K158: =IF(PRACOWNICY!G17="","",PRACOWNICY!G17) ->  | L158: =IF(PRACOWNICY!E17="","",PRACOWNICY!E17) ->  | M158: TAK
B159: =IF(PRACOWNICY!K18="","",PRACOWNICY!K18) ->  | C159: =IF(PRACOWNICY!L18="","",PRACOWNICY!L18) ->  | D159: =IF(PRACOWNICY!F18="","",PRACOWNICY!F18) ->  | E159: =IF(PRACOWNICY!H18="","",_xlfn.CONCAT(TEXT(PRACOWNICY!H18,"gg:mm"),"-",TEXT(PRACOWNICY!I18,"gg:mm"))) ->  | F159: =IF(PRACOWNICY!T18="","",PRACOWNICY!T18) ->  | H159: =IF(PRACOWNICY!Q18="","",PRACOWNICY!Q18) ->  | I159: =IF(PRACOWNICY!U18="","",PRACOWNICY!U18) ->  | J159: =IF(PRACOWNICY!V18="","",PRACOWNICY!V18) ->  | K159: =IF(PRACOWNICY!G18="","",PRACOWNICY!G18) ->  | L159: =IF(PRACOWNICY!E18="","",PRACOWNICY!E18) ->  | M159: TAK
B160: =IF(PRACOWNICY!K19="","",PRACOWNICY!K19) ->  | C160: =IF(PRACOWNICY!L19="","",PRACOWNICY!L19) ->  | D160: =IF(PRACOWNICY!F19="","",PRACOWNICY!F19) ->  | E160: =IF(PRACOWNICY!H19="","",_xlfn.CONCAT(TEXT(PRACOWNICY!H19,"gg:mm"),"-",TEXT(PRACOWNICY!I19,"gg:mm"))) ->  | F160: =IF(PRACOWNICY!T19="","",PRACOWNICY!T19) ->  | H160: =IF(PRACOWNICY!Q19="","",PRACOWNICY!Q19) ->  | I160: =IF(PRACOWNICY!U19="","",PRACOWNICY!U19) ->  | J160: =IF(PRACOWNICY!V19="","",PRACOWNICY!V19) ->  | K160: =IF(PRACOWNICY!G19="","",PRACOWNICY!G19) ->  | L160: =IF(PRACOWNICY!E19="","",PRACOWNICY!E19) ->  | M160: TAK
B161: =IF(PRACOWNICY!K20="","",PRACOWNICY!K20) ->  | C161: =IF(PRACOWNICY!L20="","",PRACOWNICY!L20) ->  | D161: =IF(PRACOWNICY!F20="","",PRACOWNICY!F20) ->  | E161: =IF(PRACOWNICY!H20="","",_xlfn.CONCAT(TEXT(PRACOWNICY!H20,"gg:mm"),"-",TEXT(PRACOWNICY!I20,"gg:mm"))) ->  | F161: =IF(PRACOWNICY!T20="","",PRACOWNICY!T20) ->  | H161: =IF(PRACOWNICY!Q20="","",PRACOWNICY!Q20) ->  | I161: =IF(PRACOWNICY!U20="","",PRACOWNICY!U20) ->  | J161: =IF(PRACOWNICY!V20="","",PRACOWNICY!V20) ->  | K161: =IF(PRACOWNICY!G20="","",PRACOWNICY!G20) ->  | L161: =IF(PRACOWNICY!E20="","",PRACOWNICY!E20) ->  | M161: TAK
B162: =IF(PRACOWNICY!K21="","",PRACOWNICY!K21) ->  | C162: =IF(PRACOWNICY!L21="","",PRACOWNICY!L21) ->  | D162: =IF(PRACOWNICY!F21="","",PRACOWNICY!F21) ->  | E162: =IF(PRACOWNICY!H21="","",_xlfn.CONCAT(TEXT(PRACOWNICY!H21,"gg:mm"),"-",TEXT(PRACOWNICY!I21,"gg:mm"))) ->  | F162: =IF(PRACOWNICY!T21="","",PRACOWNICY!T21) ->  | H162: =IF(PRACOWNICY!Q21="","",PRACOWNICY!Q21) ->  | I162: =IF(PRACOWNICY!U21="","",PRACOWNICY!U21) ->  | J162: =IF(PRACOWNICY!V21="","",PRACOWNICY!V21) ->  | K162: =IF(PRACOWNICY!G21="","",PRACOWNICY!G21) ->  | L162: =IF(PRACOWNICY!E21="","",PRACOWNICY!E21) ->  | M162: TAK
B163: =IF(PRACOWNICY!K22="","",PRACOWNICY!K22) ->  | C163: =IF(PRACOWNICY!L22="","",PRACOWNICY!L22) ->  | D163: =IF(PRACOWNICY!F22="","",PRACOWNICY!F22) ->  | E163: =IF(PRACOWNICY!H22="","",_xlfn.CONCAT(TEXT(PRACOWNICY!H22,"gg:mm"),"-",TEXT(PRACOWNICY!I22,"gg:mm"))) ->  | F163: =IF(PRACOWNICY!T22="","",PRACOWNICY!T22) ->  | H163: =IF(PRACOWNICY!Q22="","",PRACOWNICY!Q22) ->  | I163: =IF(PRACOWNICY!U22="","",PRACOWNICY!U22) ->  | J163: =IF(PRACOWNICY!V22="","",PRACOWNICY!V22) ->  | K163: =IF(PRACOWNICY!G22="","",PRACOWNICY!G22) ->  | L163: =IF(PRACOWNICY!E22="","",PRACOWNICY!E22) ->  | M163: TAK
B164: =IF(PRACOWNICY!K23="","",PRACOWNICY!K23) ->  | C164: =IF(PRACOWNICY!L23="","",PRACOWNICY!L23) ->  | D164: =IF(PRACOWNICY!F23="","",PRACOWNICY!F23) ->  | E164: =IF(PRACOWNICY!H23="","",_xlfn.CONCAT(TEXT(PRACOWNICY!H23,"gg:mm"),"-",TEXT(PRACOWNICY!I23,"gg:mm"))) ->  | F164: =IF(PRACOWNICY!T23="","",PRACOWNICY!T23) ->  | H164: =IF(PRACOWNICY!Q23="","",PRACOWNICY!Q23) ->  | I164: =IF(PRACOWNICY!U23="","",PRACOWNICY!U23) ->  | J164: =IF(PRACOWNICY!V23="","",PRACOWNICY!V23) ->  | K164: =IF(PRACOWNICY!G23="","",PRACOWNICY!G23) ->  | L164: =IF(PRACOWNICY!E23="","",PRACOWNICY!E23) ->  | M164: TAK
B165: PODSUMOWANIE: suma roboczogodzin, budżet na wynagrodzenia / m-c | H165: =SUM(H147:H164) -> 0 | I165: =SUM(I147:I164) -> 0 | J165: =SUM(J147:J164) -> 0 | K165: - | L165: -
B167: KOORDYNACJA / NADZÓR / DODATKI DLA PRACOWNIKÓW
B168: Nazwa stanowiska | F168: Kwota netto (pracownika) | H168: Kwota brutto (pracownika)
B169: =PRACOWNICY!D28 -> Główny kierownik obiektu (przyjezdny) - umowa o pracę | F169: =PRACOWNICY!S28 -> 138.875 | H169: =PRACOWNICY!T28 -> 193.4945375
B170: ="w tym: "&PRACOWNICY!W27 -> w tym: Zakwaterowanie | F170: --------- | H170: =PRACOWNICY!W28 -> 0
B171: ="w tym: "&PRACOWNICY!X27 -> w tym: Dojazd | F171: --------- | H171: =PRACOWNICY!X28 -> 0
B172: =PRACOWNICY!D32&": "&PRACOWNICY!E32 -> Inne dodatki dla pracowników / dojazdy: | F172: =PRACOWNICY!G32 -> 0 | H172: =PRACOWNICY!J32 -> 
B173: =IF(PRACOWNICY!D33="","",PRACOWNICY!D33&": "&PRACOWNICY!E33) -> Inne dodatki dla pracowników: | F173: =PRACOWNICY!G33 -> 0 | H173: =PRACOWNICY!J33 -> 
B174: =POZOSTAŁE!D23 -> Budżet na dojazdy koordynatorów | F174: --------- | H174: =POZOSTAŁE!J26 -> 0
B175: =PRACOWNICY!D28&" - ilość "&PRACOWNICY!O27 -> Główny kierownik obiektu (przyjezdny) - umowa o pracę - ilość rbh/m-c | F175: =PRACOWNICY!O28 -> 4.208333333 | H175: =PRACOWNICY!O28 -> 4.208333333
B177: Całkowity koszt pracowników | F177: =SUM(I147:I157,F169,F172,F173,F174) -> 138.875 | H177: =SUM(J147:J157,H169,H172,H173,H174) -> 193.4945375

Sheet Wykorzystanie budżetu (hidden)
F1: dodać formatowanie warunkowe
B2: Początek projektu | C2: ='Karta obiektu'!D9 -> 
E3: nr okresu | G3: =COUNTA($F$4:F4) -> 1 | I3: =COUNTA($F$4:H4) -> 2 | K3: =COUNTA($F$4:J4) -> 3 | M3: =COUNTA($F$4:L4) -> 4 | O3: =COUNTA($F$4:N4) -> 5 | Q3: =COUNTA($F$4:P4) -> 6 | S3: =COUNTA($F$4:R4) -> 7 | U3: =COUNTA($F$4:T4) -> 8 | W3: =COUNTA($F$4:V4) -> 9 | Y3: =COUNTA($F$4:X4) -> 10 | AA3: =COUNTA($F$4:Z4) -> 11 | AC3: =COUNTA($F$4:AB4) -> 12
F4: =C2 ->  | H4: =DATE(YEAR(F4),MONTH(F4)+1,DAY(F4)) ->  | J4: =DATE(YEAR(H4),MONTH(H4)+1,DAY(H4)) ->  | L4: =DATE(YEAR(J4),MONTH(J4)+1,DAY(J4)) ->  | N4: =DATE(YEAR(L4),MONTH(L4)+1,DAY(L4)) ->  | P4: =DATE(YEAR(N4),MONTH(N4)+1,DAY(N4)) ->  | R4: =DATE(YEAR(P4),MONTH(P4)+1,DAY(P4)) ->  | T4: =DATE(YEAR(R4),MONTH(R4)+1,DAY(R4)) ->  | V4: =DATE(YEAR(T4),MONTH(T4)+1,DAY(T4)) ->  | X4: =DATE(YEAR(V4),MONTH(V4)+1,DAY(V4)) ->  | Z4: =DATE(YEAR(X4),MONTH(X4)+1,DAY(X4)) ->  | AB4: =DATE(YEAR(Z4),MONTH(Z4)+1,DAY(Z4)) -> 
D6: Różnica względem budżetu narastająco | F6: Budżet msc | G6: Wydatki | H6: Budżet | I6: Wydatki | J6: Budżet | K6: Wydatki | L6: Budżet | M6: Wydatki | N6: Budżet | O6: Wydatki | P6: Budżet | Q6: Wydatki | R6: Budżet | S6: Wydatki | T6: Budżet | U6: Wydatki | V6: Budżet | W6: Wydatki | X6: Budżet | Y6: Wydatki | Z6: Budżet | AA6: Wydatki | AB6: Budżet | AC6: Wydatki
B9: Eksploatacja maszyn (pady, szczotki, gumy, serwis) | D9: =('Karta obiektu'!E34*COUNTA(G9,I9,K9,M9,O9,Q9,S9,U9,W9,Y9,AA9,AC9)-SUM(G9,I9,K9,M9,O9,Q9,S9,U9,W9,Y9,AA9,AC9)) -> -6000 | F9: ='Karta obiektu'!$E$34 -> 0 | G9: 2800 | H9: =IF(G9="","",$F9+(F9-G9)) -> -2800 | I9: 3200 | J9: =IF(I9="","",$F9+(H9-I9)) -> -6000 | L9: =IF(K9="","",$F9+(J9-K9)) ->  | N9: =IF(M9="","",$F9+(L9-M9)) ->  | P9: =IF(O9="","",$F9+(N9-O9)) ->  | R9: =IF(Q9="","",$F9+(P9-Q9)) ->  | T9: =IF(S9="","",$F9+(R9-S9)) ->  | V9: =IF(U9="","",$F9+(T9-U9)) ->  | X9: =IF(W9="","",$F9+(V9-W9)) ->  | Z9: =IF(Y9="","",$F9+(X9-Y9)) ->  | AB9: =IF(AA9="","",$F9+(Z9-AA9)) -> 
B10: Najem maszyn | D10: =('Karta obiektu'!E35*COUNTA(G10,I10,K10,M10,O10,Q10,S10,U10,W10,Y10,AA10,AC10)-SUM(G10,I10,K10,M10,O10,Q10,S10,U10,W10,Y10,AA10,AC10)) -> -22750 | F10: ='Karta obiektu'!$E$35 -> 0 | G10: 13000 | H10: =IF(G10="","",$F10+(F10-G10)) -> -13000 | I10: 9750 | J10: =IF(I10="","",$F10+(H10-I10)) -> -22750 | L10: =IF(K10="","",$F10+(J10-K10)) ->  | N10: =IF(M10="","",$F10+(L10-M10)) ->  | P10: =IF(O10="","",$F10+(N10-O10)) ->  | R10: =IF(Q10="","",$F10+(P10-Q10)) ->  | T10: =IF(S10="","",$F10+(R10-S10)) ->  | V10: =IF(U10="","",$F10+(T10-U10)) ->  | X10: =IF(W10="","",$F10+(V10-W10)) ->  | Z10: =IF(Y10="","",$F10+(X10-Y10)) ->  | AB10: =IF(AA10="","",$F10+(Z10-AA10)) -> 
B11: Eksploatacja sprzętu drobnego | D11: =('Karta obiektu'!I34*COUNTA(G11,I11,K11,M11,O11,Q11,S11,U11,W11,Y11,AA11,AC11)-SUM(G11,I11,K11,M11,O11,Q11,S11,U11,W11,Y11,AA11,AC11)) -> -1130 | F11: ='Karta obiektu'!$I$34 -> 0 | G11: 530 | H11: =IF(G11="","",$F11+(F11-G11)) -> -530 | I11: 600 | J11: =IF(I11="","",$F11+(H11-I11)) -> -1130 | L11: =IF(K11="","",$F11+(J11-K11)) ->  | N11: =IF(M11="","",$F11+(L11-M11)) ->  | P11: =IF(O11="","",$F11+(N11-O11)) ->  | R11: =IF(Q11="","",$F11+(P11-Q11)) ->  | T11: =IF(S11="","",$F11+(R11-S11)) ->  | V11: =IF(U11="","",$F11+(T11-U11)) ->  | X11: =IF(W11="","",$F11+(V11-W11)) ->  | Z11: =IF(Y11="","",$F11+(X11-Y11)) ->  | AB11: =IF(AA11="","",$F11+(Z11-AA11)) -> 
B12: Zakup sprzętu drobnego | D12: =('Karta obiektu'!I35*COUNTA(G12,I12,K12,M12,O12,Q12,S12,U12,W12,Y12,AA12,AC12)-SUM(G12,I12,K12,M12,O12,Q12,S12,U12,W12,Y12,AA12,AC12)) -> -5200 | F12: ='Karta obiektu'!$I$35 -> 0 | G12: 2300 | H12: =IF(G12="","",$F12+(F12-G12)) -> -2300 | I12: 2900 | J12: =IF(I12="","",$F12+(H12-I12)) -> -5200 | L12: =IF(K12="","",$F12+(J12-K12)) ->  | N12: =IF(M12="","",$F12+(L12-M12)) ->  | P12: =IF(O12="","",$F12+(N12-O12)) ->  | R12: =IF(Q12="","",$F12+(P12-Q12)) ->  | T12: =IF(S12="","",$F12+(R12-S12)) ->  | V12: =IF(U12="","",$F12+(T12-U12)) ->  | X12: =IF(W12="","",$F12+(V12-W12)) ->  | Z12: =IF(Y12="","",$F12+(X12-Y12)) ->  | AB12: =IF(AA12="","",$F12+(Z12-AA12)) -> 
B13: Materiały
B14: Higiena | D14: =('Karta obiektu'!E94*COUNTA(G14,I14,K14,M14,O14,Q14,S14,U14,W14,Y14,AA14,AC14)-SUM(G14,I14,K14,M14,O14,Q14,S14,U14,W14,Y14,AA14,AC14)) -> -260 | F14: ='Karta obiektu'!$E$94 -> 0 | G14: 100 | H14: =IF(G14="","",$F14+(F14-G14)) -> -100 | I14: 160 | J14: =IF(I14="","",$F14+(H14-I14)) -> -260 | L14: =IF(K14="","",$F14+(J14-K14)) ->  | N14: =IF(M14="","",$F14+(L14-M14)) ->  | P14: =IF(O14="","",$F14+(N14-O14)) ->  | R14: =IF(Q14="","",$F14+(P14-Q14)) ->  | T14: =IF(S14="","",$F14+(R14-S14)) ->  | V14: =IF(U14="","",$F14+(T14-U14)) ->  | X14: =IF(W14="","",$F14+(V14-W14)) ->  | Z14: =IF(Y14="","",$F14+(X14-Y14)) ->  | AB14: =IF(AA14="","",$F14+(Z14-AA14)) -> 
B15: Chemia (wewn. i zewn.) + worki | D15: =(SUM('Karta obiektu'!$I$89,'Karta obiektu'!$I$94,'Karta obiektu'!$I$99)*COUNTA(G15,I15,K15,M15,O15,Q15,S15,U15,W15,Y15,AA15,AC15)-SUM(G15,I15,K15,M15,O15,Q15,S15,U15,W15,Y15,AA15,AC15)) -> 0 | F15: =SUM('Karta obiektu'!$I$89,'Karta obiektu'!$I$94,'Karta obiektu'!$I$99) -> 0 | G15: 0 | H15: =IF(G15="","",$F15+(F15-G15)) -> 0 | I15: 0 | J15: =IF(I15="","",$F15+(H15-I15)) -> 0 | L15: =IF(K15="","",$F15+(J15-K15)) ->  | N15: =IF(M15="","",$F15+(L15-M15)) ->  | P15: =IF(O15="","",$F15+(N15-O15)) ->  | R15: =IF(Q15="","",$F15+(P15-Q15)) ->  | T15: =IF(S15="","",$F15+(R15-S15)) ->  | V15: =IF(U15="","",$F15+(T15-U15)) ->  | X15: =IF(W15="","",$F15+(V15-W15)) ->  | Z15: =IF(Y15="","",$F15+(X15-Y15)) ->  | AB15: =IF(AA15="","",$F15+(Z15-AA15)) -> 
C16: SUMA | D16: =SUM(D9:D15) -> -35340
B18: ZIMA | F18: na końcu dodać makro, które zakreśli miesiące niezimowe w tej sekcji - aby nie były wypełniane | M18: uwzględnić przesunięcie w formułach
B19: Sprzęt ciężki - na miejscu | D19: =(SUM('Karta obiektu'!$E$113:$E$116)*COUNTA(G19,I19,K19,M19,O19,Q19,S19,U19,W19,Y19,AA19,AC19)-SUM(G19,I19,K19,M19,O19,Q19,S19,U19,W19,Y19,AA19,AC19)) -> 0 | P19: =SUM('Karta obiektu'!$E$113:$E$116) -> 0 | R19: =IF(Q19="","",$P19+(P19-Q19)) ->  | T19: =IF(S19="","",$P19+(R19-S19)) ->  | V19: =IF(U19="","",$P19+(T19-U19)) ->  | X19: =IF(W19="","",$P19+(V19-W19)) -> 
B20: Teren zewnętrzny - sprzęt do prac ręcznych | D20: =(SUM('Karta obiektu'!$E$119:$E$120)*COUNTA(G20,I20,K20,M20,O20,Q20,S20,U20,W20,Y20,AA20,AC20)-SUM(G20,I20,K20,M20,O20,Q20,S20,U20,W20,Y20,AA20,AC20)) -> 0 | P20: =SUM('Karta obiektu'!$E$119:$E$120) -> 0 | R20: =IF(Q20="","",$P20+(P20-Q20)) ->  | T20: =IF(S20="","",$P20+(R20-S20)) ->  | V20: =IF(U20="","",$P20+(T20-U20)) ->  | X20: =IF(W20="","",$P20+(V20-W20)) -> 
B21: Sprzęt ciężki - dojazd | D21: =(SUM('Karta obiektu'!I113:I116)*COUNTA(G21,I21,K21,M21,O21,Q21,S21,U21,W21,Y21,AA21,AC21)-SUM(G21,I21,K21,M21,O21,Q21,S21,U21,W21,Y21,AA21,AC21)) -> 0 | P21: =SUM('Karta obiektu'!I113:I116) -> 0 | R21: =IF(Q21="","",$P21+(P21-Q21)) ->  | T21: =IF(S21="","",$P21+(R21-S21)) ->  | V21: =IF(U21="","",$P21+(T21-U21)) ->  | X21: =IF(W21="","",$P21+(V21-W21)) -> 
B22: Mieszanka sól/piach | D22: =(SUM('Karta obiektu'!I119:I120)*COUNTA(G22,I22,K22,M22,O22,Q22,S22,U22,W22,Y22,AA22,AC22)-SUM(G22,I22,K22,M22,O22,Q22,S22,U22,W22,Y22,AA22,AC22)) -> 0 | P22: =SUM('Karta obiektu'!I119:I120) -> 0 | R22: =IF(Q22="","",$P22+(P22-Q22)) ->  | T22: =IF(S22="","",$P22+(R22-S22)) ->  | V22: =IF(U22="","",$P22+(T22-U22)) ->  | X22: =IF(W22="","",$P22+(V22-W22)) -> 
B23: czy uwzględnić tu refakturę zimową? | C23: SUMA | D23: =SUM(D19:D22) -> 0
F24: sprawdzić by tobyły budżety miesięczne!
B26: Odzież robocza | D26: =(POZOSTAŁE!I6*COUNTA(G26,I26,K26,M26,O26,Q26,S26,U26,W26,Y26,AA26,AC26)-SUM(G26,I26,K26,M26,O26,Q26,S26,U26,W26,Y26,AA26,AC26)) -> -900 | F26: =POZOSTAŁE!$I$6 -> 0 | G26: 200 | H26: =IF(G26="","",$F26+(F26-G26)) -> -200 | I26: 700 | J26: =IF(I26="","",$F26+(H26-I26)) -> -900 | L26: =IF(K26="","",$F26+(J26-K26)) ->  | N26: =IF(M26="","",$F26+(L26-M26)) ->  | P26: =IF(O26="","",$F26+(N26-O26)) ->  | R26: =IF(Q26="","",$F26+(P26-Q26)) ->  | T26: =IF(S26="","",$F26+(R26-S26)) ->  | V26: =IF(U26="","",$F26+(T26-U26)) ->  | X26: =IF(W26="","",$F26+(V26-W26)) ->  | Z26: =IF(Y26="","",$F26+(X26-Y26)) ->  | AB26: =IF(AA26="","",$F26+(Z26-AA26)) -> 
B27: Pranie strojów roboczych | D27: =(POZOSTAŁE!I7*COUNTA(G27,I27,K27,M27,O27,Q27,S27,U27,W27,Y27,AA27,AC27)-SUM(G27,I27,K27,M27,O27,Q27,S27,U27,W27,Y27,AA27,AC27)) -> -70 | F27: =POZOSTAŁE!$I$7 -> 0 | G27: 40 | H27: =IF(G27="","",$F27+(F27-G27)) -> -40 | I27: 30 | J27: =IF(I27="","",$F27+(H27-I27)) -> -70 | L27: =IF(K27="","",$F27+(J27-K27)) ->  | N27: =IF(M27="","",$F27+(L27-M27)) ->  | P27: =IF(O27="","",$F27+(N27-O27)) ->  | R27: =IF(Q27="","",$F27+(P27-Q27)) ->  | T27: =IF(S27="","",$F27+(R27-S27)) ->  | V27: =IF(U27="","",$F27+(T27-U27)) ->  | X27: =IF(W27="","",$F27+(V27-W27)) ->  | Z27: =IF(Y27="","",$F27+(X27-Y27)) ->  | AB27: =IF(AA27="","",$F27+(Z27-AA27)) -> 
B28: Prace dodatkowe | D28: =(SUM('Karta obiektu'!$H$134:$H$142)*COUNTA(G28,I28,K28,M28,O28,Q28,S28,U28,W28,Y28,AA28,AC28)-SUM(G28,I28,K28,M28,O28,Q28,S28,U28,W28,Y28,AA28,AC28)) -> -300 | F28: =SUM('Karta obiektu'!$H$134:$H$142) -> 0 | G28: 200 | H28: =IF(G28="","",$F28+(F28-G28)) -> -200 | I28: 100 | J28: =IF(I28="","",$F28+(H28-I28)) -> -300 | L28: =IF(K28="","",$F28+(J28-K28)) ->  | N28: =IF(M28="","",$F28+(L28-M28)) ->  | P28: =IF(O28="","",$F28+(N28-O28)) ->  | R28: =IF(Q28="","",$F28+(P28-Q28)) ->  | T28: =IF(S28="","",$F28+(R28-S28)) ->  | V28: =IF(U28="","",$F28+(T28-U28)) ->  | X28: =IF(W28="","",$F28+(V28-W28)) ->  | Z28: =IF(Y28="","",$F28+(X28-Y28)) ->  | AB28: =IF(AA28="","",$F28+(Z28-AA28)) -> 
C29: SUMA | D29: =SUM(D26:D28) -> -1270
B31: PRACOWNICY
B32: ='Pracownicy podsuma'!B4 -> Umowa o pracę - stawka 15,00 zł | C32: wynagrodzenie | D32: =(VLOOKUP(B32,'Pracownicy podsuma'!B:D,3,0)*COUNTA(G32,I32,K32,M32,O32,Q32,S32,U32,W32,Y32,AA32,AC32)-SUM(G32,I32,K32,M32,O32,Q32,S32,U32,W32,Y32,AA32,AC32)) -> 36.546112 | F32: =VLOOKUP(B32,'Pracownicy podsuma'!B:D,3,0) -> 4018.273056 | G32: 4200 | H32: =IF(G32="","",$F32+(F32-G32)) -> 3836.546112 | I32: 3800 | J32: =IF(I32="","",$F32+(H32-I32)) -> 4054.819168 | L32: =IF(K32="","",$F32+(J32-K32)) ->  | N32: =IF(M32="","",$F32+(L32-M32)) ->  | P32: =IF(O32="","",$F32+(N32-O32)) ->  | R32: =IF(Q32="","",$F32+(P32-Q32)) ->  | T32: =IF(S32="","",$F32+(R32-S32)) ->  | V32: =IF(U32="","",$F32+(T32-U32)) ->  | X32: =IF(W32="","",$F32+(V32-W32)) ->  | Z32: =IF(Y32="","",$F32+(X32-Y32)) ->  | AB32: =IF(AA32="","",$F32+(Z32-AA32)) -> 
C33: ilość roboczogodzin | D33: =(VLOOKUP(B32,'Pracownicy podsuma'!B:D,2,0)*COUNTA(G33,I33,K33,M33,O33,Q33,S33,U33,W33,Y33,AA33,AC33)-SUM(G33,I33,K33,M33,O33,Q33,S33,U33,W33,Y33,AA33,AC33)) -> 2 | F33: =VLOOKUP(B32,'Pracownicy podsuma'!B:D,2,0) -> 168 | G33: 167 | H33: =IF(G33="","",$F33+(F33-G33)) -> 169 | I33: 167 | J33: =IF(I33="","",$F33+(H33-I33)) -> 170 | L33: =IF(K33="","",$F33+(J33-K33)) ->  | N33: =IF(M33="","",$F33+(L33-M33)) ->  | P33: =IF(O33="","",$F33+(N33-O33)) ->  | R33: =IF(Q33="","",$F33+(P33-Q33)) ->  | T33: =IF(S33="","",$F33+(R33-S33)) ->  | V33: =IF(U33="","",$F33+(T33-U33)) ->  | X33: =IF(W33="","",$F33+(V33-W33)) ->  | Z33: =IF(Y33="","",$F33+(X33-Y33)) ->  | AB33: =IF(AA33="","",$F33+(Z33-AA33)) -> 
B34: ='Pracownicy podsuma'!B5 -> Umowa zlecenie - stawka 13,50 zł | C34: wynagrodzenie | D34: =(VLOOKUP(B34,'Pracownicy podsuma'!B:D,3,0)*COUNTA(G34,I34,K34,M34,O34,Q34,S34,U34,W34,Y34,AA34,AC34)-SUM(G34,I34,K34,M34,O34,Q34,S34,U34,W34,Y34,AA34,AC34)) -> 449.3372512 | F34: =VLOOKUP(B34,'Pracownicy podsuma'!B:D,3,0) -> 5424.668626 | G34: 5500 | H34: =IF(G34="","",$F34+(F34-G34)) -> 5349.337251 | I34: 4900 | J34: =IF(I34="","",$F34+(H34-I34)) -> 5874.005877 | L34: =IF(K34="","",$F34+(J34-K34)) ->  | N34: =IF(M34="","",$F34+(L34-M34)) ->  | P34: =IF(O34="","",$F34+(N34-O34)) ->  | R34: =IF(Q34="","",$F34+(P34-Q34)) ->  | T34: =IF(S34="","",$F34+(R34-S34)) ->  | V34: =IF(U34="","",$F34+(T34-U34)) ->  | X34: =IF(W34="","",$F34+(V34-W34)) ->  | Z34: =IF(Y34="","",$F34+(X34-Y34)) ->  | AB34: =IF(AA34="","",$F34+(Z34-AA34)) -> 
C35: ilość roboczogodzin | D35: =(VLOOKUP(B34,'Pracownicy podsuma'!B:D,2,0)*COUNTA(G35,I35,K35,M35,O35,Q35,S35,U35,W35,Y35,AA35,AC35)-SUM(G35,I35,K35,M35,O35,Q35,S35,U35,W35,Y35,AA35,AC35)) -> 5 | F35: =VLOOKUP(B34,'Pracownicy podsuma'!B:D,2,0) -> 252 | G35: 250 | H35: =IF(G35="","",$F35+(F35-G35)) -> 254 | I35: 249 | J35: =IF(I35="","",$F35+(H35-I35)) -> 257 | L35: =IF(K35="","",$F35+(J35-K35)) ->  | N35: =IF(M35="","",$F35+(L35-M35)) ->  | P35: =IF(O35="","",$F35+(N35-O35)) ->  | R35: =IF(Q35="","",$F35+(P35-Q35)) ->  | T35: =IF(S35="","",$F35+(R35-S35)) ->  | V35: =IF(U35="","",$F35+(T35-U35)) ->  | X35: =IF(W35="","",$F35+(V35-W35)) ->  | Z35: =IF(Y35="","",$F35+(X35-Y35)) ->  | AB35: =IF(AA35="","",$F35+(Z35-AA35)) -> 
C36: wynagrodzenie
C37: ilość roboczogodzin
C38: wynagrodzenie
C39: ilość roboczogodzin
C40: wynagrodzenie
C41: ilość roboczogodzin
B43: Główny kierownik obiektu - przyjezdny | C43: wynagrodzenie | D43: =(PRACOWNICY!Y28*COUNTA(G43,I43,K43,M43,O43,Q43,S43,U43,W43,Y43,AA43,AC43)-SUM(G43,I43,K43,M43,O43,Q43,S43,U43,W43,Y43,AA43,AC43)) -> -3.75556244 | F43: =PRACOWNICY!$Y$28 -> 233.1222188 | G43: 280 | H43: =IF(G43="","",$F43+(F43-G43)) -> 186.2444376 | I43: 190 | J43: =IF(I43="","",$F43+(H43-I43)) -> 229.3666563 | L43: =IF(K43="","",$F43+(J43-K43)) ->  | N43: =IF(M43="","",$F43+(L43-M43)) ->  | P43: =IF(O43="","",$F43+(N43-O43)) ->  | R43: =IF(Q43="","",$F43+(P43-Q43)) ->  | T43: =IF(S43="","",$F43+(R43-S43)) ->  | V43: =IF(U43="","",$F43+(T43-U43)) ->  | X43: =IF(W43="","",$F43+(V43-W43)) ->  | Z43: =IF(Y43="","",$F43+(X43-Y43)) ->  | AB43: =IF(AA43="","",$F43+(Z43-AA43)) -> 
C44: ilość roboczogodzin | D44: =(PRACOWNICY!O28*COUNTA(G44,I44,K44,M44,O44,Q44,S44,U44,W44,Y44,AA44,AC44)-SUM(G44,I44,K44,M44,O44,Q44,S44,U44,W44,Y44,AA44,AC44)) -> -6.583333333 | F44: =PRACOWNICY!$O$28 -> 4.208333333 | G44: 8 | H44: =IF(G44="","",$F44+(F44-G44)) -> 0.4166666667 | I44: 7 | J44: =IF(I44="","",$F44+(H44-I44)) -> -2.375 | L44: =IF(K44="","",$F44+(J44-K44)) ->  | N44: =IF(M44="","",$F44+(L44-M44)) ->  | P44: =IF(O44="","",$F44+(N44-O44)) ->  | R44: =IF(Q44="","",$F44+(P44-Q44)) ->  | T44: =IF(S44="","",$F44+(R44-S44)) ->  | V44: =IF(U44="","",$F44+(T44-U44)) ->  | X44: =IF(W44="","",$F44+(V44-W44)) ->  | Z44: =IF(Y44="","",$F44+(X44-Y44)) ->  | AB44: =IF(AA44="","",$F44+(Z44-AA44)) -> 
B46: Inne dodatki dla pracowników / dojazdy | C46: wynagrodzenie | D46: =(PRACOWNICY!J32*COUNTA(G46,I46,K46,M46,O46,Q46,S46,U46,W46,Y46,AA46,AC46)-SUM(G46,I46,K46,M46,O46,Q46,S46,U46,W46,Y46,AA46,AC46)) ->  | F46: =PRACOWNICY!$J$32 ->  | G46: 3300 | H46: =IF(G46="","",$F46+(F46-G46)) ->  | I46: 3350 | J46: =IF(I46="","",$F46+(H46-I46)) ->  | L46: =IF(K46="","",$F46+(J46-K46)) ->  | N46: =IF(M46="","",$F46+(L46-M46)) ->  | P46: =IF(O46="","",$F46+(N46-O46)) ->  | R46: =IF(Q46="","",$F46+(P46-Q46)) ->  | T46: =IF(S46="","",$F46+(R46-S46)) ->  | V46: =IF(U46="","",$F46+(T46-U46)) ->  | X46: =IF(W46="","",$F46+(V46-W46)) ->  | Z46: =IF(Y46="","",$F46+(X46-Y46)) ->  | AB46: =IF(AA46="","",$F46+(Z46-AA46)) -> 
B47: Opis dodatków | D47: =PRACOWNICY!E32 -> 0
C49: SUMA | D49: =SUM(D32,D34,D36,D38,D40,D43,D46) -> 
B51: Budżet na dojazdy koordynatorów | D51: =(POZOSTAŁE!J26*COUNTA(G51,I51,K51,M51,O51,Q51,S51,U51,W51,Y51,AA51,AC51)-SUM(G51,I51,K51,M51,O51,Q51,S51,U51,W51,Y51,AA51,AC51)) -> 0 | F51: =POZOSTAŁE!$J$26 -> 0 | H51: =IF(G51="","",$F51+(F51-G51)) ->  | J51: =IF(I51="","",$F51+(H51-I51)) ->  | L51: =IF(K51="","",$F51+(J51-K51)) ->  | N51: =IF(M51="","",$F51+(L51-M51)) ->  | P51: =IF(O51="","",$F51+(N51-O51)) ->  | R51: =IF(Q51="","",$F51+(P51-Q51)) ->  | T51: =IF(S51="","",$F51+(R51-S51)) ->  | V51: =IF(U51="","",$F51+(T51-U51)) ->  | X51: =IF(W51="","",$F51+(V51-W51)) ->  | Z51: =IF(Y51="","",$F51+(X51-Y51)) ->  | AB51: =IF(AA51="","",$F51+(Z51-AA51)) -> 
D53: Różnica względem budżetu narastająco
D54: =SUM(D9:D15,D19:D22,D26:D28,D32,D34,D36,D38,D40,D43,D46,D51) -> 
